Workbook

Sheet Data_Main (hidden)
B4: Year | C4: 2021 | D4: Enter
B5: Year_Long | C5: =m_year&"/"&m_year+1 -> 2021/2022 | D5: Calculated
B6: Year_Short | C6: =RIGHT(m_year,2)&"/"&RIGHT(m_year,2)+1 -> 21/22 | D6: Calculated
B9: MODEL VERSION | C9: 6
B11: show_disclaimer | C11: TRUE | D11: Calculated

Sheet Data_Sheets (hidden)
E8: Reference only
E9: Michaels Sheet Names
B10: Sheet | C10: State(show to keep sheet visible or blank to hide)
B11: Data_Main
B12: Data_Sheets
B13: DV_TABLES
B14: Instructions | C14: Show
B15: Main | C15: Show
B16: Summary | C16: Show
B17: Prime Lambs Input | E17: PRIME LAMBS- HIGH RAINFALL
B18: Prime Lambs
B19: Prime Lambs Maternal Input
B20: Prime Lambs Maternal
B21: Prime Lambs Merino Ewes Input | E21: PRIME LAMBS- CEREAL ZONE
B22: Prime Lambs Merino Ewes
B23: Lamb Trading Input | E23: LAMB TRADING - HIGH RAINFALL
B24: Lamb Trading
B25: GM_INFO
B26: Merino SR Input | E26: MERINO S.R. - CEREAL ZONE
B27: Merino SR
B28: Wethers Input | E28: WETHERS - CEREAL ZONE
B29: Wethers
B30: Cleanskin Sheep Input | E30: Cleanskin Sheep
B31: Cleanskin Sheep
B32: Beef Input | E32: BEEF - CEREAL ZONE
B33: Beef
B34: Beef Trading Input | E34: BEEF Trading- HIGH RAINFALL
B35: Beef Trading
B36: Beef Feed Lot Input | E36: Beef Feed Lot
B37: Beef Feed Lot

Sheet DV_TABLES (hidden)

Sheet Instructions
B7: ="Livestock Farm Gross Margin Guide -"&TEXT(m_year,"0000") -> Livestock Farm Gross Margin Guide -2021
B8: This spreadsheet can take a few moments to load
B9: PLEASE NOTE:THIS VERSION WILL ONLY WORK WITH EXCEL VERSIONS 2007 & ABOVE FOR WINDOWS ONLY. It will not work with Excel for Mac, Ipad, Android, tablets etc.
B11: Before You Start
B12: Before you start you will need to enable macros.
B13: This may appear as a Security Warning at the top of your page. To do this, click on “Enable Content”.
B14: Clicking “Enable Content” allows you to enter data into the Excel Worksheet.
B22: You may also see a message about "PROTECTED VIEW". Please click "Enable Editing".
B29: Yellow cells = data entry (some yellow cells contain formulas, these usually represent default
B30: values but may be over written. To revert back to the default value formula click the blue 'Reset…'
B31: link next to the cell.
B32: Blue cells contain formulas, are protected and can not be overwritten.
B46: Start in the “Main” sheet and select “Livestock types” you want to use:
B74: Pasture costs are not included as part of the Gross Margins. To include pasture and overhead costs,
B75: download the “RSA Crops Gross Margin Guide” and select the appropriate pasture types.
B76: The Livestock Gross Margin figures can be input as the “Income” for the Pasture Gross Margins.
B79: For technical support or to report errors/omissions regarding this spreadsheet please
B80: email Barry Mudge at:
C81: theoaks5@bigpond.com

Sheet Main
C3: ="FARM GROSS MARGIN GUIDE - "&TEXT(m_year,"0000") -> FARM GROSS MARGIN GUIDE - 2021 | G3: ="Version-"&TEXT(MODEL_VERSION,"0.0") -> Version-6.0
C6: by clicking checkboxes or All or None buttons
B7: FALSE | C7: Prime Lambs 1st Cross Ewes
B8: FALSE | C8: Prime Lambs Maternal
B9: FALSE | C9: Prime Lambs Merino Ewes
B10: FALSE | C10: Lamb Trading High Rainfall
B11: FALSE | C11: Merino SR
B12: FALSE | C12: Wethers
B13: FALSE | C13: Cleanskin Sheep
B14: FALSE | C14: Beef
B15: FALSE | C15: Beef Trading
B16: FALSE | C16: Beef Feed Lot

Sheet GM_INFO (hidden)
A1: G.M. LINK SHEET
A3: COMMENT: spreadsheet is protected EXCEPT for highlighted cells,
A4: i.e. those cells which can be changed.
A6: DATE | B6: =m_year -> 2021
A10: _______________________________________________________________________________________________________________________
A11: Todays Date: | B11: =NOW() -> 2021-03-09T10:24:33.170
A14: ="FARM COSTS - "&m_year -> FARM COSTS - 2021
A17: SHEEP
A19: Drench
A20: Name | B20: Price1 | C20: UOM1 | D20: Price2 | E20: UOM2
A21: Avomec Dual | B21: 45.62 | C21: /litre | D21: 0.54744 | E21: /12ml dose
A22: Cydectin | B22: 24.91 | C22: /litre | D22: 0.29892 | E22: /12ml dose
A23: Cydectin Long Act Injectable | B23: 236.5 | C23: /500ml | D23: 1.419 | E23: /3ml dose
A24: Dynamax Capsules | B24: 381 | C24: /100 capsules | D24: 3.81 | E24: /capsule
A25: Q-Drench | B25: 55.25 | C25: /litre | D25: 0.663 | E25: /12ml dose
A26: Startect | B26: 92.29 | C26: /litre | D26: 1.10748 | E26: /12ml dose
A27: Triguard | B27: 34.75 | C27: /litre | D27: 0.417 | E27: /12ml dose
A28: Zolvix Plus | B28: 190.17 | C28: /litre | D28: 1.14102 | E28: /6ml dose
A32: Vaccine
A33: Name | B33: Price1 | C33: UOM1 | D33: Price2 | E33: UOM2
A34: Cobalife Vit B12 | B34: 55.98 | C34: /500ml | D34: 0.11196 | E34: /1ml dose
A35: Cobalife Vit B12 + S | B35: 63 | C35: /500mls | D35: 0.126 | E35: /1ml dose
A36: Eryvac | B36: 162.66 | C36: /250ml | D36: 0.65064 | E36: /1ml dose
A37: Eweguard B12 + S | B37: 278 | C37: /500ml | D37: 1.39 | E37: /2.5ml dose
A38: Glanvac 3 | B38: 54.4 | C38: /250ml | D38: 0.2176 | E38: /1ml dose
A39: Glanvac 3B12 | B39: 105 | C39: /250ml | D39: 0.42 | E39: /1ml dose
A40: Glanvac 3SB12 | B40: 114.1 | C40: /250ml dose | D40: 0.4564 | E40: /1ml dose
A41: Glanvac 6 | B41: 74.73 | C41: /250ml | D41: 0.29892 | E41: /1ml dose
A42: Glanvac 6B12 | B42: 140.12 | C42: /250ml | D42: 0.56048 | E42: /1ml dose
A43: Glanvac 6SB12 | B43: 146.74 | C43: /250ml | D43: 0.58696 | E43: /1ml dose
A44: Gudiar | B44: 670 | C44: /250ml | D44: 2.68 | E44: /1ml dose
A45: Multimin Injection | B45: 382.82 | C45: /500ml | D45: 1.9141 | E45: /5ml dose
A46: Scabigard | B46: 100.58 | C46: /5ml | D46: 0.40232 | E46: /0.02ml dose
A47: Ultravac 5 in 1 | B47: 55.59 | C47: /250ml | D47: 0.22236 | E47: /1ml dose
A48: Ultravac 5 in 1 with B12 | B48: 90 | C48: /500ml | D48: 0.36 | E48: /2ml dose
A49: Vit ADE | B49: 190.04 | C49: /500ml | D49: 0.9502 | E49: /5ml dose
A50: Weanerguard B12 + S | B50: 203.45 | C50: /500ml | D50: 1.2207 | E50: /3ml dose
A53: Blowfly Control
A54: Name | B54: Price1 | C54: UOM1 | D54: Price2 | E54: UOM2
A55: Clik | B55: 51.94 | C55: /litre | D55: 1.24656 | E55: /24 ml dose
A56: Vetrazin Spray On | B56: 10.84 | C56: /litre | D56: 0.71544 | E56: /66ml dose
A65: Lice Control | B65: Avenge | C65: 16.14 | D65: /litre
C66: 1.2912 | D66: /80ml dose
A67: Drench | B67: Triguard | C67: 34.75 | D67: /litre
C68: 0.417 | D68: /10ml dose
A69: Vaccine | B69: Glanvac 3 | C69: 54.4 | D69: /250ml
C70: 0.2176 | D70: /1ml dose
B71: Glanvac 6 | C71: 74.73 | D71: 250ml
C72: 0.29892 | D72: /1ml dose
A73: Blowfly Control | B73: Clik | C73: 51.94 | D73: /litre
C74: 1.24656 | D74: /24 ml dose
A75: Wool packs | B75: nylon | C75: 12 | D75: ea
A77: Shearing | B77: Sheep | C77: 324.31 | D77: /100
B78: rams | C78: 648.62 | D78: /100
B79: shed labour | C79: 245.56 | D79: /day
B80: wool classer | C80: 312.11 | D80: day
B81: superannuation | C81: 0.095 | D81: wages
B82: Work Cover-Allow | C82: 0.04 | D82: total
B83: shed sundries | C83: 0.2 | D83: /head
A85: Crutching | B85: sheep | C85: 94.05 | D85: /100
B86: rams | C86: 188.1 | D86: /100
A88: lamb marking | B88: mulesing / materials | C88: 1.4 | D88: /head
B89: marking only | C89: 1.15 | D89: /head
B90: ear tags | C90: 0.37 | D90: /head
B91: pain relief | C91: 0.45 | D91: /head | E91: NOT UPDATED YET!
A92: Stock purchaces | B92: purchase rams | C92: 1000 | D92: /head
B93: purchase wethers | C93: 80 | D93: /head
A95: Stock selling | B95: commission/insurance | C95: 0.06
B96: yard fees | C96: 0.85 | D96: /head
B97: sheep transaction levy | C97: 0.2 | D97: /head
B98: lamb transaction levy | C98: 1.5 | D98: /head
B99: SA sheep industry levy | C99: 0.67 | D99: /head
B100: wool brokerage / testing / insurance | C100: 0.27 | D100: /kg
B101: wool levy | C101: 0.015
A107: BEEF | H107: BEEF FEEDLOT
A108: Drench (backline) | B108: Genesis Pour-on | D108: 83.62 | E108: /litre | H108: Drench, Dectomax | I108: 4.88 | J108: /head
D109: 4.181 | E109: /25ml dose | H109: Ear Tags | I109: 0.5 | J109: /tag
A110: 5 in 1 vaccine | D110: 100.46 | E110: /500 ml | H110: HGP implant , Synovex | I110: 2.5 | J110: /dose
D111: 0.80368 | E111: /4ml dose | H111: Lice Treatments | I111: 0 | J111: /dose
H112: Vaccine | I112: 1 | J112: /dose
H113: Veterinary | I113: 1.25 | J113: /head
A114: Trace Element treatments | D114: 3 | E114: /head | H114: Vitamin injection | I114: 1.5 | J114: /head
A115: HGP implant | D115: 1.75 | H115: Premix cost per tonne mixed feed | I115: 50 | J115: /tonne
A116: Vitamin injection | D116: 1.3 | H116: Milling costs + Labour | I116: 28 | J116: /head
H117: Water | I117: 20 | J117: /head
H118: Insurance | I118: 2
H119: Transport In | I119: 15
A120: NLIS Breeder Tags (incl levy) | D120: 4.75 | E120: each | H120: Transport Out | I120: 30
H121: Commission | I121: 0.06
B122: freight cattle in | D122: 30 | E122: /head | H122: Levies | I122: 5
B123: freight cattle out | D123: 30 | E123: /head | H123: Losses | I123: 0.006 | J123: %
B124: Cattle levy | D124: 5 | E124: /head
D125: Prime Lambs | E125: Prime Lambs Cereal | F125: Merino SR Cereal | G125: Wethers Cereal | H125: Cleanskin | I125: Beef Cereal | J125: Beef Trading | K125: Lamb trading
A126: FEED & OTHER COSTS | B126: water | C126: /DSE | D126: 1.5 | E126: 2.5 | F126: 2.5 | G126: 2.5 | H126: 2.5 | I126: 2.5 | J126: 1.5 | K126: 1.5
B127: Veh fuel, R&M | C127: /DSE | D127: 1.2 | E127: 1.2 | F127: 1.2 | G127: 1 | H127: 0.8 | I127: 1 | J127: 1 | K127: 1
B128: other | C128: /DSE | D128: 0.5 | E128: 0.5 | F128: 0.5 | G128: 0.5 | H128: 0.5 | I128: 0.5 | J128: 0.5 | K128: 0.5
B129: hay | C129: /tonne incl freight | D129: 230
B130: Feed Cereal grain | C130: /tonne incl freight | D130: 220
B131: Lamb Feedlot Mix | C131: /tonne incl freight | D131: 300
B132: Blocks/ Mineral Mix | D132: 5
A136: ="FARM COSTS - "&m_year -> FARM COSTS - 2021
A140: STOCK RETURNS | F140: Budget Base (Greasy)
A141: WOOL- High Rainfall 28 mic 70%Yield | F141: 640.5
A142: - High Rainfall 19.5 mic 70% Yld | F142: 1274
A143: - Med Rainfall 21 mic 68% Yield | F143: 1210.4
A144: - Low Rainfall 22 mic 63% Yield | F144: 1111.95
A145: - Crossbred Ram 32 mic | F145: 310.4
A148: ="FARM COSTS - "&m_year -> FARM COSTS - 2021
A152: INSURANCE COSTS
A153: Livestock
A154: Sheep and cattle | B154: 2 | C154: /$1,000 insured
A157: FREIGHT COSTS | B157: Prime Lambs
A158: culls | B158: 4
A159: ewes | B159: 4
A160: prime lambs | B160: 4
A161: bales | B161: 15
A162: rams | B162: 4
A163: hoggets | B163: 4
A164: vealers | B164: 30
A166: BEEF
A167: Vealers | B167: 280 | C167: kg liveweight @ | D167: 4.2 | E167: /kg L/W
A168: Yearling | B168: 400 | C168: kg liveweight @ | D168: 3.9 | E168: /kg L/W
A169: Cows | B169: 550 | C169: kg liveweight @ | D169: 2.85 | E169: /kg L/W
A171: BEEF TRADING
A172: Vealers | B172: 280 | C172: kg liveweight @ | D172: 3 | E172: /kg L/W
A173: Yearling | B173: 420 | C173: kg liveweight @ | D173: 2.8 | E173: /kg L/W

Sheet Summary
B2: ="GROSS MARGINS SUMMARY - "&TEXT(m_year,"0000") -> GROSS MARGINS SUMMARY - 2021
D4: Gross Margin
B5: Type | C5: No of head
B6: Prime Lambs 1st Cross Ewes | C6: ='Prime Lambs Input'!E7*rng_Prime_Lambs_DATA -> 0 | D6: ='Prime Lambs'!Q174*rng_Prime_Lambs_DATA -> 0 | E6: ='Prime Lambs'!Q172*rng_Prime_Lambs_DATA -> 0 | F6: ='Prime Lambs'!Q37*rng_Prime_Lambs_DATA -> 0 | G6: ='Prime Lambs'!Q170*rng_Prime_Lambs_DATA -> 0
B7: Prime Lambs Maternal | C7: ='Prime Lambs Maternal Input'!E7*rng_Prime_Lambs_Maternal_DATA -> 0 | D7: ='Prime Lambs Maternal'!Q174*rng_Prime_Lambs_Maternal_DATA -> 0 | E7: ='Prime Lambs Maternal'!Q172*rng_Prime_Lambs_Maternal_DATA -> 0 | F7: ='Prime Lambs Maternal'!Q37*rng_Prime_Lambs_Maternal_DATA -> 0 | G7: ='Prime Lambs Maternal'!Q170*rng_Prime_Lambs_Maternal_DATA -> 0
B8: Prime Lambs Merino Ewes | C8: ='Prime Lambs Merino Ewes Input'!E7*rng_Prime_LambsMerino_DATA -> 0 | D8: ='Prime Lambs Merino Ewes'!Q174*rng_Prime_LambsMerino_DATA -> 0 | E8: ='Prime Lambs Merino Ewes'!Q172*rng_Prime_LambsMerino_DATA -> 0 | F8: ='Prime Lambs Merino Ewes'!Q37*rng_Prime_LambsMerino_DATA -> 0 | G8: ='Prime Lambs Merino Ewes'!Q170*rng_Prime_LambsMerino_DATA -> 0
B9: Lamb Trading High Rainfall | C9: ='Lamb Trading Input'!E7*rng_Lambtrading_DATA -> 0 | D9: ='Lamb Trading'!Q174*rng_Lambtrading_DATA -> 0 | E9: ='Lamb Trading'!Q172*rng_Lambtrading_DATA -> 0 | F9: ='Lamb Trading'!Q37*rng_Lambtrading_DATA -> 0 | G9: ='Lamb Trading'!Q170*rng_Lambtrading_DATA -> 0
B10: Merino SR | C10: ='Merino SR Input'!E8*rng_Merino_SR_DATA -> 0 | D10: ='Merino SR'!Q174*rng_Merino_SR_DATA -> 0 | E10: ='Merino SR'!Q172*rng_Merino_SR_DATA -> 0 | F10: ='Merino SR'!Q37*rng_Merino_SR_DATA -> 0 | G10: ='Merino SR'!Q170*rng_Merino_SR_DATA -> 0
B11: Wethers | C11: ='Wethers Input'!E7*rng_Whethers_DATA -> 0 | D11: =Wethers!Q7*rng_Whethers_DATA -> 0 | E11: =Wethers!Q172*rng_Whethers_DATA -> 0 | F11: =Wethers!Q37*rng_Whethers_DATA -> 0 | G11: =Wethers!Q170*rng_Whethers_DATA -> 0
B12: Cleanskin Sheep | C12: ='Cleanskin Sheep Input'!E7*rng_Cleanskin_Sheep_DATA -> 0 | D12: ='Cleanskin Sheep'!Q174*rng_Cleanskin_Sheep_DATA -> 0 | E12: ='Cleanskin Sheep'!Q172*rng_Cleanskin_Sheep_DATA -> 0 | F12: ='Cleanskin Sheep'!Q37*rng_Cleanskin_Sheep_DATA -> 0 | G12: ='Cleanskin Sheep'!Q170*rng_Cleanskin_Sheep_DATA -> 0
B13: Beef | C13: ='Beef Input'!E15*rng_Beef_DATA -> 0 | D13: =Beef!Q174*rng_Beef_DATA -> 0 | E13: =Beef!Q172*rng_Beef_DATA -> 0 | F13: =Beef!Q41*rng_Beef_DATA -> 0 | G13: =Beef!Q170*rng_Beef_DATA -> 0
B14: Beef Trading | C14: ='Beef Trading Input'!E10*rng_Beeftrading_DATA -> 0 | D14: ='Beef Trading'!Q174*rng_Beeftrading_DATA -> 0 | E14: ='Beef Trading'!Q172*rng_Beeftrading_DATA -> 0 | F14: ='Beef Trading'!Q41*rng_Beeftrading_DATA -> 0 | G14: ='Beef Trading'!Q170*rng_Beeftrading_DATA -> 0
B15: Beef Feed Lot | C15: =100*rng_Beeffeedlot_DATA -> 0 | D15: ='Beef Feed Lot'!Q172*rng_Beeffeedlot_DATA -> 0 | E15: =C15*D15*rng_Beeffeedlot_DATA -> 0 | F15: ='Beef Feed Lot'!Q41*C15*rng_Beeffeedlot_DATA -> 0 | G15: ='Beef Feed Lot'!Q170*C15*rng_Beeffeedlot_DATA -> 0
B16: TOTAL | E16: =SUM(E6:E15) -> 0 | F16: =SUM(F6:F15) -> 0 | G16: =SUM(G6:G15) -> 0

Sheet Prime Lambs Input (hidden)
C1: Prime Lambs (1st cross ewes)
C2: =UPPER(var_animal)&" GROSS MARGIN - "&TEXT(m_year,"0000") -> PRIME LAMBS (1ST CROSS EWES) GROSS MARGIN - 2021
C4: GENERAL INFORMATION
C5: This represents a First Cross Ewe enterprise (Merino X Border Liecester) mated to a terminal sire. All ewe replacements are purchased, but age of replacements can be varied from 1.5 years to 4.5 years. Following are the various assumptions used in the calculation of the Gross Margin. Cells with yellow highlight can be changed. No allowance has been made for pasture expenses such as seed, fertiliser and chemicals. Refer to pasture gross margins in the “Cropping Gross Margin Plan” for annual and perennial pasture costs. Use the livestock gross margin per DSE as income for the pasture gross margin.
C7: Ewes mated | E7: 1000
C8: Age ewes purchased | E8: 0.5
C9: Age ewes sold | E9: 6.5
C10: Av Weaning % | E10: 1.3
C11: Ram percentage | E11: 0.02
C12: Years Rams Kept | E12: 3
C13: Flock death Rate | E13: 0.03
C14: % Lambs carried over | E14: 0
C17: LIVESTOCK SALES | E17: Price/Hd | F17: Number | G17: Total
C18: c.f.a Ewes | E18: 170 | F18: ='Prime Lambs'!AG220 -> 182.3692879 | G18: =E18*ROUND(F18,0) -> 30940
C19: c.f.a Rams | E19: 100 | F19: ='Prime Lambs'!AG238 -> 6.270727266 | G19: =E19*ROUND(F19,0) -> 600
C20: Lambs | E20: 175 | F20: ='Prime Lambs'!AG227 -> 1300 | G20: =E20*ROUND(F20,0) -> 227500
C25: TOTAL SALES | F25: =SUM(F18:F23) -> 1488.640015 | G25: =SUM(G18:G23) -> 259040
C28: LIVESTOCK PURCHASES | E28: Price/Hd | F28: Number | G28: Total
C29: Ewes | E29: 200 | F29: ='Prime Lambs'!AD220 -> 213.5699335 | G29: =E29*F29 -> 42713.9867
C30: Rams | E30: 1850 | F30: =ROUND('Prime Lambs'!AD238,0) -> 7 | G30: =E30*F30 -> 12950
C32: TOTAL PURCHASES | F32: =SUM(F29:F30) -> 220.5699335 | G32: =SUM(G29:G30) -> 55663.9867
C35: WOOL PRICE (cents/kg) | F35: =TEXT(m_year-3,"0000")&" Average (Clean)" -> 2018 Average (Clean) | G35: =TEXT(m_year-2,"0000")&" Average (Clean)" -> 2019 Average (Clean) | H35: =TEXT(m_year-1,"0000")&" Average (Clean)" -> 2020 Average (Clean) | I35: Budget Base (Clean) | J35: Budget Base (Greasy)
E36: Wool- High Rainfall 28 mic 70% yield | F36: 867 | G36: 774 | H36: 756 | I36: 750 | J36: =I36*I37 -> 525
E37: Estimated wool yield | I37: 0.7
C38: Allow 90% to account for lower value of bellies, skirtings etc. | J38: =J36*0.9 -> 472.5
C42: WOOL SALES - SHEARING | F42: Wool Cut
E43: Number | F43: kg/hd | G43: Price | H43: Total
C44: Ewes | E44: ='Prime Lambs'!E226 -> 968.8208733 | F44: 3.5 | G44: 3.15 | H44: =E44*F44*G44 -> 10681.25013
C45: Crossbred Rams | E45: ='Prime Lambs'!E227 -> 19.4 | F45: 2.5 | G45: 1.61 | H45: =E45*F45*G45 -> 78.085
C47: TOTAL | E47: =SUM(E44:E46) -> 988.2208733 | F47: =(E44*F44)+(E45*F45) -> 3439.373056 | H47: =SUM(H44:H46) -> 10759.33513
C50: STOCK HEALTH REQUIREMENTS | E50: =HYPERLINK("http://paraboss.com.au","for more info on drench, lice and blowfly product selection refer to www.paraboss.com.au") -> for more info on drench, lice and blowfly product selection refer to www.paraboss.com.au
G51: Number of times
E52: Number | F52: Drench | G52: Vacc. | H52: Blowfly
C53: Ewes | E53: ='Prime Lambs'!E219 -> 1000 | F53: 2 | G53: 1 | H53: 1
C54: Rams | E54: ='Prime Lambs'!E220 -> 20 | F54: 2 | G54: 1 | H54: 0
C55: Lambs | E55: ='Prime Lambs'!E221 -> 1300 | F55: 1 | G55: 2 | H55: 0
C57: TOTAL | E57: =SUM(E53:E55) -> 2320 | F57: =SUMPRODUCT($E$53:$E$55,F53:F55) -> 3340 | G57: =SUMPRODUCT($E$53:$E$55,G53:G55) -> 3620 | H57: =SUMPRODUCT($E$53:$E$55,H53:H55) -> 1000
C60: FEEDING
C61: HAY | F61: Hay | G61: Kgs Fed | H61: No Weeks | I61: Total
E62: Number | F62: Cost ($/T) | G62: per Week | H62: of Feeding | I62: Cost ($)
C63: Ewes | E63: ='Prime Lambs'!E219 -> 1000 | F63: 230 | G63: 2.5 | H63: 8 | I63: =(H63*G63*E63)/1000*F63 -> 4600
C64: Rams | E64: ='Prime Lambs'!E220 -> 20 | F64: 230 | G64: 2.5 | H64: 8 | I64: =(H64*G64*E64)/1000*F64 -> 92
C66: Lambs | I66: =(H66*G66*E66)/1000*F66 -> 0
C68: GRAIN | F68: Grain | G68: Kgs Fed | H68: No weeks | I68: Total
E69: Number | F69: Cost ($/T) | G69: per week | H69: of Feeding | I69: Cost ($)
C70: Ewes | E70: ='Prime Lambs'!E219 -> 1000 | F70: 220 | G70: 3 | H70: 8 | I70: =(H70*G70*E70)/1000*F70 -> 5280
C71: Rams | E71: ='Prime Lambs'!E220 -> 20 | F71: 220 | G71: 3 | H71: 10 | I71: =(H71*G71*E71)/1000*F71 -> 132
C72: Lambs | I72: =(H72*G72*E72)/1000*F72 -> 0
H74: Total Feed Cost | I74: =SUM(I63:I66,I70:I72) -> 10104

Sheet Prime Lambs (hidden)
C1: Prime Lambs (1st cross ewes)
C2: =UPPER(Var_Animal)&" GROSS MARGIN - "&TEXT(m_year,"0000") -> PRIME LAMBS (1ST CROSS EWES) GROSS MARGIN - 2021
C4: ASSUMPTIONS
C6: Ave Breeding Ewe Fibre Diameter | E6: 28 | O6: Total DSE's | Q6: =E197 -> 1840
C7: No. of breeding ewes (1st Cross) | E7: ='Prime Lambs Input'!$E$7 -> 1000
C8: 1st cross ewe - Terminal meat sire
C32: INCOME | Q32: $
C34: Wool (kg greasy) | E34: =G234 -> 3439.373056 | G34: kg | I34: av price | K34: =K234*100/G234*0.9 -> 281.545545 | M34: c/kg | Q34: =K234 -> 10759.33513
C35: Sales | E35: =E212 -> 1488.640015 | G35: animals | I35: av price | K35: =G212 -> 174.0111762 | M35: /head | Q35: =E212*G212 -> 259040
C37: Gross Income | Q37: =SUM(Q34:Q35) -> 269799.3351
AA45: STOCK VALUE AND D.S.E REQUIREMENT | AG45: Non lamb related expenses | AM45: Lamb Costs | AN45: No: | AO45: per head | AS45: SHEEP GROSS MARGIN
C46: VARIABLE COSTS | AC46: Value | AD46: Ave Live | AE46: DSE | AS46: PRIME LAMB -
C47: Shearing | K47: Rate | AB47: Number | AC47: $/head | AD47: Wt (Kgs) | AE47: rating | AG47: Shearing | AJ47: =SUM(Q48:Q58) -> 8686.030386 | AM47: Marking | AN47: =$E$121 -> 1300 | AO47: =K76+K77 -> 1.52 | AP47: =AN47*AO47 -> 1976
C48: Shearing | E48: =E226 -> 968.8208733 | G48: sheep | I48: Reset Rate> | J48: =GM_INFO!C30 | K48: =GM_INFO!C77 -> 324.31 | M48: /100 | Q48: =K48/100*ROUND(E48,0) -> 3142.5639 | AA48: ewes | AB48: ='Prime Lambs Input'!$E$7 -> 1000 | AC48: =(G209+G214)/2 -> 185 | AD48: 60 | AE48: =IF(AND(AD48>=55,AD48<60),1.7,IF(AND(AD48>=60,AD48<65),1.8,IF(AND(AD48>=65,AD48<70),1.9,IF(AND(AD48>=70,AD48<75),2,IF(AND(AD48>=75,AD48<80),2.1,IF(AND(AD48>=80,AD48<85),2.2,IF(AND(AD48>=85,AD48<90),2.3,IF(AD48>=90,2.4,0)))))))) -> 1.8 | AG48: Animal health | AJ48: =(E219*G219+E220*G220)*K90+(E219*I219+E220*I220)*K91+(E219*K219)*K92 -> 2402.1384 | AM48: Animal health | AN48: =$E$121 -> 1300 | AO48: =G220*K91+I220*K90 -> 1.01484 | AP48: =AN48*AO48 -> 1319.292
C49: (Federal awards) | E49: =E227 -> 19.4 | G49: rams | I49: Reset Rate> | J49: =GM_INFO!C31 | K49: =GM_INFO!C78 -> 648.62 | M49: /100 | Q49: =K49/100*ROUND(E49,0) -> 123.2378 | AA49: rams | AB49: ='Prime Lambs Input'!E11*'Prime Lambs'!AB48 -> 20 | AC49: =(G210+G215)/2 -> 975 | AD49: 100 | AE49: 2 | AG49: Stock Purchase | AJ49: =SUM(Q105:Q105) -> 55424.83214 | AM49: Freight | AN49: =$E$121 -> 1300 | AO49: =K121 -> 4 | AP49: =AN49*AO49 -> 5200
C50: Shed labour | E50: 5 | G50: days | I50: Reset Rate> | J50: =GM_INFO!C32 | K50: =GM_INFO!C79 -> 245.56 | M50: /day | Q50: =K50*ROUND(E50,0) -> 1227.8 | AA50: lambs | AB50: =AC227 -> 1300 | AC50: =G211/2 -> 87.5 | AD50: 35 | AE50: 0 | AG50: Freight | AH50: sheep | AJ50: =SUM(Q119:Q120) -> 1610.279734 | AM50: Yard Fees | AN50: =$E$121 -> 1300 | AO50: =K125 -> 0.85 | AP50: =AN50*AO50 -> 1105
C51: Woolclasser | E51: 2.5 | G51: days | I51: Reset Rate> | J51: =GM_INFO!C33 | K51: =GM_INFO!C80 -> 312.11 | M51: /day | Q51: =K51*E51 -> 780.275 | AA51: TOTAL | AB51: =SUM(AB48:AB50) -> 2320 | AC51: =AB48*AC48+AB49*AC49+AB50*AC50/2 -> 261375 | AH51: Wool | AJ51: =Q122 -> 300 | AM51: Levies | AN51: =$E$121 -> 1300 | AO51: =K127+K128 -> 2.17 | AP51: =AN51*AO51 -> 2821 | AS51: Ewes mated | AU51: ='Prime Lambs Input'!$E$7 -> 1000 | AX51: Ram % | AY51: =E200 -> 0.02
C52: Superannuation (on ord wages only) | I52: Reset Rate> | J52: =GM_INFO!C34 | K52: =GM_INFO!C81 -> 0.095 | M52: wages | Q52: =(Q48+Q49+Q50+Q51)*K52 -> 501.0182865 | AG52: Commission on livestock sales | AJ52: =(K209+K210)*K124 -> 1892.4 | AO52: =SUM(AO47:AO51) -> 9.55484 | AQ52: =AO52*AD50 -> 334.4194 | AS52: Age ewes purchased | AU52: =E201 -> 0.5 | AX52: Price of rams | AY52: =AL68 -> 0
C53: W/Cover (incl. super + otime etc) | I53: Reset Rate> | J53: =GM_INFO!C35 | K53: =GM_INFO!C82 -> 0.04 | M53: total | Q53: =(Q48+Q49+Q50+Q51+Q52)*K53 -> 230.9957995 | AG53: Yard fees | AJ53: =E119*K125 -> 160.3440129 | AM53: Commission | AN53: =$E$121 -> 1300 | AO53: =G212 -> 174.0111762 | AP53: =K124 -> 0.06 | AQ53: =AD50*AO53*AP53 -> 365.42347 | AS53: Age ewes sold | AU53: =E202 -> 6.5 | AX53: Years rams kept | AY53: =E203 -> 3
C54: Wool packs | E54: 20 | G54: packs | I54: Reset Rate> | J54: =GM_INFO!C28 | K54: =GM_INFO!C75 -> 12 | M54: /pack | Q54: =K54*ROUND(E54,0) -> 240 | AG54: Levies | AJ54: =E126*(K126+K128) -> 164.1168132 | AS54: Av Weaning % | AU54: ='Prime Lambs Input'!E10 -> 1.3 | AX54: Age wethers sold | AY54: 0.5
C55: Shed sundries | E55: =E48+E49 -> 988.2208733 | G55: sheep | I55: Reset Rate> | J55: =GM_INFO!C36 | K55: =GM_INFO!C83 -> 0.2 | M55: /head | Q55: =K55*ROUND(E55,0) -> 197.6 | AG55: Wool Selling Charges | AJ55: =Q130+Q131 -> 1090.020752 | AQ55: =SUM(AQ43:AQ53) -> 699.84287 | AS55: dse/ewe | AU55: =AE48 -> 1.8 | AX55: Flock death rate | AY55: =E204 -> 0.03
C56: Lice control | E56: =E48+E49 -> 988.2208733 | G56: sheep | I56: Reset Rate> | J56: =GM_INFO!C19 | K56: =GM_INFO!C66 -> 1.2912 | M56: /head | Q56: =K56*ROUND(E56,0) -> 1275.7056 | AG56: Feed & other costs | AJ56: =SUM(Q144:Q149) -> 16514.75
C57: Crutch & Wig | E57: 990 | G57: ewes | I57: Reset Rate> | J57: =GM_INFO!C38 | K57: =GM_INFO!C85 -> 94.05 | M57: /100 | Q57: =K57/100*ROUND(E57,0) -> 931.095 | AK57: =SUM(AJ47:AJ56) -> 88244.91224
E58: =E49 -> 19.4 | G58: rams | I58: Reset Rate> | J58: =GM_INFO!C39 | K58: =GM_INFO!C86 -> 188.1 | M58: /100 | Q58: =K58/100*ROUND(E58,0) -> 35.739
AS60: EWES | AT60: OPENING | AU60: NATURAL | AV60: PURCHASES | AW60: DEATHS | AX60: % sold | AY60: SALES | AZ60: CLOSING
AS61: AGE | AT61: NUMBERS | AU61: INCREASE | AX61: culled | AZ61: NUMBERS
AS63: 0.5-1.5yr | AV63: =IF($N$78=1.5,AT64,AT63-AW63) -> 0 | AY63: =AT63-AW63 -> 0 | AZ63: =AT63+AU63+AV63-AW63-AY63 -> 0
AS64: 1.5-2.5yr | AT64: =IF(AU52=1.5,AU51/(1+(1-AY55)*(1-AX64)*(1+(1-AY55)*(1-AX65)*(1+(1-AY55)*(1-AX66)*(1+(1-AY55)*(1-AX67))))),0) -> 0 | AV64: =IF(AU52=2.5,AT65-AY64,0) -> 0 | AW64: =AT64*$R$81 -> 0 | AY64: =(AT64-AW64)*AX64 -> 0 | AZ64: 0
AS65: 2.5-3.5yr | AT65: =IF(AU52=2.5,AU51/(1+(1-AY55)*(1-AX65)*(1+(1-AY55)*(1-AX66)*(1+(1-AY55)*(1-AX67)))),AZ64) -> 0 | AV65: =IF(AU52=3.5,AT66-AY65,0) -> 0 | AW65: =AT65*$R$81 -> 0 | AY65: =(AT65-AW65)*AX65 -> 0 | AZ65: 0
AS66: 3.5-4.5yr | AT66: =IF(AU52=3.5,AU51/(1+(1-AY55)*(1-AX66)*(1+(1-AY55)*(1-AX67))),AZ65) -> 0 | AV66: =IF(AU52=4.5,AT67-AY66,0) -> 0 | AW66: =AT66*$R$81 -> 0 | AY66: =(AT66-AW66)*AX66 -> 0 | AZ66: 0
AS67: 4.5-5.5yr | AT67: =IF(AU52=4.5,AU51/(1+(1-AY55)*(1-AX67)),AZ66) -> 0 | AW67: =AT67*$R$81 -> 0 | AX67: =IF(AU53=5.5,1,0) -> 0 | AY67: =(AT67-AW67)*AX67 -> 0 | AZ67: 0
AS68: 5.5-6.5yr | AT68: =AZ67 -> 0 | AW68: =AT68*$R$81 -> 0 | AX68: =IF(AU53=6.5,1,0) -> 1 | AY68: =(AT68-AW68)*AX68 -> 0 | AZ68: 0
AS69: Ewes | AT69: =SUM(AT64:AT68) -> 0 | AV69: =AV63+AV64+AV65+AV66 -> 0 | AW69: =SUM(AW63:AW68) -> 0 | AY69: =SUM(AY64:AY68) -> 0 | AZ69: =SUM(AZ63:AZ67) -> 0
AS70: d.s.e's | AT70: =AT63+AT69*AU55 -> 0
AS73: LAMBS | AT73: OPENING | AU73: NATURAL | AV73: PURCHASES | AW73: DEATHS | AX73: % sold | AY73: SALES | AZ73: CLOSING
AS74: AGE | AT74: NUMBERS | AU74: INCREASE | AX74: culled | AZ74: NUMBERS
C75: Marking
C76: Lamb marking | E76: =AC227 -> 1300 | G76: lambs | I76: Reset Rate> | J76: =GM_INFO!C42 | K76: =GM_INFO!C89 -> 1.15 | M76: /head | Q76: =K76*ROUND(E76,0) -> 1495 | AS76: 0-0.5yr | AU76: =AU51*AU54 -> 1300 | AX76: 1 | AY76: =AU76*AX76 -> 1300 | AZ76: =AT76+AU76+AV76-AW76-AY76 -> 0
C77: Ear tags | E77: =AC227 -> 1300 | G77: lambs | I77: Reset Rate> | J77: =GM_INFO!C43 | K77: =GM_INFO!C90 -> 0.37 | M77: /head | Q77: =K77*ROUND(E77,0) -> 481
AS79: RAMS | AT79: OPENING | AU79: NATURAL | AV79: PURCHASES | AW79: DEATHS | AX79: % sold | AY79: SALES | AZ79: CLOSING
AS80: AGE | AT80: NUMBERS | AU80: INCREASE | AX80: culled | AZ80: NUMBERS
AS82: 0.5-1.5yr | AV82: =AT83/(1-AX82) -> 6.870727266 | AW82: =AT82*$R$81 -> 0 | AZ82: =AT82+AU82+AV82-AW82-AY82 -> 6.870727266
AS83: 1.5-2.5yr | AT83: =IF(AY53=3,(AU51*AY51)/(1+(1-AY55)*(1-AX83)*(1+(1-AY55)*(1-AX84)*(1+(1-AY55)*(1-AX85)))),IF(AY53=4,(AU51*AY51)/(1+(1-AY55)*(1-AX83)*(1+(1-AY55)*(1-AX84)*(1+(1-AY55)*(1-AX85)*(1+(1-AY55)*(1-AX86))))),0)) -> 6.870727266 | AW83: =AT83*$R$81 -> 0 | AZ83: =AT83+AU83+AV83-AW83-AY83 -> 6.870727266
AS84: 2.5-3.5yr | AT84: =AZ83 -> 6.870727266 | AW84: =AT84*$R$81 -> 0 | AZ84: =AT84+AU84+AV84-AW84-AY84 -> 6.870727266
AS85: 3.5-4.5yr | AT85: =AZ84 -> 6.870727266 | AW85: =AT85*$R$81 -> 0 | AX85: =IF(AY53=3,100%,0) -> 1 | AY85: =(AT85-AW85)*AX85 -> 6.870727266 | AZ85: =AT85+AU85+AV85-AW85-AY85 -> 0
AS86: 4.5-5.5yr | AT86: =AZ85 -> 0 | AW86: =AT86*$R$81 -> 0 | AX86: =IF(AY53=4,100%,0) -> 0 | AY86: =AT86-AW86 -> 0 | AZ86: =AT86+AU86+AV86-AW86-AY86 -> 0
AT87: =AT82+AT83+AT84+AT85+AT86 -> 20.6121818 | AV87: =AV82+AV83+AV84+AV85+AV86 -> 6.870727266 | AW87: =AW82+AW83+AW84+AW85+AW86 -> 0 | AY87: =AY82+AY83+AY84+AY85+AY86 -> 6.870727266 | AZ87: =AZ82+AZ83+AZ84+AZ85+AZ86 -> 20.6121818
AS88: d.s.e's | AT88: =AT87*AE49 -> 41.2243636
C89: Animal Health
C90: Drench | E90: =G222 -> 3340 | G90: sheep | I90: Reset Rate> | J90: =GM_INFO!C21 | K90: =GM_INFO!C68 -> 0.417 | M90: /head | Q90: =K90*ROUND(E90,0) -> 1392.78
C91: Vaccinate | E91: =I222 -> 3620 | G91: sheep | I91: Reset Rate> | J91: =GM_INFO!C25 | K91: =GM_INFO!C72 -> 0.29892 | M91: /head | Q91: =K91*ROUND(E91,0) -> 1082.0904
C92: Blowfly control | E92: =K222 -> 1000 | G92: sheep | I92: Reset Rate> | J92: =GM_INFO!C27 | K92: =GM_INFO!C74 -> 1.24656 | M92: /head | Q92: =K92*ROUND(E92,0) -> 1246.56
C104: Stock purchases
C105: Purchases | Q105: =K214+K215 -> 55424.83214
C117: Sale Costs
C118: Freight
C119: Livestock | E119: =SUM(E209:E210) -> 188.6400152 | G119: culls | I119: Reset Rate> | J119: =GM_INFO!B111 | K119: =GM_INFO!B158 -> 4 | M119: /head | Q119: =K119*ROUND(E119,0) -> 756
E120: =E214 -> 213.5699335 | G120: ewes | I120: Reset Rate> | J120: =GM_INFO!B112 | K120: =GM_INFO!B159 -> 4 | M120: /head | Q120: =K120*E120 -> 854.2797339
E121: =E211 -> 1300 | G121: prime lambs | I121: Reset Rate> | J121: =GM_INFO!B113 | K121: =GM_INFO!B160 -> 4 | M121: /head | Q121: =K121*ROUND(E121,0) -> 5200
C122: Wool | E122: =G234/170 -> 20.23160621 | G122: bales | I122: Reset Rate> | J122: =GM_INFO!B114 | K122: =GM_INFO!B161 -> 15 | M122: /bale | Q122: =K122*ROUND(E122,0) -> 300
C123: Stock selling charges
C124: Commission/insurance | I124: Reset Rate> | J124: =GM_INFO!C48 | K124: =GM_INFO!C95 -> 0.06 | M124: gross $ | Q124: =K124*Q35 -> 15542.4
C125: Yard fees | E125: =E212 -> 1488.640015 | G125: sheep | I125: Reset Rate> | J125: =GM_INFO!C49 | K125: =GM_INFO!C96 -> 0.85 | M125: /head | Q125: =K125*ROUND(E125,0) -> 1265.65
C126: Levy-sheep | E126: =E119 -> 188.6400152 | G126: sheep | I126: Reset Rate> | J126: =GM_INFO!C50 | K126: =GM_INFO!C97 -> 0.2 | M126: /head | Q126: =K126*ROUND(E126,0) -> 37.8
C127: Levy-lambs | E127: =E211 -> 1300 | G127: sheep | I127: Reset Rate> | J127: =GM_INFO!C51 | K127: =GM_INFO!C98 -> 1.5 | M127: /head | Q127: =K127*ROUND(E127,0) -> 1950
C128: SA sheep industry levy | E128: =E212 -> 1488.640015 | G128: sheep | I128: Reset Rate> | J128: =GM_INFO!C52 | K128: =GM_INFO!C99 -> 0.67 | M128: /head | Q128: =K128*ROUND(E128,0) -> 997.63
C129: Wool selling charges
C130: Brokerage/testing/insurance | I130: Reset Rate> | J130: =GM_INFO!C53 | K130: =GM_INFO!C100 -> 0.27 | M130: /kg | Q130: =K130*E34 -> 928.6307252
C131: Wool levy | I131: Reset Rate> | J131: =GM_INFO!C54 | K131: =GM_INFO!C101 -> 0.015 | M131: gross | Q131: =K131*Q34 -> 161.3900269
C143: Feed and Other Costs
C144: Hay | Q144: =SUM('Prime Lambs Input'!I63:I65) -> 4692
C145: Grain | Q145: =SUM('Prime Lambs Input'!I70:I72) -> 5412
C146: Insurance | E146: =AC51 -> 261375 | G146: value | I146: Reset Rate> | J146: =GM_INFO!B107 | K146: =GM_INFO!B154 -> 2 | M146: /$'000 | Q146: =K146/1000*E146 -> 522.75
C147: Water | E147: =$Q$6 -> 1840 | G147: DSE's | I147: Reset Rate> | J147: =GM_INFO!D79 | K147: =GM_INFO!D126 -> 1.5 | M147: /DSE's | Q147: =K147*E147 -> 2760
C148: Veh Fuel, R&M | E148: =$Q$6 -> 1840 | G148: DSE's | I148: Reset Rate> | J148: =GM_INFO!D80 | K148: =GM_INFO!D127 -> 1.2 | M148: /DSE's | Q148: =K148*E148 -> 2208
C149: Other | E149: =$Q$6 -> 1840 | G149: DSE's | I149: Reset Rate> | J149: =GM_INFO!D81 | K149: =GM_INFO!D128 -> 0.5 | M149: /DSE's | Q149: =K149*E149 -> 920
C170: TOTAL VARIABLE COSTS | Q170: =SUM(Q48:Q166) -> 114316.8234
C172: GROSS MARGIN TOTAL | Q172: =Q37-Q170 -> 155482.5117
C174: GROSS MARGIN/DSE | Q174: =Q172/Q6 -> 84.50136506
C194: PRODUCTION DATA
C196: Stocking rate (DSE/Ha) | E196: 6 | K196: Culling Rate (% from each group) | AA196: SHEEP GROSS MARGIN
C197: Total DSE's | E197: =SUMPRODUCT(AB48:AB50,AE48:AE50) -> 1840 | K197: Age Group | M197: Ewes | O197: Wethers | AA197: PRIME LAMB -
C198: SHEEP GRAZING AREA | E198: =E197/E196 -> 306.6666667 | K198: 0.5 | M198: =AF214 -> 0
C199: Number of ewes mated | E199: ='Prime Lambs Input'!E7 -> 1000 | K199: 1.5 | M199: 0
C200: Ram percentage | E200: ='Prime Lambs Input'!E11 -> 0.02 | K200: 2.5 | M200: 0
C201: Age ewes bought (yrs) | E201: ='Prime Lambs Input'!E8 -> 0.5 | K201: 3.5 | M201: 0
C202: Age ewes culled | E202: ='Prime Lambs Input'!E9 -> 6.5 | K202: 4.5 | M202: 0 | AA202: Ewes mated | AC202: ='Prime Lambs Input'!E7 -> 1000 | AF202: Ram % | AG202: =E200 -> 0.02
B203: =VLOOKUP(r[0]c3&"No Ops",CHOOSE({1,2},tbl_ops[Name]&tbl_ops[Category],INDIRECT("tbl_ops["&var_crop&"]")),2,0) | C203: Years rams kept | E203: ='Prime Lambs Input'!E12 -> 3 | K203: 5.5 | M203: 1 | AA203: Age ewes purchased | AC203: =E201 -> 0.5 | AF203: Price of rams | AG203: =G215 -> 1850
B204: =VLOOKUP(r[0]c3&"No Ops",CHOOSE({1,2},tbl_ops[Name]&tbl_ops[Category],INDIRECT("tbl_ops["&var_crop&"]")),2,0) | C204: Flock death rate | E204: ='Prime Lambs Input'!E13 -> 0.03 | K204: 6.5 | M204: 0 | AA204: Age ewes sold | AC204: =E202 -> 6.5 | AF204: Years rams kept | AG204: =E203 -> 3
B205: =VLOOKUP(r[0]c3&"No Ops",CHOOSE({1,2},tbl_ops[Name]&tbl_ops[Category],INDIRECT("tbl_ops["&var_crop&"]")),2,0) | C205: Average weaning rate | E205: =AC205 -> 1.3 | AA205: Av Weaning % | AC205: ='Prime Lambs Input'!E10 -> 1.3 | AF205: Age wethers sold | AG205: 0.5
B206: =VLOOKUP(r[0]c3&"No Ops",CHOOSE({1,2},tbl_ops[Name]&tbl_ops[Category],INDIRECT("tbl_ops["&var_crop&"]")),2,0) | C206: % Lambs carried over | E206: 0 | AA206: dse/ewe | AC206: =AE48 -> 1.8 | AF206: Flock death rate | AG206: =E204 -> 0.03
B207: =VLOOKUP(r[0]c3&var_rain,CHOOSE({1,2},tbl_ops[Name]&tbl_ops[Rainfall],INDIRECT("tbl_ops["&var_crop&"]")),2,0)
B208: =VLOOKUP(r[0]c3&var_rain,CHOOSE({1,2},tbl_ops[Name]&tbl_ops[Rainfall],INDIRECT("tbl_ops["&var_crop&"]")),2,0) | C208: SALES | E208: Number | G208: Price/hd | I208: Age | K208: Total
B209: =VLOOKUP(r[0]c3&var_rain,CHOOSE({1,2},tbl_ops[Name]&tbl_ops[Rainfall],INDIRECT("tbl_ops["&var_crop&"]")),2,0) | C209: c.f.a ewes | E209: =AG220 -> 182.3692879 | G209: ='Prime Lambs Input'!E18 -> 170 | I209: =E202 -> 6.5 | K209: =ROUND(E209,0)*G209 -> 30940
B210: =VLOOKUP(r[0]c3&var_rain,CHOOSE({1,2},tbl_ops[Name]&tbl_ops[Rainfall],INDIRECT("tbl_ops["&var_crop&"]")),2,0) | C210: c.f.a rams | E210: =AG238 -> 6.270727266 | G210: ='Prime Lambs Input'!E19 -> 100 | I210: =E203+1.5 -> 4.5 | K210: =ROUND(E210,0)*G210 -> 600
C211: Lambs | E211: =AG227 -> 1300 | G211: ='Prime Lambs Input'!E20 -> 175 | I211: 20 Weeks | K211: =ROUND(E211,0)*G211 -> 227500 | AA211: EWES | AB211: OPENING | AC211: NATURAL | AD211: PURCHASES | AE211: DEATHS | AF211: % sold | AG211: SALES | AH211: CLOSING
C212: TOTAL | E212: =SUM(E209:E211) -> 1488.640015 | G212: =K212/E212 -> 174.0111762 | K212: =SUM(K209:K211) -> 259040 | AA212: AGE | AB212: NUMBERS | AC212: INCREASE | AF212: culled | AH212: NUMBERS
C213: PURCHASES | E213: Number | G213: Price/hd | I213: Age | K213: Total | AD213: =IF($AC$203=0.5,AB214,AB213-AE213) -> 213.5699335
C214: Ewes | E214: =AD220 -> 213.5699335 | G214: ='Prime Lambs Input'!E29 -> 200 | I214: =E201 -> 0.5 | K214: =E214*G214 -> 42713.9867 | AA214: 0.5-1.5yr | AB214: =IF(AC203=0.5,AC202/(1+(1-AG206)*(1-AF214)*(1+(1-AG206)*(1-AF215)*(1+(1-AG206)*(1-AF216)*(1+(1-AG206)*(1-AF217)*(1+(-AG206)*(1-AF218)))))),0) -> 213.5699335 | AD214: =IF($AC$203=1.5,AB214-AE214,0) -> 0 | AE214: 1.2 | AG214: =(AB214-AE214)*AF214 -> 0 | AH214: =AB214+AC214+AD214-AE214-AG214 -> 212.3699335
C215: Rams | E215: =AD238 -> 6.870727266 | G215: ='Prime Lambs Input'!E30 -> 1850 | I215: 1.5 | K215: =E215*G215 -> 12710.84544 | AA215: 1.5-2.5yr | AB215: =IF(AC203=1.5,AC202/(1+(1-AG206)*(1-AF215)*(1+(1-AG206)*(1-AF216)*(1+(1-AG206)*(1-AF217)*(1+(1-AG206)*(1-AF218))))),AH214) -> 212.3699335 | AD215: =IF(AC203=2.5,AB216-AG215,0) -> 0 | AE215: =AB215*AG206 -> 6.371098004 | AG215: 0 | AH215: 205.9988355
AA216: 2.5-3.5yr | AB216: =IF(AC203=2.5,AC202/(1+(1-AG206)*(1-AF216)*(1+(1-AG206)*(1-AF217)*(1+(1-AG206)*(1-AF218)))),AH215) -> 205.9988355 | AD216: =IF(AC203=3.5,AB217-AG216,0) -> 0 | AE216: =AB216*AG206 -> 6.179965064 | AG216: 0 | AH216: 199.8188704
E217: Number of Times | AA217: 3.5-4.5yr | AB217: =IF(AC203=3.5,AC202/(1+(1-AG206)*(1-AF217)*(1+(1-AG206)*(1-AF218))),AH216) -> 199.8188704 | AD217: =IF(AC203=4.5,AB218-AG217,0) -> 0 | AE217: =AB217*AG206 -> 5.994566112 | AG217: 0 | AH217: 193.8243043
C218: STOCK HEALTH REQUIREMENTS | E218: Number | G218: Drench | I218: Vacc. | K218: Blowfly | M218: DSE | AA218: 4.5-5.5yr | AB218: =IF(AC203=4.5,AC202/(1+(1-AG206)*(1-AF218)),AH217) -> 193.8243043 | AE218: =AB218*AG206 -> 5.814729129 | AF218: =IF(AC204=5.5,1,0) -> 0 | AG218: 0 | AH218: 188.0095752
C219: Ewes | E219: ='Prime Lambs Input'!E7 -> 1000 | G219: ='Prime Lambs Input'!F53 -> 2 | I219: ='Prime Lambs Input'!G53 -> 1 | K219: ='Prime Lambs Input'!H53 -> 1 | M219: 1.8 | AA219: 5.5-6.5yr | AB219: =AH218 -> 188.0095752 | AE219: =AB219*AG206 -> 5.640287255 | AF219: =IF(AC204=6.5,1,0) -> 1 | AG219: 182.3692879 | AH219: 0
C220: Rams | E220: =AB49 -> 20 | G220: ='Prime Lambs Input'!F54 -> 2 | I220: ='Prime Lambs Input'!G54 -> 1 | K220: ='Prime Lambs Input'!H54 -> 0 | M220: 2 | AA220: Ewes | AB220: =SUM(AB215:AB219) -> 1000.021519 | AD220: =AD214+AD215+AD216+AD217+AD213 -> 213.5699335 | AE220: =SUM(AE214:AE219) -> 31.20064556 | AG220: =SUM(AG215:AG219) -> 182.3692879 | AH220: =SUM(AH214:AH218) -> 1000.021519
C221: Lambs | E221: =AC227 -> 1300 | G221: ='Prime Lambs Input'!F55 -> 1 | I221: ='Prime Lambs Input'!G55 -> 2 | K221: ='Prime Lambs Input'!H55 -> 0 | AA221: d.s.e's | AB221: =AB214+AB220*AC206 -> 2013.608667
C222: TOTAL | E222: =SUM(E219:E221) -> 2320 | G222: =SUMPRODUCT($E$219:$E$221,G219:G221) -> 3340 | I222: =SUMPRODUCT($E$219:$E$221,I219:I221) -> 3620 | K222: =SUMPRODUCT($E$219:$E$221,K219:K221) -> 1000 | M222: =SUMPRODUCT($E$219:$E$221,M219:M221) -> 1840
G224: Wool Cut kg/hd | AA224: LAMBS | AB224: OPENING | AC224: NATURAL | AD224: PURCHASES | AE224: DEATHS | AF224: % sold | AG224: SALES | AH224: CLOSING
C225: SHEARING | E225: Number | I225: Price | K225: Total | AA225: AGE | AB225: NUMBERS | AC225: INCREASE | AF225: culled | AH225: NUMBERS
C226: Ewes | E226: =AB220-AE220 -> 968.8208733 | G226: ='Prime Lambs Input'!F44 -> 3.5 | I226: ='Prime Lambs Input'!G44 -> 3.15 | K226: =I226*G226*E226 -> 10681.25013
C227: Crossbred rams | E227: =AB238-AE238 -> 19.4 | G227: ='Prime Lambs Input'!F45 -> 2.5 | I227: ='Prime Lambs Input'!G45 -> 1.61 | K227: =I227*G227*E227 -> 78.085 | AA227: 0-0.5yr | AC227: =AC202*AC205 -> 1300 | AF227: 1 | AG227: =AC227*AF227 -> 1300 | AH227: =AB227+AC227+AD227-AE227-AG227 -> 0
AA230: RAMS | AB230: OPENING | AC230: NATURAL | AD230: PURCHASES | AE230: DEATHS | AF230: % sold | AG230: SALES | AH230: CLOSING
AA231: AGE | AB231: NUMBERS | AC231: INCREASE | AF231: culled | AH231: NUMBERS
AA233: 0.5-1.5yr | AD233: =AB234/(1-AF233) -> 6.870727266 | AE233: =AB233*$AG$206 -> 0 | AH233: =AB233+AC233+AD233-AE233-AG233 -> 6.870727266
C234: TOTAL | E234: =SUM(E226:E233) -> 988.2208733 | G234: =SUMPRODUCT(E226:E233,G226:G233) -> 3439.373056 | K234: =SUM(K226:K233) -> 10759.33513 | AA234: 1.5-2.5yr | AB234: =IF(AG204=3,(AC202*AG202)/(1+(1-AG206)*(1-AF234)*(1+(1-AG206)*(1-AF235)*(1+(1-AG206)*(1-AF236)))),IF(AG204=4,(AC202*AG202)/(1+(1-AG206)*(1-AF234)*(1+(1-AG206)*(1-AF235)*(1+(1-AG206)*(1-AF236)*(1+(1-AG206)*(1-AF237))))),0)) -> 6.870727266 | AE234: =AB234*$AG$206 -> 0.206121818 | AH234: =AB234+AC234+AD234-AE234-AG234 -> 6.664605448
AA235: 2.5-3.5yr | AB235: =AH234 -> 6.664605448 | AE235: =AB235*$AG$206 -> 0.1999381635 | AH235: =AB235+AC235+AD235-AE235-AG235 -> 6.464667285
AA236: 3.5-4.5yr | AB236: =AH235 -> 6.464667285 | AE236: =AB236*$AG$206 -> 0.1939400186 | AF236: =IF(AG204=3,100%,0) -> 1 | AG236: =(AB236-AE236)*AF236 -> 6.270727266 | AH236: =AB236+AC236+AD236-AE236-AG236 -> 0
G237: Hay Cost ($/T) | I237: Kg Fed per Week | K237: No of Weeks Feeding | M237: Total Cost ($) | AA237: 4.5-5.5yr | AB237: =AH236 -> 0 | AE237: =AB237*$AG$206 -> 0 | AF237: =IF(AG204=4,100%,0) -> 0 | AG237: =AB237-AE237 -> 0 | AH237: =AB237+AC237+AD237-AE237-AG237 -> 0
C238: FEEDING | E238: Number | AB238: =AB233+AB234+AB235+AB236+AB237 -> 20 | AD238: =AD233+AD234+AD235+AD236+AD237 -> 6.870727266 | AE238: =AE233+AE234+AE235+AE236+AE237 -> 0.6 | AG238: =AG233+AG234+AG235+AG236+AG237 -> 6.270727266 | AH238: =AH233+AH234+AH235+AH236+AH237 -> 20
C239: Ewes | E239: ='Prime Lambs Input'!E63 -> 1000 | G239: ='Prime Lambs Input'!F63 -> 230 | I239: ='Prime Lambs Input'!G63 -> 2.5 | K239: ='Prime Lambs Input'!H63 -> 8 | M239: =(E239*G239*I239*K239)/1000 -> 4600 | AA239: d.s.e's | AB239: =AB238*AE49 -> 40
C240: Rams | E240: ='Prime Lambs Input'!E64 -> 20 | G240: ='Prime Lambs Input'!F64 -> 230 | I240: ='Prime Lambs Input'!G64 -> 2.5 | K240: ='Prime Lambs Input'!H64 -> 8 | M240: =(E240*G240*I240*K240)/1000 -> 92
C241: Lambs | E241: ='Prime Lambs Input'!E65 -> 0 | G241: ='Prime Lambs Input'!F65 -> 0 | I241: ='Prime Lambs Input'!G65 -> 0 | K241: ='Prime Lambs Input'!H65 -> 0 | M241: =(E241*G241*I241*K241)/1000 -> 0
G242: Grain Cost ($/T) | I242: Kg Fed per Week | K242: No of Weeks Feeding | M242: Total Cost ($)
E243: Number
C244: Ewes | E244: ='Prime Lambs Input'!E70 -> 1000 | G244: ='Prime Lambs Input'!F70 -> 220 | I244: ='Prime Lambs Input'!G70 -> 3 | K244: ='Prime Lambs Input'!H70 -> 8 | M244: =(E244*G244*I244*K244)/1000 -> 5280
C245: Rams | E245: ='Prime Lambs Input'!E71 -> 20 | G245: ='Prime Lambs Input'!F71 -> 220 | I245: ='Prime Lambs Input'!G71 -> 3 | K245: ='Prime Lambs Input'!H71 -> 10 | M245: =(E245*G245*I245*K245)/1000 -> 132
C246: Lambs | E246: ='Prime Lambs Input'!E72 -> 0 | G246: ='Prime Lambs Input'!F72 -> 0 | I246: ='Prime Lambs Input'!G72 -> 0 | K246: ='Prime Lambs Input'!H72 -> 0 | M246: =(E246*G246*I246*K246)/1000 -> 0
C247: TOTAL FEED COST | M247: =SUM(M239:M241,M244:M246) -> 10104
C250: GM SENSITIVITY
C251: Gross Margin/DSE | E251: Average Weaning Rate
G252: 0.95 | I252: 1.05 | K252: 1.3 | M252: 1.25 | O252: 1.35 | Q252: 1.45
E253: 150 | G253: =($E$199*G$252*$E253*(1-$K$124)+SUM($K$209:$K$210)+$K$234-$AK$57-$E$199*G$252*$AO$52)/$E$197 -> 42.89528527 | I253: =($E$199*I$252*$E253*(1-$K$124)+SUM($K$209:$K$210)+$K$234-$AK$57-$E$199*I$252*$AO$52)/$E$197 -> 50.03904396 | K253: =($E$199*K$252*$E253*(1-$K$124)+SUM($K$209:$K$210)+$K$234-$AK$57-$E$199*K$252*$AO$52)/$E$197 -> 67.8984407 | M253: =($E$199*M$252*$E253*(1-$K$124)+SUM($K$209:$K$210)+$K$234-$AK$57-$E$199*M$252*$AO$52)/$E$197 -> 64.32656135 | O253: =($E$199*O$252*$E253*(1-$K$124)+SUM($K$209:$K$210)+$K$234-$AK$57-$E$199*O$252*$AO$52)/$E$197 -> 71.47032005 | Q253: =($E$199*Q$252*$E253*(1-$K$124)+SUM($K$209:$K$210)+$K$234-$AK$57-$E$199*Q$252*$AO$52)/$E$197 -> 78.61407875
E254: 155 | G254: 45.3219157 | I254: 52.72110918 | K254: 71.21909288 | M254: 67.51949614 | O254: 74.91868961 | Q254: 82.31788309
C255: Average Lamb Sale Price($/hd) | E255: 160 | G255: 47.74854614 | I255: 55.4031744 | K255: 74.53974505 | M255: 70.71243092 | O255: 78.36705918 | Q255: 86.02168744
E256: 165 | G256: 50.17517657 | I256: 58.08523961 | K256: 77.86039722 | M256: 73.9053657 | O256: 81.81542875 | Q256: 89.72549179
E257: 170 | G257: 52.60180701 | I257: 60.76730483 | K257: 81.1810494 | M257: 77.09830048 | O257: 85.26379831 | Q257: 93.42929614
E258: 175 | G258: 55.02843744 | I258: 63.44937005 | K258: 84.50170157 | M258: 80.29123527 | O258: 88.71216788 | Q258: 97.13310048
E259: 180 | G259: 57.45506788 | I259: 66.13143527 | K259: 87.82235375 | M259: 83.48417005 | O259: 92.16053744 | Q259: 100.8369048
E260: 185 | G260: 59.88169831 | I260: 68.81350048 | K260: 91.14300592 | M260: 86.67710483 | O260: 95.60890701 | Q260: 104.5407092
E261: 190 | G261: 62.30832875 | I261: 71.4955657 | K261: 94.46365809 | M261: 89.87003961 | O261: 99.05727657 | Q261: 108.2445135
E262: 195 | G262: 64.73495918 | I262: 74.17763092 | K262: 97.78431027 | M262: 93.0629744 | O262: 102.5056461 | Q262: 111.9483179
E263: 200 | G263: 67.16158961 | I263: 76.85969614 | K263: 101.1049624 | M263: 96.25590918 | O263: 105.9540157 | Q263: 115.6521222

Sheet Prime Lambs Maternal Input (hidden)
C1: Prime Lambs Maternal
C2: =UPPER(var_animal)&" GROSS MARGIN - "&TEXT(m_year,"0000") -> PRIME LAMBS MATERNAL GROSS MARGIN - 2021
C4: GENERAL INFORMATION
C5: This represents a maternal ewe enterprise (composite ewe) mated to a maternal composite sire. All ewe replacements are purchased but age of replacements can be varied from 1.5 years to 4.5 years. Following are the various assumptions used in the calculation of the Gross Margin. Cells with yellow highlight can be changed. No allowance has been made for pasture expenses such as seed, fertiliser and chemicals. Refer to pasture gross margins in the “Cropping Gross Margin Plan” for annual and perennial pasture costs. Use the livestock gross margin per DSE as income for the pasture gross margin.
C7: Ewes mated | E7: 1000
C8: Age ewes purchased | E8: 0.5
C9: Age ewes sold | E9: 6.5
C10: Av Weaning % | E10: 1.3
C11: Ram percentage | E11: 0.02
C12: Years Rams Kept | E12: 3
C13: Flock death Rate | E13: 0.03
C14: % Lambs carried over | E14: 0
C17: LIVESTOCK SALES | E17: Price/Hd | F17: Number | G17: Total
C18: c.f.a Ewes | E18: 170 | F18: ='Prime Lambs Maternal'!AG221 -> 182.3692879 | G18: =E18*ROUND(F18,0) -> 30940
C19: c.f.a Rams | E19: 100 | F19: ='Prime Lambs Maternal'!AG239 -> 6.270727266 | G19: =E19*ROUND(F19,0) -> 600
C20: Ewe Lambs | E20: 200 | F20: ='Prime Lambs Maternal'!AG228*0.42 -> 546 | G20: =E20*ROUND(F20,0) -> 109200
C21: Wether & cull ewe lambs | E21: 175 | F21: ='Prime Lambs Maternal'!AG228*0.58 -> 754 | G21: =E21*ROUND(F21,0) -> 131950
C25: TOTAL SALES | F25: =SUM(F18:F23) -> 1488.640015 | G25: =SUM(G18:G23) -> 272690
C28: LIVESTOCK PURCHASES | E28: Price/Hd | F28: Number | G28: Total
C29: Ewes | E29: 200 | F29: ='Prime Lambs Maternal'!AD221 -> 213.5699335 | G29: =E29*F29 -> 42713.9867
C30: Rams | E30: 1850 | F30: =ROUND('Prime Lambs Maternal'!AD239,0) -> 7 | G30: =E30*F30 -> 12950
C32: TOTAL PURCHASES | F32: =SUM(F29:F30) -> 220.5699335 | G32: =SUM(G29:G30) -> 55663.9867
C35: WOOL PRICE (cents/kg) | F35: =TEXT(m_year-3,"0000")&" Average (Clean)" -> 2018 Average (Clean) | G35: =TEXT(m_year-2,"0000")&" Average (Clean)" -> 2019 Average (Clean) | H35: =TEXT(m_year-1,"0000")&" Average (Clean)" -> 2020 Average (Clean) | I35: Budget Base (Clean) | J35: Budget Base (Greasy)
E36: Wool- High Rainfall 28 mic 70% yield | F36: 867 | G36: 774 | H36: 756 | I36: 750 | J36: =I36*I37 -> 525
E37: Estimated wool yield | I37: 0.7
C38: Allow 90% to account for lower value of bellies, skirtings etc. | J38: =J36*0.9 -> 472.5
C42: WOOL SALES - SHEARING | F42: Wool Cut
E43: Number | F43: kg/hd | G43: Price | H43: Total
C44: Ewes | E44: ='Prime Lambs Maternal'!E227 -> 968.8208733 | F44: 3.5 | G44: 3.15 | H44: =E44*F44*G44 -> 10681.25013
C45: Crossbred Rams | E45: ='Prime Lambs Maternal'!E228 -> 19.4 | F45: 2.5 | G45: 1.61 | H45: =E45*F45*G45 -> 78.085
C47: TOTAL | E47: =SUM(E44:E46) -> 988.2208733 | F47: =(E44*F44)+(E45*F45) -> 3439.373056 | H47: =SUM(H44:H46) -> 10759.33513
C50: STOCK HEALTH REQUIREMENTS | E50: =HYPERLINK("http://paraboss.com.au","for more info on drench, lice and blowfly product selection refer to www.paraboss.com.au") -> for more info on drench, lice and blowfly product selection refer to www.paraboss.com.au
G51: Number of times
E52: Number | F52: Drench | G52: Vacc. | H52: Blowfly
C53: Ewes | E53: ='Prime Lambs Maternal'!E220 -> 1000 | F53: 3 | G53: 1 | H53: 1
C54: Rams | E54: ='Prime Lambs Maternal'!E221 -> 20 | F54: 3 | G54: 1 | H54: 0
C55: Lambs | E55: ='Prime Lambs Maternal'!E222 -> 1300 | F55: 2 | G55: 2 | H55: 0
C57: TOTAL | E57: =SUM(E53:E55) -> 2320 | F57: =SUMPRODUCT($E$53:$E$55,F53:F55) -> 5660 | G57: =SUMPRODUCT($E$53:$E$55,G53:G55) -> 3620 | H57: =SUMPRODUCT($E$53:$E$55,H53:H55) -> 1000
C60: FEEDING
C61: HAY | F61: Hay | G61: Kgs Fed | H61: No Weeks | I61: Total
E62: Number | F62: Cost ($/T) | G62: per Week | H62: of Feeding | I62: Cost ($)
C63: Ewes | E63: ='Prime Lambs Maternal'!E220 -> 1000 | F63: 230 | G63: 2.5 | H63: 8 | I63: =(H63*G63*E63)/1000*F63 -> 4600
C64: Rams | E64: ='Prime Lambs Maternal'!E221 -> 20 | F64: 230 | G64: 2.5 | H64: 8 | I64: =(H64*G64*E64)/1000*F64 -> 92
I66: =(H66*G66*E66)/1000*F66 -> 0
C68: GRAIN | F68: Grain | G68: Kgs Fed | H68: No weeks | I68: Total
E69: Number | F69: Cost ($/T) | G69: per week | H69: of Feeding | I69: Cost ($)
C70: Ewes | E70: ='Prime Lambs Maternal'!E220 -> 1000 | F70: 220 | G70: 3 | H70: 8 | I70: =(H70*G70*E70)/1000*F70 -> 5280
C71: Rams | E71: ='Prime Lambs Maternal'!E221 -> 20 | F71: 220 | G71: 3 | H71: 10 | I71: =(H71*G71*E71)/1000*F71 -> 132
C72: Lambs | I72: =(H72*G72*E72)/1000*F72 -> 0
H74: Total Feed Cost | I74: =SUM(I63:I66,I70:I72) -> 10104

Sheet Prime Lambs Maternal (hidden)
C1: Prime Lambs Maternal
C2: =UPPER(Var_Animal)&" GROSS MARGIN - "&TEXT(m_year,"0000") -> PRIME LAMBS MATERNAL GROSS MARGIN - 2021
C4: ASSUMPTIONS
C6: Ave Breeding Ewe Fibre Diameter | E6: 28 | O6: Total DSE's | Q6: =E197 -> 1840
C7: No. of breeding ewes (1st Cross) | E7: ='Prime Lambs Maternal Input'!$E$7 -> 1000
C8: 1st cross ewe - Terminal meat sire
C32: INCOME | Q32: $
C34: Wool (kg greasy) | E34: =G235 -> 3439.373056 | G34: kg | I34: av price | K34: =K235*100/G235*0.9 -> 281.545545 | M34: c/kg | Q34: =K235 -> 10759.33513
C35: Sales | E35: =E213 -> 1488.640015 | G35: animals | I35: av price | K35: =G213 -> 183.1806194 | M35: /head | Q35: =E213*G213 -> 272690
C37: Gross Income | Q37: =SUM(Q34:Q35) -> 283449.3351
AA45: STOCK VALUE AND D.S.E REQUIREMENT | AG45: Non lamb related expenses | AM45: Lamb Costs | AN45: No: | AO45: per head | AS45: SHEEP GROSS MARGIN
C46: VARIABLE COSTS | AC46: Value | AD46: Ave Live | AE46: DSE | AS46: PRIME LAMB -
C47: Shearing | K47: Rate | AB47: Number | AC47: $/head | AD47: Wt (Kgs) | AE47: rating | AG47: Shearing | AJ47: =SUM(Q48:Q58) -> 8686.030386 | AM47: Marking | AN47: =$E$121 -> 754 | AO47: =K76+K77 -> 1.52 | AP47: =AN47*AO47 -> 1146.08
C48: Shearing | E48: =E227 -> 968.8208733 | G48: sheep | I48: Reset Rate> | J48: =GM_INFO!C30 | K48: =GM_INFO!C77 -> 324.31 | M48: /100 | Q48: =K48/100*ROUND(E48,0) -> 3142.5639 | AA48: ewes | AB48: ='Prime Lambs Maternal Input'!$E$7 -> 1000 | AC48: =(G209+G215)/2 -> 185 | AD48: 60 | AE48: =IF(AND(AD48>=55,AD48<60),1.7,IF(AND(AD48>=60,AD48<65),1.8,IF(AND(AD48>=65,AD48<70),1.9,IF(AND(AD48>=70,AD48<75),2,IF(AND(AD48>=75,AD48<80),2.1,IF(AND(AD48>=80,AD48<85),2.2,IF(AND(AD48>=85,AD48<90),2.3,IF(AD48>=90,2.4,0)))))))) -> 1.8 | AG48: Animal health | AJ48: =(E220*G220+E221*G221)*K90+(E220*I220+E221*I221)*K91+(E220*K220)*K92 -> 2827.4784 | AM48: Animal health | AN48: =$E$121 -> 754 | AO48: =G221*K91+I221*K90 -> 1.31376 | AP48: =AN48*AO48 -> 990.57504
C49: (Federal awards) | E49: =E228 -> 19.4 | G49: rams | I49: Reset Rate> | J49: =GM_INFO!C31 | K49: =GM_INFO!C78 -> 648.62 | M49: /100 | Q49: =K49/100*ROUND(E49,0) -> 123.2378 | AA49: rams | AB49: ='Prime Lambs Maternal Input'!E11*'Prime Lambs Maternal'!AB48 -> 20 | AC49: =(G210+G216)/2 -> 975 | AD49: 100 | AE49: 2 | AG49: Stock Purchase | AJ49: =SUM(Q105:Q105) -> 55424.83214 | AM49: Freight | AN49: =$E$121 -> 754 | AO49: =K121 -> 4 | AP49: =AN49*AO49 -> 3016
C50: Shed labour | E50: 5 | G50: days | I50: Reset Rate> | J50: =GM_INFO!C32 | K50: =GM_INFO!C79 -> 245.56 | M50: /day | Q50: =K50*ROUND(E50,0) -> 1227.8 | AA50: lambs | AB50: =AC228 -> 1300 | AC50: =G212/2 -> 87.5 | AD50: 35 | AE50: 0 | AG50: Freight | AH50: sheep | AJ50: =SUM(Q119:Q120) -> 1610.279734 | AM50: Yard Fees | AN50: =$E$121 -> 754 | AO50: =K125 -> 0.85 | AP50: =AN50*AO50 -> 640.9
C51: Woolclasser | E51: 2.5 | G51: days | I51: Reset Rate> | J51: =GM_INFO!C33 | K51: =GM_INFO!C80 -> 312.11 | M51: /day | Q51: =K51*E51 -> 780.275 | AA51: TOTAL | AB51: =SUM(AB48:AB50) -> 2320 | AC51: =AB48*AC48+AB49*AC49+AB50*AC50/2 -> 261375 | AH51: Wool | AJ51: =Q122 -> 300 | AM51: Levies | AN51: =$E$121 -> 754 | AO51: =K127+K128 -> 2.17 | AP51: =AN51*AO51 -> 1636.18 | AS51: Ewes mated | AU51: ='Prime Lambs Maternal Input'!$E$7 -> 1000 | AX51: Ram % | AY51: =E200 -> 0.02
C52: Superannuation (on ord wages only) | I52: Reset Rate> | J52: =GM_INFO!C34 | K52: =GM_INFO!C81 -> 0.095 | M52: wages | Q52: =(Q48+Q49+Q50+Q51)*K52 -> 501.0182865 | AG52: Commission on livestock sales | AJ52: =(K209+K210)*K124 -> 1892.4 | AO52: =SUM(AO47:AO51) -> 9.85376 | AQ52: =AO52*AD50 -> 344.8816 | AS52: Age ewes purchased | AU52: =E201 -> 0.5 | AX52: Price of rams | AY52: =AL68 -> 0
C53: W/Cover (incl. super + otime etc) | I53: Reset Rate> | J53: =GM_INFO!C35 | K53: =GM_INFO!C82 -> 0.04 | M53: total | Q53: =(Q48+Q49+Q50+Q51+Q52)*K53 -> 230.9957995 | AG53: Yard fees | AJ53: =E119*K125 -> 160.3440129 | AM53: Commission | AN53: =$E$121 -> 754 | AO53: =G213 -> 183.1806194 | AP53: =K124 -> 0.06 | AQ53: =AD50*AO53*AP53 -> 384.6793007 | AS53: Age ewes sold | AU53: =E202 -> 6.5 | AX53: Years rams kept | AY53: =E203 -> 3
C54: Wool packs | E54: 20 | G54: packs | I54: Reset Rate> | J54: =GM_INFO!C28 | K54: =GM_INFO!C75 -> 12 | M54: /pack | Q54: =K54*ROUND(E54,0) -> 240 | AG54: Levies | AJ54: =E126*(K126+K128) -> 164.1168132 | AS54: Av Weaning % | AU54: ='Prime Lambs Maternal Input'!E10 -> 1.3 | AX54: Age wethers sold | AY54: 0.5
C55: Shed sundries | E55: =E48+E49 -> 988.2208733 | G55: sheep | I55: Reset Rate> | J55: =GM_INFO!C36 | K55: =GM_INFO!C83 -> 0.2 | M55: /head | Q55: =K55*ROUND(E55,0) -> 197.6 | AG55: Wool Selling Charges | AJ55: =Q130+Q131 -> 1090.020752 | AQ55: =SUM(AQ43:AQ53) -> 729.5609007 | AS55: dse/ewe | AU55: =AE48 -> 1.8 | AX55: Flock death rate | AY55: =E204 -> 0.03
C56: Lice control | E56: =E48+E49 -> 988.2208733 | G56: sheep | I56: Reset Rate> | J56: =GM_INFO!C19 | K56: =GM_INFO!C66 -> 1.2912 | M56: /head | Q56: =K56*ROUND(E56,0) -> 1275.7056 | AG56: Feed & other costs | AJ56: =SUM(Q144:Q149) -> 16514.75
C57: Crutch & Wig | E57: 990 | G57: ewes | I57: Reset Rate> | J57: =GM_INFO!C38 | K57: =GM_INFO!C85 -> 94.05 | M57: /100 | Q57: =K57/100*ROUND(E57,0) -> 931.095 | AK57: =SUM(AJ47:AJ56) -> 88670.25224
E58: =E49 -> 19.4 | G58: rams | I58: Reset Rate> | J58: =GM_INFO!C39 | K58: =GM_INFO!C86 -> 188.1 | M58: /100 | Q58: =K58/100*ROUND(E58,0) -> 35.739
AS60: EWES | AT60: OPENING | AU60: NATURAL | AV60: PURCHASES | AW60: DEATHS | AX60: % sold | AY60: SALES | AZ60: CLOSING
AS61: AGE | AT61: NUMBERS | AU61: INCREASE | AX61: culled | AZ61: NUMBERS
AS63: 0.5-1.5yr | AV63: =IF($N$78=1.5,AT64,AT63-AW63) -> 0 | AY63: =AT63-AW63 -> 0 | AZ63: =AT63+AU63+AV63-AW63-AY63 -> 0
AS64: 1.5-2.5yr | AT64: =IF(AU52=1.5,AU51/(1+(1-AY55)*(1-AX64)*(1+(1-AY55)*(1-AX65)*(1+(1-AY55)*(1-AX66)*(1+(1-AY55)*(1-AX67))))),0) -> 0 | AV64: =IF(AU52=2.5,AT65-AY64,0) -> 0 | AW64: =AT64*$R$81 -> 0 | AY64: =(AT64-AW64)*AX64 -> 0 | AZ64: 0
AS65: 2.5-3.5yr | AT65: =IF(AU52=2.5,AU51/(1+(1-AY55)*(1-AX65)*(1+(1-AY55)*(1-AX66)*(1+(1-AY55)*(1-AX67)))),AZ64) -> 0 | AV65: =IF(AU52=3.5,AT66-AY65,0) -> 0 | AW65: =AT65*$R$81 -> 0 | AY65: =(AT65-AW65)*AX65 -> 0 | AZ65: 0
AS66: 3.5-4.5yr | AT66: =IF(AU52=3.5,AU51/(1+(1-AY55)*(1-AX66)*(1+(1-AY55)*(1-AX67))),AZ65) -> 0 | AV66: =IF(AU52=4.5,AT67-AY66,0) -> 0 | AW66: =AT66*$R$81 -> 0 | AY66: =(AT66-AW66)*AX66 -> 0 | AZ66: 0
AS67: 4.5-5.5yr | AT67: =IF(AU52=4.5,AU51/(1+(1-AY55)*(1-AX67)),AZ66) -> 0 | AW67: =AT67*$R$81 -> 0 | AX67: =IF(AU53=5.5,1,0) -> 0 | AY67: =(AT67-AW67)*AX67 -> 0 | AZ67: 0
AS68: 5.5-6.5yr | AT68: =AZ67 -> 0 | AW68: =AT68*$R$81 -> 0 | AX68: =IF(AU53=6.5,1,0) -> 1 | AY68: =(AT68-AW68)*AX68 -> 0 | AZ68: 0
AS69: Ewes | AT69: =SUM(AT64:AT68) -> 0 | AV69: =AV63+AV64+AV65+AV66 -> 0 | AW69: =SUM(AW63:AW68) -> 0 | AY69: =SUM(AY64:AY68) -> 0 | AZ69: =SUM(AZ63:AZ67) -> 0
AS70: d.s.e's | AT70: =AT63+AT69*AU55 -> 0
AS73: LAMBS | AT73: OPENING | AU73: NATURAL | AV73: PURCHASES | AW73: DEATHS | AX73: % sold | AY73: SALES | AZ73: CLOSING
AS74: AGE | AT74: NUMBERS | AU74: INCREASE | AX74: culled | AZ74: NUMBERS
C75: Marking
C76: Lamb marking | E76: =AC228 -> 1300 | G76: lambs | I76: Reset Rate> | J76: =GM_INFO!C42 | K76: =GM_INFO!C89 -> 1.15 | M76: /head | Q76: =K76*ROUND(E76,0) -> 1495 | AS76: 0-0.5yr | AU76: =AU51*AU54 -> 1300 | AX76: 1 | AY76: =AU76*AX76 -> 1300 | AZ76: =AT76+AU76+AV76-AW76-AY76 -> 0
C77: Ear tags | E77: =AC228 -> 1300 | G77: lambs | I77: Reset Rate> | J77: =GM_INFO!C43 | K77: =GM_INFO!C90 -> 0.37 | M77: /head | Q77: =K77*ROUND(E77,0) -> 481
AS79: RAMS | AT79: OPENING | AU79: NATURAL | AV79: PURCHASES | AW79: DEATHS | AX79: % sold | AY79: SALES | AZ79: CLOSING
AS80: AGE | AT80: NUMBERS | AU80: INCREASE | AX80: culled | AZ80: NUMBERS
AS82: 0.5-1.5yr | AV82: =AT83/(1-AX82) -> 6.870727266 | AW82: =AT82*$R$81 -> 0 | AZ82: =AT82+AU82+AV82-AW82-AY82 -> 6.870727266
AS83: 1.5-2.5yr | AT83: =IF(AY53=3,(AU51*AY51)/(1+(1-AY55)*(1-AX83)*(1+(1-AY55)*(1-AX84)*(1+(1-AY55)*(1-AX85)))),IF(AY53=4,(AU51*AY51)/(1+(1-AY55)*(1-AX83)*(1+(1-AY55)*(1-AX84)*(1+(1-AY55)*(1-AX85)*(1+(1-AY55)*(1-AX86))))),0)) -> 6.870727266 | AW83: =AT83*$R$81 -> 0 | AZ83: =AT83+AU83+AV83-AW83-AY83 -> 6.870727266
AS84: 2.5-3.5yr | AT84: =AZ83 -> 6.870727266 | AW84: =AT84*$R$81 -> 0 | AZ84: =AT84+AU84+AV84-AW84-AY84 -> 6.870727266
AS85: 3.5-4.5yr | AT85: =AZ84 -> 6.870727266 | AW85: =AT85*$R$81 -> 0 | AX85: =IF(AY53=3,100%,0) -> 1 | AY85: =(AT85-AW85)*AX85 -> 6.870727266 | AZ85: =AT85+AU85+AV85-AW85-AY85 -> 0
AS86: 4.5-5.5yr | AT86: =AZ85 -> 0 | AW86: =AT86*$R$81 -> 0 | AX86: =IF(AY53=4,100%,0) -> 0 | AY86: =AT86-AW86 -> 0 | AZ86: =AT86+AU86+AV86-AW86-AY86 -> 0
AT87: =AT82+AT83+AT84+AT85+AT86 -> 20.6121818 | AV87: =AV82+AV83+AV84+AV85+AV86 -> 6.870727266 | AW87: =AW82+AW83+AW84+AW85+AW86 -> 0 | AY87: =AY82+AY83+AY84+AY85+AY86 -> 6.870727266 | AZ87: =AZ82+AZ83+AZ84+AZ85+AZ86 -> 20.6121818
AS88: d.s.e's | AT88: =AT87*AE49 -> 41.2243636
C89: Animal Health
C90: Drench | E90: =G223 -> 5660 | G90: sheep | I90: Reset Rate> | J90: =GM_INFO!C21 | K90: =GM_INFO!C68 -> 0.417 | M90: /head | Q90: =K90*ROUND(E90,0) -> 2360.22
C91: Vaccinate | E91: =I223 -> 3620 | G91: sheep | I91: Reset Rate> | J91: =GM_INFO!C25 | K91: =GM_INFO!C72 -> 0.29892 | M91: /head | Q91: =K91*ROUND(E91,0) -> 1082.0904
C92: Blowfly control | E92: =K223 -> 1000 | G92: sheep | I92: Reset Rate> | J92: =GM_INFO!C27 | K92: =GM_INFO!C74 -> 1.24656 | M92: /head | Q92: =K92*ROUND(E92,0) -> 1246.56
C104: Stock purchases
C105: Purchases | Q105: =K215+K216 -> 55424.83214
C117: Sale Costs
C118: Freight
C119: Livestock | E119: =SUM(E209:E210) -> 188.6400152 | G119: culls | I119: Reset Rate> | J119: =GM_INFO!B111 | K119: =GM_INFO!B158 -> 4 | M119: /head | Q119: =K119*ROUND(E119,0) -> 756
E120: =E215 -> 213.5699335 | G120: ewes | I120: Reset Rate> | J120: =GM_INFO!B112 | K120: =GM_INFO!B159 -> 4 | M120: /head | Q120: =K120*E120 -> 854.2797339
E121: =E212 -> 754 | G121: prime lambs | I121: Reset Rate> | J121: =GM_INFO!B113 | K121: =GM_INFO!B160 -> 4 | M121: /head | Q121: =K121*ROUND(E121,0) -> 3016
C122: Wool | E122: =G235/170 -> 20.23160621 | G122: bales | I122: Reset Rate> | J122: =GM_INFO!B114 | K122: =GM_INFO!B161 -> 15 | M122: /bale | Q122: =K122*ROUND(E122,0) -> 300
C123: Stock selling charges
C124: Commission/insurance | I124: Reset Rate> | J124: =GM_INFO!C48 | K124: =GM_INFO!C95 -> 0.06 | M124: gross $ | Q124: =K124*Q35 -> 16361.4
C125: Yard fees | E125: =E213 -> 1488.640015 | G125: sheep | I125: Reset Rate> | J125: =GM_INFO!C49 | K125: =GM_INFO!C96 -> 0.85 | M125: /head | Q125: =K125*ROUND(E125,0) -> 1265.65
C126: Levy-sheep | E126: =E119 -> 188.6400152 | G126: sheep | I126: Reset Rate> | J126: =GM_INFO!C50 | K126: =GM_INFO!C97 -> 0.2 | M126: /head | Q126: =K126*ROUND(E126,0) -> 37.8
C127: Levy-lambs | E127: =E212 -> 754 | G127: sheep | I127: Reset Rate> | J127: =GM_INFO!C51 | K127: =GM_INFO!C98 -> 1.5 | M127: /head | Q127: =K127*ROUND(E127,0) -> 1131
C128: SA sheep industry levy | E128: =E213 -> 1488.640015 | G128: sheep | I128: Reset Rate> | J128: =GM_INFO!C52 | K128: =GM_INFO!C99 -> 0.67 | M128: /head | Q128: =K128*ROUND(E128,0) -> 997.63
C129: Wool selling charges
C130: Brokerage/testing/insurance | I130: Reset Rate> | J130: =GM_INFO!C53 | K130: =GM_INFO!C100 -> 0.27 | M130: /kg | Q130: =K130*E34 -> 928.6307252
C131: Wool levy | I131: Reset Rate> | J131: =GM_INFO!C54 | K131: =GM_INFO!C101 -> 0.015 | M131: gross | Q131: =K131*Q34 -> 161.3900269
C143: Feed and Other Costs
C144: Hay | Q144: =SUM('Prime Lambs Maternal Input'!I63:I65) -> 4692
C145: Grain | Q145: =SUM('Prime Lambs Maternal Input'!I70:I72) -> 5412
C146: Insurance | E146: =AC51 -> 261375 | G146: value | I146: Reset Rate> | J146: =GM_INFO!B107 | K146: =GM_INFO!B154 -> 2 | M146: /$'000 | Q146: =K146/1000*E146 -> 522.75
C147: Water | E147: =$Q$6 -> 1840 | G147: DSE's | I147: Reset Rate> | J147: =GM_INFO!D79 | K147: =GM_INFO!D126 -> 1.5 | M147: /DSE's | Q147: =K147*E147 -> 2760
C148: Veh Fuel, R&M | E148: =$Q$6 -> 1840 | G148: DSE's | I148: Reset Rate> | J148: =GM_INFO!D80 | K148: =GM_INFO!D127 -> 1.2 | M148: /DSE's | Q148: =K148*E148 -> 2208
C149: Other | E149: =$Q$6 -> 1840 | G149: DSE's | I149: Reset Rate> | J149: =GM_INFO!D81 | K149: =GM_INFO!D128 -> 0.5 | M149: /DSE's | Q149: =K149*E149 -> 920
C170: TOTAL VARIABLE COSTS | Q170: =SUM(Q48:Q166) -> 113100.2634
C172: GROSS MARGIN TOTAL | Q172: =Q37-Q170 -> 170349.0717
C174: GROSS MARGIN/DSE | Q174: =Q172/Q6 -> 92.58101724
C194: PRODUCTION DATA
C196: Stocking rate (DSE/Ha) | E196: 12 | K196: Culling Rate (% from each group) | AA196: SHEEP GROSS MARGIN
C197: Total DSE's | E197: =SUMPRODUCT(AB48:AB50,AE48:AE50) -> 1840 | K197: Age Group | M197: Ewes | O197: Wethers | AA197: PRIME LAMB -
C198: SHEEP GRAZING AREA | E198: =E197/E196 -> 153.3333333 | K198: 0.5 | M198: =AF215 -> 0
C199: Number of ewes mated | E199: ='Prime Lambs Maternal Input'!E7 -> 1000 | K199: 1.5 | M199: 0
C200: Ram percentage | E200: ='Prime Lambs Maternal Input'!E11 -> 0.02 | K200: 2.5 | M200: 0
C201: Age ewes bought (yrs) | E201: ='Prime Lambs Maternal Input'!E8 -> 0.5 | K201: 3.5 | M201: 0
C202: Age ewes culled | E202: ='Prime Lambs Maternal Input'!E9 -> 6.5 | K202: 4.5 | M202: 0 | AA202: Ewes mated | AC202: ='Prime Lambs Maternal Input'!E7 -> 1000 | AF202: Ram % | AG202: =E200 -> 0.02
B203: =VLOOKUP(r[0]c3&"No Ops",CHOOSE({1,2},tbl_ops[Name]&tbl_ops[Category],INDIRECT("tbl_ops["&var_crop&"]")),2,0) | C203: Years rams kept | E203: ='Prime Lambs Maternal Input'!E12 -> 3 | K203: 5.5 | M203: 1 | AA203: Age ewes purchased | AC203: =E201 -> 0.5 | AF203: Price of rams | AG203: =G216 -> 1850
B204: =VLOOKUP(r[0]c3&"No Ops",CHOOSE({1,2},tbl_ops[Name]&tbl_ops[Category],INDIRECT("tbl_ops["&var_crop&"]")),2,0) | C204: Flock death rate | E204: ='Prime Lambs Maternal Input'!E13 -> 0.03 | K204: 6.5 | M204: 0 | AA204: Age ewes sold | AC204: =E202 -> 6.5 | AF204: Years rams kept | AG204: =E203 -> 3
B205: =VLOOKUP(r[0]c3&"No Ops",CHOOSE({1,2},tbl_ops[Name]&tbl_ops[Category],INDIRECT("tbl_ops["&var_crop&"]")),2,0) | C205: Average weaning rate | E205: =AC205 -> 1.3 | AA205: Av Weaning % | AC205: ='Prime Lambs Maternal Input'!E10 -> 1.3 | AF205: Age wethers sold | AG205: 0.5
B206: =VLOOKUP(r[0]c3&"No Ops",CHOOSE({1,2},tbl_ops[Name]&tbl_ops[Category],INDIRECT("tbl_ops["&var_crop&"]")),2,0) | C206: % Lambs carried over | E206: 0 | AA206: dse/ewe | AC206: =AE48 -> 1.8 | AF206: Flock death rate | AG206: =E204 -> 0.03
B207: =VLOOKUP(r[0]c3&var_rain,CHOOSE({1,2},tbl_ops[Name]&tbl_ops[Rainfall],INDIRECT("tbl_ops["&var_crop&"]")),2,0)
B208: =VLOOKUP(r[0]c3&var_rain,CHOOSE({1,2},tbl_ops[Name]&tbl_ops[Rainfall],INDIRECT("tbl_ops["&var_crop&"]")),2,0) | C208: SALES | E208: Number | G208: Price/hd | I208: Age | K208: Total
B209: =VLOOKUP(r[0]c3&var_rain,CHOOSE({1,2},tbl_ops[Name]&tbl_ops[Rainfall],INDIRECT("tbl_ops["&var_crop&"]")),2,0) | C209: c.f.a ewes | E209: =AG221 -> 182.3692879 | G209: ='Prime Lambs Maternal Input'!E18 -> 170 | I209: =E202 -> 6.5 | K209: =ROUND(E209,0)*G209 -> 30940
B210: =VLOOKUP(r[0]c3&var_rain,CHOOSE({1,2},tbl_ops[Name]&tbl_ops[Rainfall],INDIRECT("tbl_ops["&var_crop&"]")),2,0) | C210: c.f.a rams | E210: =AG239 -> 6.270727266 | G210: ='Prime Lambs Maternal Input'!E19 -> 100 | I210: =E203+1.5 -> 4.5 | K210: =ROUND(E210,0)*G210 -> 600
C211: Ewe Lambs | E211: ='Prime Lambs Maternal Input'!F20 -> 546 | G211: ='Prime Lambs Maternal Input'!E20 -> 200 | I211: 0.5 | K211: =ROUND(E211,0)*G211 -> 109200
C212: Wether & cull ewe lambs | E212: ='Prime Lambs Maternal Input'!F21 -> 754 | G212: ='Prime Lambs Maternal Input'!E21 -> 175 | I212: 20 Weeks | K212: =ROUND(E212,0)*G212 -> 131950 | AA212: EWES | AB212: OPENING | AC212: NATURAL | AD212: PURCHASES | AE212: DEATHS | AF212: % sold | AG212: SALES | AH212: CLOSING
C213: TOTAL | E213: =SUM(E209:E212) -> 1488.640015 | G213: =K213/E213 -> 183.1806194 | K213: =SUM(K209:K212) -> 272690 | AA213: AGE | AB213: NUMBERS | AC213: INCREASE | AF213: culled | AH213: NUMBERS
C214: PURCHASES | E214: Number | G214: Price/hd | I214: Age | K214: Total | AD214: =IF($AC$203=0.5,AB215,AB214-AE214) -> 213.5699335
C215: Ewes | E215: =AD221 -> 213.5699335 | G215: ='Prime Lambs Maternal Input'!E29 -> 200 | I215: =E201 -> 0.5 | K215: =E215*G215 -> 42713.9867 | AA215: 0.5-1.5yr | AB215: =IF(AC203=0.5,AC202/(1+(1-AG206)*(1-AF215)*(1+(1-AG206)*(1-AF216)*(1+(1-AG206)*(1-AF217)*(1+(1-AG206)*(1-AF218)*(1+(-AG206)*(1-AF219)))))),0) -> 213.5699335 | AD215: =IF($AC$203=1.5,AB215-AE215,0) -> 0 | AE215: 1.2 | AG215: =(AB215-AE215)*AF215 -> 0 | AH215: =AB215+AC215+AD215-AE215-AG215 -> 212.3699335
C216: Rams | E216: =AD239 -> 6.870727266 | G216: ='Prime Lambs Maternal Input'!E30 -> 1850 | I216: 1.5 | K216: =E216*G216 -> 12710.84544 | AA216: 1.5-2.5yr | AB216: =IF(AC203=1.5,AC202/(1+(1-AG206)*(1-AF216)*(1+(1-AG206)*(1-AF217)*(1+(1-AG206)*(1-AF218)*(1+(1-AG206)*(1-AF219))))),AH215) -> 212.3699335 | AD216: =IF(AC203=2.5,AB217-AG216,0) -> 0 | AE216: =AB216*AG206 -> 6.371098004 | AG216: 0 | AH216: 205.9988355
AA217: 2.5-3.5yr | AB217: =IF(AC203=2.5,AC202/(1+(1-AG206)*(1-AF217)*(1+(1-AG206)*(1-AF218)*(1+(1-AG206)*(1-AF219)))),AH216) -> 205.9988355 | AD217: =IF(AC203=3.5,AB218-AG217,0) -> 0 | AE217: =AB217*AG206 -> 6.179965064 | AG217: 0 | AH217: 199.8188704
E218: Number of Times | AA218: 3.5-4.5yr | AB218: =IF(AC203=3.5,AC202/(1+(1-AG206)*(1-AF218)*(1+(1-AG206)*(1-AF219))),AH217) -> 199.8188704 | AD218: =IF(AC203=4.5,AB219-AG218,0) -> 0 | AE218: =AB218*AG206 -> 5.994566112 | AG218: 0 | AH218: 193.8243043
C219: STOCK HEALTH REQUIREMENTS | E219: Number | G219: Drench | I219: Vacc. | K219: Blowfly | M219: DSE | AA219: 4.5-5.5yr | AB219: =IF(AC203=4.5,AC202/(1+(1-AG206)*(1-AF219)),AH218) -> 193.8243043 | AE219: =AB219*AG206 -> 5.814729129 | AF219: =IF(AC204=5.5,1,0) -> 0 | AG219: 0 | AH219: 188.0095752
C220: Ewes | E220: ='Prime Lambs Maternal Input'!E7 -> 1000 | G220: ='Prime Lambs Maternal Input'!F53 -> 3 | I220: ='Prime Lambs Maternal Input'!G53 -> 1 | K220: ='Prime Lambs Maternal Input'!H53 -> 1 | M220: 1.8 | AA220: 5.5-6.5yr | AB220: =AH219 -> 188.0095752 | AE220: =AB220*AG206 -> 5.640287255 | AF220: =IF(AC204=6.5,1,0) -> 1 | AG220: 182.3692879 | AH220: 0
C221: Rams | E221: =AB49 -> 20 | G221: ='Prime Lambs Maternal Input'!F54 -> 3 | I221: ='Prime Lambs Maternal Input'!G54 -> 1 | K221: ='Prime Lambs Maternal Input'!H54 -> 0 | M221: 2 | AA221: Ewes | AB221: =SUM(AB216:AB220) -> 1000.021519 | AD221: =AD215+AD216+AD217+AD218+AD214 -> 213.5699335 | AE221: =SUM(AE215:AE220) -> 31.20064556 | AG221: =SUM(AG216:AG220) -> 182.3692879 | AH221: =SUM(AH215:AH219) -> 1000.021519
C222: Lambs | E222: =AC228 -> 1300 | G222: ='Prime Lambs Maternal Input'!F55 -> 2 | I222: ='Prime Lambs Maternal Input'!G55 -> 2 | K222: ='Prime Lambs Maternal Input'!H55 -> 0 | AA222: d.s.e's | AB222: =AB215+AB221*AC206 -> 2013.608667
C223: TOTAL | E223: =SUM(E220:E222) -> 2320 | G223: =SUMPRODUCT($E$220:$E$222,G220:G222) -> 5660 | I223: =SUMPRODUCT($E$220:$E$222,I220:I222) -> 3620 | K223: =SUMPRODUCT($E$220:$E$222,K220:K222) -> 1000 | M223: =SUMPRODUCT($E$220:$E$222,M220:M222) -> 1840
G225: Wool Cut kg/hd | AA225: LAMBS | AB225: OPENING | AC225: NATURAL | AD225: PURCHASES | AE225: DEATHS | AF225: % sold | AG225: SALES | AH225: CLOSING
C226: SHEARING | E226: Number | I226: Price | K226: Total | AA226: AGE | AB226: NUMBERS | AC226: INCREASE | AF226: culled | AH226: NUMBERS
C227: Ewes | E227: =AB221-AE221 -> 968.8208733 | G227: ='Prime Lambs Maternal Input'!F44 -> 3.5 | I227: ='Prime Lambs Maternal Input'!G44 -> 3.15 | K227: =I227*G227*E227 -> 10681.25013
C228: Crossbred rams | E228: =AB239-AE239 -> 19.4 | G228: ='Prime Lambs Maternal Input'!F45 -> 2.5 | I228: ='Prime Lambs Maternal Input'!G45 -> 1.61 | K228: =I228*G228*E228 -> 78.085 | AA228: 0-0.5yr | AC228: =AC202*AC205 -> 1300 | AF228: 1 | AG228: =AC228*AF228 -> 1300 | AH228: =AB228+AC228+AD228-AE228-AG228 -> 0
AA231: RAMS | AB231: OPENING | AC231: NATURAL | AD231: PURCHASES | AE231: DEATHS | AF231: % sold | AG231: SALES | AH231: CLOSING
AA232: AGE | AB232: NUMBERS | AC232: INCREASE | AF232: culled | AH232: NUMBERS
AA234: 0.5-1.5yr | AD234: =AB235/(1-AF234) -> 6.870727266 | AE234: =AB234*$AG$206 -> 0 | AH234: =AB234+AC234+AD234-AE234-AG234 -> 6.870727266
C235: TOTAL | E235: =SUM(E227:E234) -> 988.2208733 | G235: =SUMPRODUCT(E227:E234,G227:G234) -> 3439.373056 | K235: =SUM(K227:K234) -> 10759.33513 | AA235: 1.5-2.5yr | AB235: =IF(AG204=3,(AC202*AG202)/(1+(1-AG206)*(1-AF235)*(1+(1-AG206)*(1-AF236)*(1+(1-AG206)*(1-AF237)))),IF(AG204=4,(AC202*AG202)/(1+(1-AG206)*(1-AF235)*(1+(1-AG206)*(1-AF236)*(1+(1-AG206)*(1-AF237)*(1+(1-AG206)*(1-AF238))))),0)) -> 6.870727266 | AE235: =AB235*$AG$206 -> 0.206121818 | AH235: =AB235+AC235+AD235-AE235-AG235 -> 6.664605448
AA236: 2.5-3.5yr | AB236: =AH235 -> 6.664605448 | AE236: =AB236*$AG$206 -> 0.1999381635 | AH236: =AB236+AC236+AD236-AE236-AG236 -> 6.464667285
AA237: 3.5-4.5yr | AB237: =AH236 -> 6.464667285 | AE237: =AB237*$AG$206 -> 0.1939400186 | AF237: =IF(AG204=3,100%,0) -> 1 | AG237: =(AB237-AE237)*AF237 -> 6.270727266 | AH237: =AB237+AC237+AD237-AE237-AG237 -> 0
G238: Hay Cost ($/T) | I238: Kg Fed per Week | K238: No of Weeks Feeding | M238: Total Cost ($) | AA238: 4.5-5.5yr | AB238: =AH237 -> 0 | AE238: =AB238*$AG$206 -> 0 | AF238: =IF(AG204=4,100%,0) -> 0 | AG238: =AB238-AE238 -> 0 | AH238: =AB238+AC238+AD238-AE238-AG238 -> 0
C239: FEEDING | E239: Number | AB239: =AB234+AB235+AB236+AB237+AB238 -> 20 | AD239: =AD234+AD235+AD236+AD237+AD238 -> 6.870727266 | AE239: =AE234+AE235+AE236+AE237+AE238 -> 0.6 | AG239: =AG234+AG235+AG236+AG237+AG238 -> 6.270727266 | AH239: =AH234+AH235+AH236+AH237+AH238 -> 20
C240: Ewes | E240: ='Prime Lambs Maternal Input'!E63 -> 1000 | G240: ='Prime Lambs Maternal Input'!F63 -> 230 | I240: ='Prime Lambs Maternal Input'!G63 -> 2.5 | K240: ='Prime Lambs Maternal Input'!H63 -> 8 | M240: =(E240*G240*I240*K240)/1000 -> 4600 | AA240: d.s.e's | AB240: =AB239*AE49 -> 40
C241: Rams | E241: ='Prime Lambs Maternal Input'!E64 -> 20 | G241: ='Prime Lambs Maternal Input'!F64 -> 230 | I241: ='Prime Lambs Maternal Input'!G64 -> 2.5 | K241: ='Prime Lambs Maternal Input'!H64 -> 8 | M241: =(E241*G241*I241*K241)/1000 -> 92
C242: Lambs | E242: ='Prime Lambs Maternal Input'!E65 -> 0 | G242: ='Prime Lambs Maternal Input'!F65 -> 0 | I242: ='Prime Lambs Maternal Input'!G65 -> 0 | K242: ='Prime Lambs Maternal Input'!H65 -> 0 | M242: =(E242*G242*I242*K242)/1000 -> 0
G243: Grain Cost ($/T) | I243: Kg Fed per Week | K243: No of Weeks Feeding | M243: Total Cost ($)
E244: Number
C245: Ewes | E245: ='Prime Lambs Maternal Input'!E70 -> 1000 | G245: ='Prime Lambs Maternal Input'!F70 -> 220 | I245: ='Prime Lambs Maternal Input'!G70 -> 3 | K245: ='Prime Lambs Maternal Input'!H70 -> 8 | M245: =(E245*G245*I245*K245)/1000 -> 5280
C246: Rams | E246: ='Prime Lambs Maternal Input'!E71 -> 20 | G246: ='Prime Lambs Maternal Input'!F71 -> 220 | I246: ='Prime Lambs Maternal Input'!G71 -> 3 | K246: ='Prime Lambs Maternal Input'!H71 -> 10 | M246: =(E246*G246*I246*K246)/1000 -> 132
C247: Lambs | E247: ='Prime Lambs Maternal Input'!E72 -> 0 | G247: ='Prime Lambs Maternal Input'!F72 -> 0 | I247: ='Prime Lambs Maternal Input'!G72 -> 0 | K247: ='Prime Lambs Maternal Input'!H72 -> 0 | M247: =(E247*G247*I247*K247)/1000 -> 0
C248: TOTAL FEED COST | M248: =SUM(M240:M242,M245:M247) -> 10104
C251: GM SENSITIVITY
C252: Gross Margin/DSE | E252: Average Weaning Rate
G253: 1.1 | I253: 1.2 | K253: 1.3 | M253: 1.4 | O253: 1.5 | Q253: 1.6
E254: 160.5 | G254: =($E$199*G$253*$E254*(1-$K$124)+SUM($K$209:$K$210)+$K$235-$AK$57-$E$199*G$253*$AO$52)/$E$197 -> 59.10160157 | I254: =($E$199*I$253*$E254*(1-$K$124)+SUM($K$209:$K$210)+$K$235-$AK$57-$E$199*I$253*$AO$52)/$E$197 -> 66.76552766 | K254: =($E$199*K$253*$E254*(1-$K$124)+SUM($K$209:$K$210)+$K$235-$AK$57-$E$199*K$253*$AO$52)/$E$197 -> 74.42945375 | M254: =($E$199*M$253*$E254*(1-$K$124)+SUM($K$209:$K$210)+$K$235-$AK$57-$E$199*M$253*$AO$52)/$E$197 -> 82.09337983 | O254: =($E$199*O$253*$E254*(1-$K$124)+SUM($K$209:$K$210)+$K$235-$AK$57-$E$199*O$253*$AO$52)/$E$197 -> 89.75730592 | Q254: =($E$199*Q$253*$E254*(1-$K$124)+SUM($K$209:$K$210)+$K$235-$AK$57-$E$199*Q$253*$AO$52)/$E$197 -> 97.42123201
E255: 165.5 | G255: 61.91138418 | I255: 69.83074505 | K255: 77.75010592 | M255: 85.66946679 | O255: 93.58882766 | Q255: 101.5081885
C256: Average Lamb Sale Price($/hd) | E256: 170.5 | G256: 64.72116679 | I256: 72.89596244 | K256: 81.07075809 | M256: 89.24555375 | O256: 97.4203494 | Q256: 105.595145
E257: 175.5 | G257: 67.5309494 | I257: 75.96117983 | K257: 84.39141027 | M257: 92.8216407 | O257: 101.2518711 | Q257: 109.6821016
E258: 180.5 | G258: 70.34073201 | I258: 79.02639722 | K258: 87.71206244 | M258: 96.39772766 | O258: 105.0833929 | Q258: 113.7690581
E259: 185.5 | G259: 73.15051461 | I259: 82.09161461 | K259: 91.03271461 | M259: 99.97381461 | O259: 108.9149146 | Q259: 117.8560146
E260: 190.5 | G260: 75.96029722 | I260: 85.15683201 | K260: 94.35336679 | M260: 103.5499016 | O260: 112.7464364 | Q260: 121.9429711
E261: 195.5 | G261: 78.77007983 | I261: 88.2220494 | K261: 97.67401896 | M261: 107.1259885 | O261: 116.5779581 | Q261: 126.0299277
E262: 200.5 | G262: 81.57986244 | I262: 91.28726679 | K262: 100.9946711 | M262: 110.7020755 | O262: 120.4094798 | Q262: 130.1168842
E263: 205.5 | G263: 84.38964505 | I263: 94.35248418 | K263: 104.3153233 | M263: 114.2781624 | O263: 124.2410016 | Q263: 134.2038407
E264: 210.5 | G264: 87.19942766 | I264: 97.41770157 | K264: 107.6359755 | M264: 117.8542494 | O264: 128.0725233 | Q264: 138.2907972

Sheet Prime Lambs Merino Ewes Input (hidden)
C1: Prime Lambs Merino Ewes
C2: =UPPER(var_animal)&" GROSS MARGIN - "&TEXT(m_year,"0000") -> PRIME LAMBS MERINO EWES GROSS MARGIN - 2021
C4: GENERAL INFORMATION
C5: This represents a Merino Ewe enterprise mated to a terminal sire. All ewe replacements are purchased, but age of replacements can be varied from 1.5 years to 4.5 years. NB. Can be bought from own self-replacing merino enterprise. Following are the various assumptions used in the calculation of the Gross Margin. Cells with yellow highlight can be changed. No allowance has been made for pasture expenses such as seed, fertiliser and chemicals. Refer to pasture gross margins in the “Cropping Gross Margin Plan” for annual and perennial pasture costs. Use the livestock gross margin per DSE as income for the pasture gross margin.
C7: Ewes mated | E7: 1000
C8: Age ewes purchased | E8: 1.5
C9: Age ewes sold | E9: 5.5
C10: Av Weaning % | E10: 1.1
C11: Ram percentage | E11: 0.025
C12: Years Rams Kept | E12: 3
C13: Flock death Rate | E13: 0.03
C14: % Lambs carried over | E14: 0
C17: LIVESTOCK SALES | E17: Price/Hd | F17: Number | G17: Total
C18: c.f.a Ewes | E18: 170 | F18: ='Prime Lambs Merino Ewes'!AG220 -> 231.53548 | G18: =E18*ROUND(F18,0) -> 39440
C19: c.f.a Rams | E19: 120 | F19: ='Prime Lambs Merino Ewes'!AG238 -> 7.838409083 | G19: =E19*ROUND(F19,0) -> 960
C20: Lambs | E20: 175 | F20: ='Prime Lambs Merino Ewes'!AG227 -> 1100 | G20: =E20*ROUND(F20,0) -> 192500
C25: TOTAL SALES | F25: =SUM(F18:F23) -> 1339.373889 | G25: =SUM(G18:G23) -> 232900
C28: LIVESTOCK PURCHASES | E28: Price/Hd | F28: Number | G28: Total
C29: Ewes | E29: 250 | F29: ='Prime Lambs Merino Ewes'!AD220 -> 261.53548 | G29: =E29*F29 -> 65383.87001 | H29: Change Ewe price depending on
C30: Rams | E30: 1850 | F30: =ROUND('Prime Lambs Merino Ewes'!AD238,0) -> 9 | G30: =E30*F30 -> 16650 | H30: age purchased.
C32: TOTAL PURCHASES | F32: =SUM(F29:F30) -> 270.53548 | G32: =SUM(G29:G30) -> 82033.87001
C35: WOOL PRICE (cents/kg) | F35: =TEXT(m_year-3,"0000")&" Average (Clean)" -> 2018 Average (Clean) | G35: =TEXT(m_year-2,"0000")&" Average (Clean)" -> 2019 Average (Clean) | H35: =TEXT(m_year-1,"0000")&" Average (Clean)" -> 2020 Average (Clean) | I35: Budget Base (Clean) | J35: Budget Base (Greasy) | L35: Wool Type | M35: Estimated Clean Price
E36: Wool- High Rainfall 21 mic 68% yield | F36: 1533 | G36: 2085 | H36: 1995 | I36: 1160 | J36: =I36*I37 -> 788.8 | L36: 19 mic | M36: 1820
E37: Estimated wool yield | I37: 0.68 | L37: 21 mic | M37: 1780
C38: Allow 90% to account for lower value of bellies, skirtings etc. | J38: =J36*0.9 -> 709.92 | L38: 22 mic | M38: 1765
C42: WOOL SALES - SHEARING | F42: Wool Cut
E43: Number | F43: kg/hd | G43: Price | H43: Total
C44: Ewes | E44: ='Prime Lambs Merino Ewes'!E226 -> 970 | F44: 6.5 | G44: =J36/100 -> 7.888 | H44: =E44*F44*G44 -> 49733.84
C45: Crossbred Rams | E45: ='Prime Lambs Merino Ewes'!E227 -> 24.25 | F45: 3 | G45: 1.79 | H45: =E45*F45*G45 -> 130.2225
C47: TOTAL | E47: =SUM(E44:E46) -> 994.25 | F47: =(E44*F44)+(E45*F45) -> 6377.75 | H47: =SUM(H44:H46) -> 49864.0625
C50: STOCK HEALTH REQUIREMENTS | E50: =HYPERLINK("http://paraboss.com.au","for more info on drench, lice and blowfly product selection refer to www.paraboss.com.au") -> for more info on drench, lice and blowfly product selection refer to www.paraboss.com.au
G51: Number of times
E52: Number | F52: Drench | G52: Vacc. | H52: Blowfly
C53: Ewes | E53: ='Prime Lambs Merino Ewes'!E219 -> 1000 | F53: 1 | G53: 1 | H53: 1
C54: Rams | E54: ='Prime Lambs Merino Ewes'!E220 -> 25 | F54: 2 | G54: 1 | H54: 0
C55: Lambs | E55: ='Prime Lambs Merino Ewes'!E221 -> 1100 | F55: 1 | G55: 2 | H55: 0
C57: TOTAL | E57: =SUM(E53:E55) -> 2125 | F57: =SUMPRODUCT($E$53:$E$55,F53:F55) -> 2150 | G57: =SUMPRODUCT($E$53:$E$55,G53:G55) -> 3225 | H57: =SUMPRODUCT($E$53:$E$55,H53:H55) -> 1000
C60: FEEDING
C61: HAY | F61: Hay | G61: Kgs Fed | H61: No Weeks | I61: Total
E62: Number | F62: Cost ($/T) | G62: per Week | H62: of Feeding | I62: Cost ($)
C63: Ewes | E63: ='Prime Lambs Merino Ewes'!E219 -> 1000 | F63: 230 | G63: 2.5 | H63: 8 | I63: =(H63*G63*E63)/1000*F63 -> 4600
C64: Rams | E64: ='Prime Lambs Merino Ewes'!E220 -> 25 | F64: 230 | G64: 2.5 | H64: 8 | I64: =(H64*G64*E64)/1000*F64 -> 115
C65: Lambs | E65: 660 | F65: 230 | G65: 2.5 | H65: 5 | I65: =(H65*G65*E65)/1000*F65 -> 1897.5
C67: GRAIN | F67: Grain | G67: Kgs Fed | H67: No weeks | I67: Total
E68: Number | F68: Cost ($/T) | G68: per week | H68: of Feeding | I68: Cost ($)
C69: Ewes | E69: ='Prime Lambs Merino Ewes'!E219 -> 1000 | F69: 220 | G69: 3 | H69: 8 | I69: =(H69*G69*E69)/1000*F69 -> 5280
C70: Rams | E70: ='Prime Lambs Merino Ewes'!E220 -> 25 | F70: 250 | G70: 3 | H70: 10 | I70: =(H70*G70*E70)/1000*F70 -> 187.5
C71: Lambs | E71: 660 | F71: 250 | G71: 6 | H71: 5 | I71: =(H71*G71*E71)/1000*F71 -> 4950
H73: Total Feed Cost | I73: =SUM(I63:I65,I69:I71) -> 17030

Sheet Prime Lambs Merino Ewes (hidden)
C1: Prime Lambs Merino Ewes
C2: =UPPER(Var_Animal)&" GROSS MARGIN - "&TEXT(m_year,"0000") -> PRIME LAMBS MERINO EWES GROSS MARGIN - 2021
C4: ASSUMPTIONS
C6: Ave Breeding Ewe Fibre Diameter | E6: 21 | O6: Total DSE's | Q6: =E197 -> 1850
C7: No. of breeding ewes (1st Cross) | E7: ='Prime Lambs Merino Ewes Input'!$E$7 -> 1000
C8: 1st cross ewe - Terminal meat sire
C32: INCOME | Q32: $
C34: Wool (kg greasy) | E34: =G234 -> 6377.75 | G34: kg | I34: av price | K34: =K234*100/G234*0.9 -> 703.6596958 | M34: c/kg | Q34: =K234 -> 49864.0625
C35: Sales | E35: =E212 -> 1339.373889 | G35: animals | I35: av price | K35: =G212 -> 173.8137816 | M35: /head | Q35: =K212 -> 232900
C37: Gross Income | Q37: =SUM(Q34:Q35) -> 282764.0625
AA45: STOCK VALUE AND D.S.E REQUIREMENT | AG45: Non lamb related expenses | AM45: Lamb Costs | AN45: No: | AO45: per head | AS45: SHEEP GROSS MARGIN
C46: VARIABLE COSTS | AC46: Value | AD46: Ave Live | AE46: DSE | AS46: PRIME LAMB -
C47: Shearing | K47: Rate | AB47: Number | AC47: $/head | AD47: Wt (Kgs) | AE47: rating | AG47: Shearing | AJ47: =SUM(Q48:Q58) -> 8943.138751 | AM47: Marking | AN47: =$E$121 -> 1100 | AO47: =K76+K77 -> 1.52 | AP47: =AN47*AO47 -> 1672
C48: Shearing | E48: =E226 -> 970 | G48: sheep | I48: Reset Rate> | J48: =GM_INFO!C30 | K48: =GM_INFO!C77 -> 324.31 | M48: /100 | Q48: =K48/100*ROUND(E48,0) -> 3145.807 | AA48: ewes | AB48: ='Prime Lambs Merino Ewes Input'!$E$7 -> 1000 | AC48: =(G209+G214)/2 -> 210 | AD48: 55 | AE48: =IF(AND(AD48>=55,AD48<60),1.8,IF(AND(AD48>=60,AD48<65),2.5,IF(AND(AD48>=65,AD48<70),1.9,IF(AND(AD48>=70,AD48<75),2,IF(AND(AD48>=75,AD48<80),2.1,IF(AND(AD48>=80,AD48<85),2.2,IF(AND(AD48>=85,AD48<90),2.3,IF(AD48>=90,2.4,0)))))))) -> 1.8 | AG48: Animal health | AJ48: =(E219*G219+E220*G220)*K90+(E219*I219+E220*I220)*K91+(E219*K219)*K92 -> 1907.45 | AM48: Animal health | AN48: =$E$121 -> 1100 | AO48: =G220*K91+I220*K90 -> 0.8522 | AP48: =AN48*AO48 -> 937.42
C49: (Federal awards) | E49: =E227 -> 24.25 | G49: rams | I49: Reset Rate> | J49: =GM_INFO!C31 | K49: =GM_INFO!C78 -> 648.62 | M49: /100 | Q49: =K49/100*ROUND(E49,0) -> 155.6688 | AA49: rams | AB49: ='Prime Lambs Merino Ewes Input'!E11*'Prime Lambs Merino Ewes'!AB48 -> 25 | AC49: =(G210+G215)/2 -> 985 | AD49: 100 | AE49: 2 | AG49: Stock Purchase | AJ49: =SUM(Q105:Q105) -> 81272.42681 | AM49: Freight | AN49: =$E$121 -> 1100 | AO49: =K121 -> 4 | AP49: =AN49*AO49 -> 4400
C50: Shed labour | E50: 5 | G50: days | I50: Reset Rate> | J50: =GM_INFO!C32 | K50: =GM_INFO!C79 -> 245.56 | M50: /day | Q50: =K50*ROUND(E50,0) -> 1227.8 | AA50: lambs | AB50: =AC227 -> 1100 | AC50: =G211/2 -> 87.5 | AD50: 35 | AE50: 0 | AG50: Freight | AH50: sheep | AJ50: =SUM(Q119:Q120) -> 2002.14192 | AM50: Yard Fees | AN50: =$E$121 -> 1100 | AO50: =K125 -> 0.85 | AP50: =AN50*AO50 -> 935
C51: Woolclasser | E51: 2.5 | G51: days | I51: Reset Rate> | J51: =GM_INFO!C33 | K51: =GM_INFO!C80 -> 312.11 | M51: /day | Q51: =K51*E51 -> 780.275 | AA51: TOTAL | AB51: =SUM(AB48:AB50) -> 2125 | AC51: =AB48*AC48+AB49*AC49+AB50*AC50/2 -> 282750 | AH51: Wool | AJ51: =Q122 -> 570 | AM51: Levies | AN51: =$E$121 -> 1100 | AO51: =K127+K128 -> 2.17 | AP51: =AN51*AO51 -> 2387 | AS51: Ewes mated | AU51: ='Prime Lambs Merino Ewes Input'!$E$7 -> 1000 | AX51: Ram % | AY51: =E200 -> 0.025
C52: Superannuation (on ord wages only) | I52: Reset Rate> | J52: =GM_INFO!C34 | K52: =GM_INFO!C81 -> 0.095 | M52: wages | Q52: =(Q48+Q49+Q50+Q51)*K52 -> 504.407326 | AG52: Commission on livestock sales | AJ52: =(K209+K210)*K124 -> 2424 | AO52: =SUM(AO47:AO51) -> 9.3922 | AQ52: =AO52*AD50 -> 328.727 | AS52: Age ewes purchased | AU52: =E201 -> 1.5 | AX52: Price of rams | AY52: =AL68 -> 0
C53: W/Cover (incl. super + otime etc) | I53: Reset Rate> | J53: =GM_INFO!C35 | K53: =GM_INFO!C82 -> 0.04 | M53: total | Q53: =(Q48+Q49+Q50+Q51+Q52)*K53 -> 232.558325 | AG53: Yard fees | AJ53: =E119*K125 -> 203.4678057 | AM53: Commission | AN53: =$E$121 -> 1100 | AO53: =G212 -> 173.8137816 | AP53: =K124 -> 0.06 | AQ53: =AD50*AO53*AP53 -> 365.0089414 | AS53: Age ewes sold | AU53: =E202 -> 5.5 | AX53: Years rams kept | AY53: =E203 -> 3
C54: Wool packs | E54: =E122 -> 37.51617647 | G54: packs | I54: Reset Rate> | J54: =GM_INFO!C28 | K54: =GM_INFO!C75 -> 12 | M54: /pack | Q54: =K54*ROUND(E54,0) -> 456 | AG54: Levies | AJ54: =E126*(K126+K128) -> 208.2552835 | AS54: Av Weaning % | AU54: ='Prime Lambs Merino Ewes Input'!E10 -> 1.1 | AX54: Age wethers sold | AY54: 0.5
C55: Shed sundries | E55: =E48+E49 -> 994.25 | G55: sheep | I55: Reset Rate> | J55: =GM_INFO!C36 | K55: =GM_INFO!C83 -> 0.2 | M55: /head | Q55: =K55*ROUND(E55,0) -> 198.8 | AG55: Wool Selling Charges | AJ55: =Q130+Q131 -> 2469.953438 | AQ55: =SUM(AQ43:AQ53) -> 693.7359414 | AS55: dse/ewe | AU55: =AE48 -> 1.8 | AX55: Flock death rate | AY55: =E204 -> 0.03
C56: Lice control | E56: =E48+E49 -> 994.25 | G56: sheep | I56: Reset Rate> | J56: =GM_INFO!C19 | K56: =GM_INFO!C66 -> 1.2912 | M56: /head | Q56: =K56*ROUND(E56,0) -> 1283.4528 | AG56: Feed & other costs | AJ56: =SUM(Q144:Q149) -> 25365.5
C57: Crutch & Wig | E57: =E48+2*E49 -> 1018.5 | G57: ewes | I57: Reset Rate> | J57: =GM_INFO!C38 | K57: =GM_INFO!C85 -> 94.05 | M57: /100 | Q57: =K57/100*ROUND(E57,0) -> 958.3695 | AK57: =SUM(AJ47:AJ56) -> 125366.334
E58: 0 | G58: lambs | I58: Reset Rate> | J58: =GM_INFO!C38 | K58: =GM_INFO!C85 -> 94.05 | M58: /100 | Q58: =K58/100*ROUND(E58,0) -> 0
AS60: EWES | AT60: OPENING | AU60: NATURAL | AV60: PURCHASES | AW60: DEATHS | AX60: % sold | AY60: SALES | AZ60: CLOSING
AS61: AGE | AT61: NUMBERS | AU61: INCREASE | AX61: culled | AZ61: NUMBERS
AS63: 0.5-1.5yr | AV63: =IF($N$78=1.5,AT64,AT63-AW63) -> 0 | AY63: =AT63-AW63 -> 0 | AZ63: =AT63+AU63+AV63-AW63-AY63 -> 0
AS64: 1.5-2.5yr | AT64: =IF(AU52=1.5,AU51/(1+(1-AY55)*(1-AX64)*(1+(1-AY55)*(1-AX65)*(1+(1-AY55)*(1-AX66)*(1+(1-AY55)*(1-AX67))))),0) -> 261.53548 | AV64: =IF(AU52=2.5,AT65-AY64,0) -> 0 | AW64: =AT64*$R$81 -> 0 | AY64: =(AT64-AW64)*AX64 -> 0 | AZ64: 261.53548
AS65: 2.5-3.5yr | AT65: =IF(AU52=2.5,AU51/(1+(1-AY55)*(1-AX65)*(1+(1-AY55)*(1-AX66)*(1+(1-AY55)*(1-AX67)))),AZ64) -> 261.53548 | AV65: =IF(AU52=3.5,AT66-AY65,0) -> 0 | AW65: =AT65*$R$81 -> 0 | AY65: =(AT65-AW65)*AX65 -> 0 | AZ65: 261.53548
AS66: 3.5-4.5yr | AT66: =IF(AU52=3.5,AU51/(1+(1-AY55)*(1-AX66)*(1+(1-AY55)*(1-AX67))),AZ65) -> 261.53548 | AV66: =IF(AU52=4.5,AT67-AY66,0) -> 0 | AW66: =AT66*$R$81 -> 0 | AY66: =(AT66-AW66)*AX66 -> 0 | AZ66: 261.53548
AS67: 4.5-5.5yr | AT67: =IF(AU52=4.5,AU51/(1+(1-AY55)*(1-AX67)),AZ66) -> 261.53548 | AW67: =AT67*$R$81 -> 0 | AX67: =IF(AU53=5.5,1,0) -> 1 | AY67: =(AT67-AW67)*AX67 -> 261.53548 | AZ67: 0
AS68: 5.5-6.5yr | AT68: =AZ67 -> 0 | AW68: =AT68*$R$81 -> 0 | AX68: =IF(AU53=6.5,1,0) -> 0 | AY68: =(AT68-AW68)*AX68 -> 0 | AZ68: 0
AS69: Ewes | AT69: =SUM(AT64:AT68) -> 1046.14192 | AV69: =AV63+AV64+AV65+AV66 -> 0 | AW69: =SUM(AW63:AW68) -> 0 | AY69: =SUM(AY64:AY68) -> 261.53548 | AZ69: =SUM(AZ63:AZ67) -> 784.6064401
AS70: d.s.e's | AT70: =AT63+AT69*AU55 -> 1883.055456
AS73: LAMBS | AT73: OPENING | AU73: NATURAL | AV73: PURCHASES | AW73: DEATHS | AX73: % sold | AY73: SALES | AZ73: CLOSING
AS74: AGE | AT74: NUMBERS | AU74: INCREASE | AX74: culled | AZ74: NUMBERS
C75: Marking
C76: Lamb marking | E76: =AC227 -> 1100 | G76: lambs | I76: Reset Rate> | J76: =GM_INFO!C42 | K76: =GM_INFO!C89 -> 1.15 | M76: /head | Q76: =K76*ROUND(E76,0) -> 1265 | AS76: 0-0.5yr | AU76: =AU51*AU54 -> 1100 | AX76: 1 | AY76: =AU76*AX76 -> 1100 | AZ76: =AT76+AU76+AV76-AW76-AY76 -> 0
C77: Ear tags | E77: =AC227 -> 1100 | G77: lambs | I77: Reset Rate> | J77: =GM_INFO!C43 | K77: =GM_INFO!C90 -> 0.37 | M77: /head | Q77: =K77*ROUND(E77,0) -> 407
AS79: RAMS | AT79: OPENING | AU79: NATURAL | AV79: PURCHASES | AW79: DEATHS | AX79: % sold | AY79: SALES | AZ79: CLOSING
AS80: AGE | AT80: NUMBERS | AU80: INCREASE | AX80: culled | AZ80: NUMBERS
AS82: 0.5-1.5yr | AV82: =AT83/(1-AX82) -> 8.588409083 | AW82: =AT82*$R$81 -> 0 | AZ82: =AT82+AU82+AV82-AW82-AY82 -> 8.588409083
AS83: 1.5-2.5yr | AT83: =IF(AY53=3,(AU51*AY51)/(1+(1-AY55)*(1-AX83)*(1+(1-AY55)*(1-AX84)*(1+(1-AY55)*(1-AX85)))),IF(AY53=4,(AU51*AY51)/(1+(1-AY55)*(1-AX83)*(1+(1-AY55)*(1-AX84)*(1+(1-AY55)*(1-AX85)*(1+(1-AY55)*(1-AX86))))),0)) -> 8.588409083 | AW83: =AT83*$R$81 -> 0 | AZ83: =AT83+AU83+AV83-AW83-AY83 -> 8.588409083
AS84: 2.5-3.5yr | AT84: =AZ83 -> 8.588409083 | AW84: =AT84*$R$81 -> 0 | AZ84: =AT84+AU84+AV84-AW84-AY84 -> 8.588409083
AS85: 3.5-4.5yr | AT85: =AZ84 -> 8.588409083 | AW85: =AT85*$R$81 -> 0 | AX85: =IF(AY53=3,100%,0) -> 1 | AY85: =(AT85-AW85)*AX85 -> 8.588409083 | AZ85: =AT85+AU85+AV85-AW85-AY85 -> 0
AS86: 4.5-5.5yr | AT86: =AZ85 -> 0 | AW86: =AT86*$R$81 -> 0 | AX86: =IF(AY53=4,100%,0) -> 0 | AY86: =AT86-AW86 -> 0 | AZ86: =AT86+AU86+AV86-AW86-AY86 -> 0
AT87: =AT82+AT83+AT84+AT85+AT86 -> 25.76522725 | AV87: =AV82+AV83+AV84+AV85+AV86 -> 8.588409083 | AW87: =AW82+AW83+AW84+AW85+AW86 -> 0 | AY87: =AY82+AY83+AY84+AY85+AY86 -> 8.588409083 | AZ87: =AZ82+AZ83+AZ84+AZ85+AZ86 -> 25.76522725
AS88: d.s.e's | AT88: =AT87*AE49 -> 51.5304545
C89: Animal Health
C90: Drench | E90: =G222 -> 2150 | G90: sheep | I90: Reset Rate> | J90: =GM_INFO!C21 | K90: =GM_INFO!C68 -> 0.417 | M90: /head | Q90: =K90*ROUND(E90,0) -> 896.55
C91: Vaccinate | E91: =I222 -> 3225 | G91: sheep | I91: Reset Rate> | J91: =GM_INFO!C25 | K91: =GM_INFO!C70 -> 0.2176 | M91: /head | Q91: =K91*ROUND(E91,0) -> 701.76
C92: Blowfly control | E92: =K222 -> 1000 | G92: sheep | I92: Reset Rate> | J92: =GM_INFO!C27 | K92: =GM_INFO!C74 -> 1.24656 | M92: /head | Q92: =K92*ROUND(E92,0) -> 1246.56
C104: Stock purchases
C105: Purchases | Q105: =K214+K215 -> 81272.42681
C117: Sale Costs
C118: Freight
C119: Livestock | E119: =SUM(E209:E210) -> 239.3738891 | G119: culls | I119: Reset Rate> | J119: =GM_INFO!B111 | K119: =GM_INFO!B158 -> 4 | M119: /head | Q119: =K119*ROUND(E119,0) -> 956
E120: =E214 -> 261.53548 | G120: ewes | I120: Reset Rate> | J120: =GM_INFO!B112 | K120: =GM_INFO!B159 -> 4 | M120: /head | Q120: =K120*E120 -> 1046.14192
E121: =E211 -> 1100 | G121: prime lambs | I121: Reset Rate> | J121: =GM_INFO!B113 | K121: =GM_INFO!B160 -> 4 | M121: /head | Q121: =K121*ROUND(E121,0) -> 4400
C122: Wool | E122: =G234/170 -> 37.51617647 | G122: bales | I122: Reset Rate> | J122: =GM_INFO!B114 | K122: =GM_INFO!B161 -> 15 | M122: /bale | Q122: =K122*ROUND(E122,0) -> 570
C123: Stock selling charges
C124: Commission/insurance | I124: Reset Rate> | J124: =GM_INFO!C48 | K124: =GM_INFO!C95 -> 0.06 | M124: gross $ | Q124: =K124*Q35 -> 13974
C125: Yard fees | E125: =E212 -> 1339.373889 | G125: sheep | I125: Reset Rate> | J125: =GM_INFO!C49 | K125: =GM_INFO!C96 -> 0.85 | M125: /head | Q125: =K125*ROUND(E125,0) -> 1138.15
C126: Levy-sheep | E126: =E119 -> 239.3738891 | G126: sheep | I126: Reset Rate> | J126: =GM_INFO!C50 | K126: =GM_INFO!C97 -> 0.2 | M126: /head | Q126: =K126*ROUND(E126,0) -> 47.8
C127: Levy-lambs | E127: =E211 -> 1100 | G127: sheep | I127: Reset Rate> | J127: =GM_INFO!C51 | K127: =GM_INFO!C98 -> 1.5 | M127: /head | Q127: =K127*ROUND(E127,0) -> 1650
C128: SA sheep industry levy | E128: =E212 -> 1339.373889 | G128: sheep | I128: Reset Rate> | J128: =GM_INFO!C52 | K128: =GM_INFO!C99 -> 0.67 | M128: /head | Q128: =K128*ROUND(E128,0) -> 897.13
C129: Wool selling charges
C130: Brokerage/testing/insurance | I130: Reset Rate> | J130: =GM_INFO!C53 | K130: =GM_INFO!C100 -> 0.27 | M130: /kg | Q130: =K130*E34 -> 1721.9925
C131: Wool levy | I131: Reset Rate> | J131: =GM_INFO!C54 | K131: =GM_INFO!C101 -> 0.015 | M131: gross | Q131: =K131*Q34 -> 747.9609375
C143: Feed and Other Costs
C144: Hay | Q144: =SUM('Prime Lambs Merino Ewes Input'!I63:I65) -> 6612.5
C145: Grain | Q145: =SUM('Prime Lambs Merino Ewes Input'!I69:I71) -> 10417.5
C146: Insurance | E146: =AC51 -> 282750 | G146: value | I146: Reset Rate> | J146: =GM_INFO!B107 | K146: =GM_INFO!B154 -> 2 | M146: /$'000 | Q146: =K146/1000*E146 -> 565.5
C147: Water | E147: =$Q$6 -> 1850 | G147: DSE's | I147: Reset Rate> | J147: =GM_INFO!D79 | K147: =GM_INFO!E126 -> 2.5 | M147: /DSE's | Q147: =K147*E147 -> 4625
C148: Veh Fuel, R&M | E148: =$Q$6 -> 1850 | G148: DSE's | I148: Reset Rate> | J148: =GM_INFO!D80 | K148: =GM_INFO!E127 -> 1.2 | M148: /DSE's | Q148: =K148*E148 -> 2220
C149: Other | E149: =$Q$6 -> 1850 | G149: DSE's | I149: Reset Rate> | J149: =GM_INFO!D81 | K149: =GM_INFO!E128 -> 0.5 | M149: /DSE's | Q149: =K149*E149 -> 925
C170: TOTAL VARIABLE COSTS | Q170: =SUM(Q48:Q166) -> 147247.1109
C172: GROSS MARGIN TOTAL | Q172: =Q37-Q170 -> 135516.9516
C174: GROSS MARGIN/DSE | Q174: =Q172/Q6 -> 73.25240626
C194: PRODUCTION DATA
C196: Stocking rate (DSE/Ha) | E196: 6 | K196: Culling Rate (% from each group) | AA196: SHEEP GROSS MARGIN
C197: Total DSE's | E197: =SUMPRODUCT(AB48:AB50,AE48:AE50) -> 1850 | K197: Age Group | M197: Ewes | O197: Wethers | AA197: PRIME LAMB -
C198: SHEEP GRAZING AREA | E198: =E197/E196 -> 308.3333333 | K198: 0.5 | M198: =AF214 -> 0
C199: Number of ewes mated | E199: ='Prime Lambs Merino Ewes Input'!E7 -> 1000 | K199: 1.5 | M199: 0
C200: Ram percentage | E200: ='Prime Lambs Merino Ewes Input'!E11 -> 0.025 | K200: 2.5 | M200: 0
C201: Age ewes bought (yrs) | E201: ='Prime Lambs Merino Ewes Input'!E8 -> 1.5 | K201: 3.5 | M201: 0
C202: Age ewes culled | E202: ='Prime Lambs Merino Ewes Input'!E9 -> 5.5 | K202: 4.5 | M202: 1 | AA202: Ewes mated | AC202: ='Prime Lambs Merino Ewes Input'!E7 -> 1000 | AF202: Ram % | AG202: =E200 -> 0.025
B203: =VLOOKUP(r[0]c3&"No Ops",CHOOSE({1,2},tbl_ops[Name]&tbl_ops[Category],INDIRECT("tbl_ops["&var_crop&"]")),2,0) | C203: Years rams kept | E203: ='Prime Lambs Merino Ewes Input'!E12 -> 3 | K203: 5.5 | M203: 0 | AA203: Age ewes purchased | AC203: =E201 -> 1.5 | AF203: Price of rams | AG203: =G215 -> 1850
B204: =VLOOKUP(r[0]c3&"No Ops",CHOOSE({1,2},tbl_ops[Name]&tbl_ops[Category],INDIRECT("tbl_ops["&var_crop&"]")),2,0) | C204: Flock death rate | E204: ='Prime Lambs Merino Ewes Input'!E13 -> 0.03 | K204: 6.5 | M204: 0 | AA204: Age ewes sold | AC204: =E202 -> 5.5 | AF204: Years rams kept | AG204: =E203 -> 3
B205: =VLOOKUP(r[0]c3&"No Ops",CHOOSE({1,2},tbl_ops[Name]&tbl_ops[Category],INDIRECT("tbl_ops["&var_crop&"]")),2,0) | C205: Average weaning rate | E205: =AC205 -> 1.1 | AA205: Av Weaning % | AC205: ='Prime Lambs Merino Ewes Input'!E10 -> 1.1 | AF205: Age wethers sold | AG205: 0.5
B206: =VLOOKUP(r[0]c3&"No Ops",CHOOSE({1,2},tbl_ops[Name]&tbl_ops[Category],INDIRECT("tbl_ops["&var_crop&"]")),2,0) | C206: % Lambs carried over | E206: 0 | AA206: dse/ewe | AC206: =AE48 -> 1.8 | AF206: Flock death rate | AG206: =E204 -> 0.03
B207: =VLOOKUP(r[0]c3&var_rain,CHOOSE({1,2},tbl_ops[Name]&tbl_ops[Rainfall],INDIRECT("tbl_ops["&var_crop&"]")),2,0)
B208: =VLOOKUP(r[0]c3&var_rain,CHOOSE({1,2},tbl_ops[Name]&tbl_ops[Rainfall],INDIRECT("tbl_ops["&var_crop&"]")),2,0) | C208: SALES | E208: Number | G208: Price/hd | I208: Age | K208: Total
B209: =VLOOKUP(r[0]c3&var_rain,CHOOSE({1,2},tbl_ops[Name]&tbl_ops[Rainfall],INDIRECT("tbl_ops["&var_crop&"]")),2,0) | C209: c.f.a ewes | E209: =AG220 -> 231.53548 | G209: ='Prime Lambs Merino Ewes Input'!E18 -> 170 | I209: =E202 -> 5.5 | K209: =ROUND(E209,0)*G209 -> 39440
B210: =VLOOKUP(r[0]c3&var_rain,CHOOSE({1,2},tbl_ops[Name]&tbl_ops[Rainfall],INDIRECT("tbl_ops["&var_crop&"]")),2,0) | C210: c.f.a rams | E210: =AG238 -> 7.838409083 | G210: ='Prime Lambs Merino Ewes Input'!E19 -> 120 | I210: =E203+1.5 -> 4.5 | K210: =ROUND(E210,0)*G210 -> 960
C211: Lambs | E211: =AG227 -> 1100 | G211: ='Prime Lambs Merino Ewes Input'!E20 -> 175 | I211: 20 Weeks | K211: =ROUND(E211,0)*G211 -> 192500 | AA211: EWES | AB211: OPENING | AC211: NATURAL | AD211: PURCHASES | AE211: DEATHS | AF211: % sold | AG211: SALES | AH211: CLOSING
C212: TOTAL | E212: =SUM(E209:E211) -> 1339.373889 | G212: =SUMPRODUCT(E209:E211,G209:G211)/E212 -> 173.8137816 | K212: =SUM(K209:K211) -> 232900 | AA212: AGE | AB212: NUMBERS | AC212: INCREASE | AF212: culled | AH212: NUMBERS
C213: PURCHASES | E213: Number | G213: Price/hd | I213: Age | K213: Total
C214: Ewes | E214: =AD220 -> 261.53548 | G214: ='Prime Lambs Merino Ewes Input'!E29 -> 250 | I214: =E201 -> 1.5 | K214: =E214*G214 -> 65383.87001 | AA214: 0.5-1.5yr | AD214: =IF(AC203=1.5,AB215,AB214-AE214) -> 261.53548 | AG214: =AB214-AE214 -> 0 | AH214: =AB214+AC214+AD214-AE214-AG214 -> 261.53548
C215: Rams | E215: =AD238 -> 8.588409083 | G215: ='Prime Lambs Merino Ewes Input'!E30 -> 1850 | I215: 1.5 | K215: =E215*G215 -> 15888.5568 | AA215: 1.5-2.5yr | AB215: =IF(AC203=1.5,AC202/(1+(1-AG206)*(1-AF215)*(1+(1-AG206)*(1-AF216)*(1+(1-AG206)*(1-AF217)*(1+(1-AG206)*(1-AF218))))),0) -> 261.53548 | AD215: =IF(AC203=2.5,AB216-AG215,0) -> 0 | AE215: =AB215*$AG$206 -> 7.846064401 | AG215: =(AB215-AE215)*AF215 -> 0 | AH215: 253.6894156
AA216: 2.5-3.5yr | AB216: =IF(AC203=2.5,AC202/(1+(1-AG206)*(1-AF216)*(1+(1-AG206)*(1-AF217)*(1+(1-AG206)*(1-AF218)))),AH215) -> 253.6894156 | AD216: =IF(AC203=3.5,AB217-AG216,0) -> 0 | AE216: =AB216*$AG$206 -> 7.610682469 | AG216: =(AB216-AE216)*AF216 -> 0 | AH216: 246.0787332
E217: Number of Times | AA217: 3.5-4.5yr | AB217: =IF(AC203=3.5,AC202/(1+(1-AG206)*(1-AF217)*(1+(1-AG206)*(1-AF218))),AH216) -> 246.0787332 | AD217: =IF(AC203=4.5,AB218-AG217,0) -> 0 | AE217: =AB217*$AG$206 -> 7.382361995 | AG217: =(AB217-AE217)*AF217 -> 0 | AH217: 238.6963712
C218: STOCK HEALTH REQUIREMENTS | E218: Number | G218: Drench | I218: Vacc. | K218: Blowfly | M218: DSE | AA218: 4.5-5.5yr | AB218: =IF(AC203=4.5,AC202/(1+(1-AG206)*(1-AF218)),AH217) -> 238.6963712 | AE218: =AB218*$AG$206 -> 7.160891135 | AF218: =IF(AC204=5.5,1,0) -> 1 | AG218: =(AB218-AE218)*AF218 -> 231.53548 | AH218: 0
C219: Ewes | E219: ='Prime Lambs Merino Ewes Input'!E7 -> 1000 | G219: ='Prime Lambs Merino Ewes Input'!F53 -> 1 | I219: ='Prime Lambs Merino Ewes Input'!G53 -> 1 | K219: ='Prime Lambs Merino Ewes Input'!H53 -> 1 | M219: 1.8 | AA219: 5.5-6.5yr | AB219: =AH218 -> 0 | AE219: =AB219*$AG$206 -> 0 | AF219: =IF(AC204=6.5,1,0) -> 0 | AG219: =(AB219-AE219)*AF219 -> 0 | AH219: 0
C220: Rams | E220: =AB49 -> 25 | G220: ='Prime Lambs Merino Ewes Input'!F54 -> 2 | I220: ='Prime Lambs Merino Ewes Input'!G54 -> 1 | K220: ='Prime Lambs Merino Ewes Input'!H54 -> 0 | M220: 2 | AA220: Ewes | AB220: =SUM(AB215:AB219) -> 1000 | AD220: =AD214+AD215+AD216+AD217 -> 261.53548 | AE220: =SUM(AE214:AE219) -> 30 | AG220: =SUM(AG215:AG219) -> 231.53548 | AH220: =SUM(AH214:AH218) -> 1000
C221: Lambs | E221: =AC227 -> 1100 | G221: ='Prime Lambs Merino Ewes Input'!F55 -> 1 | I221: ='Prime Lambs Merino Ewes Input'!G55 -> 2 | K221: ='Prime Lambs Merino Ewes Input'!H55 -> 0 | AA221: d.s.e's | AB221: =AB214+AB220*AC206 -> 1800
C222: TOTAL | E222: =SUM(E219:E221) -> 2125 | G222: =SUMPRODUCT($E$219:$E$221,G219:G221) -> 2150 | I222: =SUMPRODUCT($E$219:$E$221,I219:I221) -> 3225 | K222: =SUMPRODUCT($E$219:$E$221,K219:K221) -> 1000 | M222: =SUMPRODUCT($E$219:$E$221,M219:M221) -> 1850
G224: Wool Cut kg/hd | AA224: LAMBS | AB224: OPENING | AC224: NATURAL | AD224: PURCHASES | AE224: DEATHS | AF224: % sold | AG224: SALES | AH224: CLOSING
C225: SHEARING | E225: Number | I225: Price | K225: Total | AA225: AGE | AB225: NUMBERS | AC225: INCREASE | AF225: culled | AH225: NUMBERS
C226: Ewes | E226: =AB220-AE220 -> 970 | G226: ='Prime Lambs Merino Ewes Input'!F44 -> 6.5 | I226: ='Prime Lambs Merino Ewes Input'!G44 -> 7.888 | K226: =I226*G226*E226 -> 49733.84
C227: Crossbred rams | E227: =AB238-AE238 -> 24.25 | G227: ='Prime Lambs Merino Ewes Input'!F45 -> 3 | I227: ='Prime Lambs Merino Ewes Input'!G45 -> 1.79 | K227: =I227*G227*E227 -> 130.2225 | AA227: 0-0.5yr | AC227: =AC202*AC205 -> 1100 | AF227: 1 | AG227: =AC227*AF227 -> 1100 | AH227: =AB227+AC227+AD227-AE227-AG227 -> 0
AA230: RAMS | AB230: OPENING | AC230: NATURAL | AD230: PURCHASES | AE230: DEATHS | AF230: % sold | AG230: SALES | AH230: CLOSING
AA231: AGE | AB231: NUMBERS | AC231: INCREASE | AF231: culled | AH231: NUMBERS
AA233: 0.5-1.5yr | AD233: =AB234/(1-AF233) -> 8.588409083 | AE233: =AB233*$AG$206 -> 0 | AH233: =AB233+AC233+AD233-AE233-AG233 -> 8.588409083
C234: TOTAL | E234: =SUM(E226:E233) -> 994.25 | G234: =SUMPRODUCT(E226:E233,G226:G233) -> 6377.75 | K234: =SUM(K226:K233) -> 49864.0625 | AA234: 1.5-2.5yr | AB234: =IF(AG204=3,(AC202*AG202)/(1+(1-AG206)*(1-AF234)*(1+(1-AG206)*(1-AF235)*(1+(1-AG206)*(1-AF236)))),IF(AG204=4,(AC202*AG202)/(1+(1-AG206)*(1-AF234)*(1+(1-AG206)*(1-AF235)*(1+(1-AG206)*(1-AF236)*(1+(1-AG206)*(1-AF237))))),0)) -> 8.588409083 | AE234: =AB234*$AG$206 -> 0.2576522725 | AH234: =AB234+AC234+AD234-AE234-AG234 -> 8.330756811
AA235: 2.5-3.5yr | AB235: =AH234 -> 8.330756811 | AE235: =AB235*$AG$206 -> 0.2499227043 | AH235: =AB235+AC235+AD235-AE235-AG235 -> 8.080834106
AA236: 3.5-4.5yr | AB236: =AH235 -> 8.080834106 | AE236: =AB236*$AG$206 -> 0.2424250232 | AF236: =IF(AG204=3,100%,0) -> 1 | AG236: =(AB236-AE236)*AF236 -> 7.838409083 | AH236: =AB236+AC236+AD236-AE236-AG236 -> 0
G237: Hay Cost ($/T) | I237: Kg Fed per Week | K237: No of Weeks Feeding | M237: Total Cost ($) | AA237: 4.5-5.5yr | AB237: =AH236 -> 0 | AE237: =AB237*$AG$206 -> 0 | AF237: =IF(AG204=4,100%,0) -> 0 | AG237: =AB237-AE237 -> 0 | AH237: =AB237+AC237+AD237-AE237-AG237 -> 0
C238: FEEDING | E238: Number | AB238: =AB233+AB234+AB235+AB236+AB237 -> 25 | AD238: =AD233+AD234+AD235+AD236+AD237 -> 8.588409083 | AE238: =AE233+AE234+AE235+AE236+AE237 -> 0.75 | AG238: =AG233+AG234+AG235+AG236+AG237 -> 7.838409083 | AH238: =AH233+AH234+AH235+AH236+AH237 -> 25
C239: Ewes | E239: ='Prime Lambs Merino Ewes Input'!E63 -> 1000 | G239: ='Prime Lambs Merino Ewes Input'!F63 -> 230 | I239: ='Prime Lambs Merino Ewes Input'!G63 -> 2.5 | K239: ='Prime Lambs Merino Ewes Input'!H63 -> 8 | M239: =(E239*G239*I239*K239)/1000 -> 4600 | AA239: d.s.e's | AB239: =AB238*AE142 -> 0
C240: Rams | E240: ='Prime Lambs Merino Ewes Input'!E64 -> 25 | G240: ='Prime Lambs Merino Ewes Input'!F64 -> 230 | I240: ='Prime Lambs Merino Ewes Input'!G64 -> 2.5 | K240: ='Prime Lambs Merino Ewes Input'!H64 -> 8 | M240: =(E240*G240*I240*K240)/1000 -> 115
C241: Lambs | E241: ='Prime Lambs Merino Ewes Input'!E65 -> 660 | G241: ='Prime Lambs Merino Ewes Input'!F65 -> 230 | I241: ='Prime Lambs Merino Ewes Input'!G65 -> 2.5 | K241: ='Prime Lambs Merino Ewes Input'!H65 -> 5 | M241: =(E241*G241*I241*K241)/1000 -> 1897.5
G242: Grain Cost ($/T) | I242: Kg Fed per Week | K242: No of Weeks Feeding | M242: Total Cost ($)
E243: Number
C244: Ewes | E244: ='Prime Lambs Merino Ewes Input'!E69 -> 1000 | G244: ='Prime Lambs Merino Ewes Input'!F69 -> 220 | I244: ='Prime Lambs Merino Ewes Input'!G69 -> 3 | K244: ='Prime Lambs Merino Ewes Input'!H69 -> 8 | M244: =(E244*G244*I244*K244)/1000 -> 5280
C245: Rams | E245: ='Prime Lambs Merino Ewes Input'!E70 -> 25 | G245: ='Prime Lambs Merino Ewes Input'!F70 -> 250 | I245: ='Prime Lambs Merino Ewes Input'!G70 -> 3 | K245: ='Prime Lambs Merino Ewes Input'!H70 -> 10 | M245: =(E245*G245*I245*K245)/1000 -> 187.5
C246: Lambs | E246: ='Prime Lambs Merino Ewes Input'!E71 -> 660 | G246: ='Prime Lambs Merino Ewes Input'!F71 -> 250 | I246: ='Prime Lambs Merino Ewes Input'!G71 -> 6 | K246: ='Prime Lambs Merino Ewes Input'!H71 -> 5 | M246: =(E246*G246*I246*K246)/1000 -> 4950
C247: TOTAL FEED COST | M247: =SUM(M239:M241,M244:M246) -> 17030
C250: GM SENSITIVITY
C251: Gross Margin/DSE | E251: Average Weaning Rate
G252: 0.9 | I252: 1 | K252: 1.1 | M252: 1.2 | O252: 1.3 | Q252: 1.4
E253: 150 | G253: =($E$199*G$252*$E253*(1-$K$124)+SUM($K$209:$K$210)+$K$234-$AK$57-$E$199*G$252*$AO$52)/$E$197 -> 45.0512154 | I253: =($E$199*I$252*$E253*(1-$K$124)+SUM($K$209:$K$210)+$K$234-$AK$57-$E$199*I$252*$AO$52)/$E$197 -> 52.16515054 | K253: =($E$199*K$252*$E253*(1-$K$124)+SUM($K$209:$K$210)+$K$234-$AK$57-$E$199*K$252*$AO$52)/$E$197 -> 59.27908567 | M253: =($E$199*M$252*$E253*(1-$K$124)+SUM($K$209:$K$210)+$K$234-$AK$57-$E$199*M$252*$AO$52)/$E$197 -> 66.39302081 | O253: =($E$199*O$252*$E253*(1-$K$124)+SUM($K$209:$K$210)+$K$234-$AK$57-$E$199*O$252*$AO$52)/$E$197 -> 73.50695594 | Q253: =($E$199*Q$252*$E253*(1-$K$124)+SUM($K$209:$K$210)+$K$234-$AK$57-$E$199*Q$252*$AO$52)/$E$197 -> 80.62089108
E254: 155 | G254: 47.33770189 | I254: 54.70569108 | K254: 62.07368026 | M254: 69.44166945 | O254: 76.80965864 | Q254: 84.17764783
C255: Average Lamb Sale Price($/hd) | E255: 160 | G255: 49.62418837 | I255: 57.24623162 | K255: 64.86827486 | M255: 72.4903181 | O255: 80.11236135 | Q255: 87.73440459
E256: 165 | G256: 51.91067486 | I256: 59.78677216 | K256: 67.66286945 | M256: 75.53896675 | O256: 83.41506405 | Q256: 91.29116135
E257: 170 | G257: 54.19716135 | I257: 62.3273127 | K257: 70.45746405 | M257: 78.5876154 | O257: 86.71776675 | Q257: 94.8479181
E258: 175 | G258: 56.48364783 | I258: 64.86785324 | K258: 73.25205864 | M258: 81.63626405 | O258: 90.02046945 | Q258: 98.40467486
E259: 180 | G259: 58.77013432 | I259: 67.40839378 | K259: 76.04665324 | M259: 84.6849127 | O259: 93.32317216 | Q259: 101.9614316
E260: 185 | G260: 61.05662081 | I260: 69.94893432 | K260: 78.84124783 | M260: 87.73356135 | O260: 96.62587486 | Q260: 105.5181884
E261: 190 | G261: 63.34310729 | I261: 72.48947486 | K261: 81.63584243 | M261: 90.78220999 | O261: 99.92857756 | Q261: 109.0749451
E262: 195 | G262: 65.62959378 | I262: 75.0300154 | K262: 84.43043702 | M262: 93.83085864 | O262: 103.2312803 | Q262: 112.6317019
E263: 200 | G263: 67.91608026 | I263: 77.57055594 | K263: 87.22503162 | M263: 96.87950729 | O263: 106.533983 | Q263: 116.1884586

Sheet Lamb Trading Input (hidden)
C2: ="LAMB TRADING GROSS MARGIN - "&TEXT(m_year,"0000") -> LAMB TRADING GROSS MARGIN - 2021
C4: GENERAL INFORMATION
C5: This represents a merino Lamb flock, producing 21 micron wool. Adjust wool price if different micron wool is produced. Following are the various assumptions used in the calculation of the Gross Margin. Cells with yellow highlight can be changed. No allowance has been made for pasture expenses such as seed, fertiliser and chemicals. Refer to pasture gross margins in the “Cropping Gross Margin Plan” for annual and perennial pasture costs. Use the livestock gross margin per DSE as income for the pasture gross margin.
C7: No of Lambs | E7: 1000
C9: Age Lambs sold | E9: 0.8
C10: Age Lambs bought | E10: 0.5
C11: Lambs bought at | E11: 35 | F11: kg liveweight
C12: Lambs sold at | E12: 55 | F12: kg liveweight
C13: Flock death Rate | E13: 0.02
C14: DSE rating/Lamb | E14: 0.8
C17: LIVESTOCK SALES | E17: Price/Hd | F17: Number | G17: Total
C18: Lambs | E18: 175.01 | F18: =E7-E7*E13 -> 980 | G18: =E18*F18 -> 171509.8
C25: TOTAL SALES | F25: =SUM(F18:F23) -> 980 | G25: =SUM(G18:G23) -> 171509.8
C28: LIVESTOCK PURCHASES | E28: Price/Hd | F28: Number | G28: Total
C29: Lambs | E29: 135 | F29: =ROUND('Lamb Trading'!AD220,0) -> 208 | G29: =E29*F29 -> 28080
C32: TOTAL PURCHASES | F32: =SUM(F29:F30) -> 208 | G32: =SUM(G29:G30) -> 28080
C35: WOOL PRICE (cents/kg) | F35: =TEXT(m_year-3,"0000")&" Average (Clean)" -> 2018 Average (Clean) | G35: =TEXT(m_year-2,"0000")&" Average (Clean)" -> 2019 Average (Clean) | H35: =TEXT(m_year-1,"0000")&" Average (Clean)" -> 2020 Average (Clean) | I35: Budget Base (Clean) | J35: Budget Base (Greasy) | L35: Wool Type | M35: Budget Clean Price
E36: Cereal Zone 21 mic 68% yield | F36: 2223 | G36: 2039 | H36: 1412 | I36: 1320 | J36: =I36*0.7 -> 924 | L36: 19 mic | M36: 1320
E37: Estimated wool yield | I37: 0.7 | L37: 21 mic | M37: 1160
C38: Allow 90% to account for lower value of bellies, skirtings etc. | J38: =J36*0.9 -> 831.6 | L38: 22 mic | M38: 1140
L39: 28 mic | M39: 500
C42: WOOL SALES - SHEARING | F42: Wool Cut | G42: Yield | H42: Average
E43: Number | F43: kg/hd | G43: % | H43: Wool Price | I43: Total
C44: Lambs | E44: 1000 | F44: 1.5 | G44: 0.7 | H44: 1320 | I44: =E44*F44*G44*H44/100 -> 13860
I45: 0
I46: 0
I47: 0
I48: 0
I49: 0
I50: 0
C52: TOTAL | E52: =SUM(E44:E51) -> 1000 | F52: =SUMPRODUCT(E44:E50,F44:F50) -> 1500 | G52: =AVERAGE(G44:G50) -> 0.7 | I52: =SUM(I44:I51) -> 13860
C55: STOCK HEALTH REQUIREMENTS | E55: =HYPERLINK("http://paraboss.com.au","for more info on drench, lice and blowfly product selection refer to www.paraboss.com.au") -> for more info on drench, lice and blowfly product selection refer to www.paraboss.com.au
G56: Number of times
E57: Number | F57: Drench | G57: Vacc. | H57: Blowfly | I57: DSE rating
C58: Lambs | E58: ='Lamb Trading'!E220 -> 1000 | F58: 1 | G58: 1 | H58: 1 | I58: 0.6
C59: TOTAL | E59: =SUM(E58:E58) -> 1000 | F59: =SUMPRODUCT($E$58:$E$58,F58:F58) -> 1000 | G59: =SUMPRODUCT($E$58:$E$58,G58:G58) -> 1000 | H59: =SUMPRODUCT($E$58:$E$58,H58:H58) -> 1000 | I59: =SUMPRODUCT($E$58:$E$58,I58:I58) -> 600
C61: Av Live Weight | E61: 45
C62: DSE Rating | E62: 0.8
C67: FEEDING
E68: Supplementry | F68: Feed Lot | I68: Supplementry | J68: Feed Lot
E69: kg fed | F69: kg fed | G69: /animal | H69: $/tonne | I69: Total | J69: Total
C70: Oats/barley | F70: 55 | G70: kg/lamb | I70: =(H70*E70)/1000 -> 0 | J70: =(H70*F70)/1000 -> 0
C71: Hay | E71: 15 | F71: 10 | G71: kg/lamb | I71: =(H71*E71)/1000 -> 0 | J71: =(H71*F71)/1000 -> 0
C72: Lupins | F72: 9 | G72: kg/lamb | I72: =(H72*E72)/1000 -> 0 | J72: =(H72*F72)/1000 -> 0
C73: Supplements | F73: 1 | G73: kg/lamb | H73: 2000 | I73: =(H73*E73)/1000 -> 0 | J73: =(H73*F73)/1000 -> 2
C74: Total | I74: =SUM(I70:I73) -> 0 | J74: =SUM(J70:J73) -> 2

Sheet Lamb Trading (hidden)
C1: LAMB TRADING
C2: =UPPER(Var_Animal)&" GROSS MARGIN - "&TEXT(m_year,"0000") -> LAMB TRADING GROSS MARGIN - 2021
C4: ASSUMPTIONS
O5: Total DSE's | Q5: =E197 -> 600
C6: Ave Lamb Fibre Diameter | E6: 20 | O6: Number of Lambs shorn | Q6: 1
C7: Number of Lambs | E7: ='Lamb Trading Input'!$E$7 -> 1000 | O7: Stocking Rate (DSE/Ha) | Q7: =E196 -> 12
C8: Lambs bought at | E8: ='Lamb Trading Input'!E11 -> 35 | G8: kg liveweight | K8: 385.7142857 | M8: c/kg liveweight
C9: Lambs sold at | E9: ='Lamb Trading Input'!E12 -> 55 | G9: kg liveweight | J9: @ | K9: 740 | M9: c/kg dwt
C32: INCOME | Q32: $
C34: Wool (kg greasy) | E34: =I234 -> 1500 | G34: kg | I34: av price | K34: ='Lamb Trading Input'!I52*100/I233*0.9 -> 831.6 | M34: c/kg | Q34: =E34*K34/100 -> 12474
C35: Sales | E35: =E211 -> 980 | G35: animals | I35: av price | K35: =G210 -> 175.01 | M35: /head | Q35: =K35*E35 -> 171509.8
C37: Gross Income | Q37: =SUM(Q34:Q35) -> 183983.8
AA45: STOCK VALUE AND D.S.E REQUIREMENT
C46: VARIABLE COSTS
C47: Shearing | K47: Rate
C48: Shearing | E48: =E233 -> 1000 | G48: sheep | I48: Reset Rate> | J48: =GM_INFO!C30 | K48: =GM_INFO!C77 -> 324.31 | M48: /100 | Q48: =K48/100*ROUND(E48,0) -> 3243.1
C50: Shed labour | E50: 2 | G50: days | I50: Reset Rate> | J50: =GM_INFO!C32 | K50: =GM_INFO!C79 -> 245.56 | M50: /day | Q50: =K50*ROUND(E50,0) -> 491.12
C51: Woolclasser | E51: 1 | G51: days | I51: Reset Rate> | J51: =GM_INFO!C33 | K51: =GM_INFO!C80 -> 312.11 | M51: /day | Q51: =K51*E51 -> 312.11
C52: Superannuation (on ord wages only) | I52: Reset Rate> | J52: =GM_INFO!C34 | K52: =GM_INFO!C81 -> 0.095 | M52: wages | Q52: =(Q48+Q50+Q51)*K52 -> 384.40135
C53: W/Cover (incl. super + otime etc) | I53: Reset Rate> | J53: =GM_INFO!C35 | K53: =GM_INFO!C82 -> 0.04 | M53: total | Q53: =(Q48+Q49+Q50+Q51+Q52)*K53 -> 177.229254
C54: Wool packs | E54: =E122 -> 8.823529412 | G54: packs | I54: Reset Rate> | J54: =GM_INFO!C28 | K54: =GM_INFO!C75 -> 12 | M54: /pack | Q54: =K54*ROUND(E54,0) -> 108
C55: Shed sundries | E55: =E48 -> 1000 | G55: sheep | I55: Reset Rate> | J55: =GM_INFO!C36 | K55: =GM_INFO!C83 -> 0.2 | M55: /head | Q55: =K55*ROUND(E55,0) -> 200
C56: Lice control | E56: =E48 -> 1000 | G56: sheep | I56: Reset Rate> | J56: =GM_INFO!C19 | K56: =GM_INFO!C66 -> 1.2912 | M56: /head | Q56: =K56*ROUND(E56,0) -> 1291.2
C57: Crutching | E57: 0 | G57: sheep | I57: Reset Rate> | J57: =GM_INFO!C38 | K57: =GM_INFO!C85 -> 94.05 | M57: /100 | Q57: =K57/100*ROUND(E57,0) -> 0
AS79: RAMS | AT79: OPENING | AU79: NATURAL | AV79: PURCHASES | AW79: DEATHS | AX79: % sold | AY79: SALES | AZ79: CLOSING
AS80: AGE | AT80: NUMBERS | AU80: INCREASE | AX80: culled | AZ80: NUMBERS
AS82: 0.5-1.5yr | AV82: =AT83/(1-AX82) -> 0 | AW82: =AT82*$R$81 -> 0 | AZ82: =AT82+AU82+AV82-AW82-AY82 -> 0
AS83: 1.5-2.5yr | AT83: =IF(AY53=3,(AU51*AY51)/(1+(1-AY55)*(1-AX83)*(1+(1-AY55)*(1-AX84)*(1+(1-AY55)*(1-AX85)))),IF(AY53=4,(AU51*AY51)/(1+(1-AY55)*(1-AX83)*(1+(1-AY55)*(1-AX84)*(1+(1-AY55)*(1-AX85)*(1+(1-AY55)*(1-AX86))))),0)) -> 0 | AW83: =AT83*$R$81 -> 0 | AZ83: =AT83+AU83+AV83-AW83-AY83 -> 0
AS84: 2.5-3.5yr | AT84: =AZ83 -> 0 | AW84: =AT84*$R$81 -> 0 | AZ84: =AT84+AU84+AV84-AW84-AY84 -> 0
AS85: 3.5-4.5yr | AT85: =AZ84 -> 0 | AW85: =AT85*$R$81 -> 0 | AX85: =IF(AY53=3,100%,0) -> 0 | AY85: =(AT85-AW85)*AX85 -> 0 | AZ85: =AT85+AU85+AV85-AW85-AY85 -> 0
AS86: 4.5-5.5yr | AT86: =AZ85 -> 0 | AW86: =AT86*$R$81 -> 0 | AX86: =IF(AY53=4,100%,0) -> 0 | AY86: =AT86-AW86 -> 0 | AZ86: =AT86+AU86+AV86-AW86-AY86 -> 0
AT87: =AT82+AT83+AT84+AT85+AT86 -> 0 | AV87: =AV82+AV83+AV84+AV85+AV86 -> 0 | AW87: =AW82+AW83+AW84+AW85+AW86 -> 0 | AY87: =AY82+AY83+AY84+AY85+AY86 -> 0 | AZ87: =AZ82+AZ83+AZ84+AZ85+AZ86 -> 0
AS88: d.s.e's | AT88: =AT87*AE49 -> 0
C89: Animal Health
C90: Drench | E90: =G228 -> 1000 | G90: sheep | I90: Reset Rate> | J90: =GM_INFO!C21 | K90: =GM_INFO!C68 -> 0.417 | M90: /head | Q90: =K90*ROUND(E90,0) -> 417
C91: Vaccinate | E91: =I228 -> 1000 | G91: sheep | I91: Reset Rate> | J91: =GM_INFO!C25 | K91: =GM_INFO!C72 -> 0.29892 | M91: /head | Q91: =K91*ROUND(E91,0) -> 298.92
C92: Blowfly control | E92: =K228*0.5 -> 500 | G92: sheep | I92: Reset Rate> | J92: =GM_INFO!C27 | K92: =GM_INFO!C74 -> 1.24656 | M92: /head | Q92: =K92*ROUND(E92,0) -> 623.28
C93: Other expenses | G93: sheep | I93: Reset Rate> | M93: /head | Q93: =K93*ROUND(E93,0) -> 0
C104: Stock purchases
C105: Purchases | E105: =ROUND(E213,0) -> 1000 | G105: Lambs | I105: Reset Rate> | J105: ='LambS INPUT'!E29 | K105: ='Lamb Trading Input'!E29 -> 135 | M105: /head | Q105: =K105*E105 -> 135000
C117: Sale Costs
C118: Freight
C119: Livestock | E119: =E211+E213 -> 1980 | G119: sheep | I119: Reset Rate> | J119: =GM_INFO!B111 | K119: =GM_INFO!B158 -> 4 | M119: /head | Q119: =K119*ROUND(E119,0) -> 7920
I120: Reset Rate> | M120: /head
I121: Reset Rate> | M121: /head
C122: Wool | E122: =I234/170 -> 8.823529412 | G122: bales | I122: Reset Rate> | J122: =GM_INFO!B114 | K122: =GM_INFO!B161 -> 15 | M122: /bale | Q122: =K122*ROUND(E122,0) -> 135
C123: Stock selling charges
C124: Commission/insurance | I124: Reset Rate> | J124: =GM_INFO!C48 | K124: =GM_INFO!C95 -> 0.06 | M124: gross $ | Q124: =K124*Q35 -> 10290.588
C125: Yard fees | E125: =E211 -> 980 | G125: sheep | I125: Reset Rate> | J125: =GM_INFO!C49 | K125: =GM_INFO!C96 -> 0.85 | M125: /head | Q125: =K125*ROUND(E125,0) -> 833
C126: Levy trans-sheep | E126: =E211 -> 980 | G126: sheep | I126: Reset Rate> | J126: =GM_INFO!C50 | K126: =GM_INFO!C98 -> 1.5 | M126: /head | Q126: =K126*ROUND(E126,0) -> 1470
C128: SA sheep industry levy | E128: =E211 -> 980 | G128: sheep | I128: Reset Rate> | J128: =GM_INFO!C52 | K128: =GM_INFO!C99 -> 0.67 | M128: /head | Q128: =K128*ROUND(E128,0) -> 656.6
C129: Wool selling charges
C130: Brokerage/testing/insurance | I130: Reset Rate> | J130: =GM_INFO!C53 | K130: =GM_INFO!C100 -> 0.27 | M130: /kg | Q130: =K130*E34 -> 405
C131: Wool levy | I131: Reset Rate> | J131: =GM_INFO!C54 | K131: =GM_INFO!C101 -> 0.015 | M131: gross | Q131: =K131*Q34 -> 187.11
C143: Feed and Other Costs
C144: Supplementary Feeding | E144: 0 | G144: sheep | K144: =M250 -> 0 | M144: /head | Q144: =IF(E144*K144=0,0,E144*K144) -> 0
C145: Feed Lot | E145: 0 | G145: sheep | K145: =O250 -> 2 | M145: /head | Q145: =IF(E145=0,0,E145*K145) -> 0
C146: Insurance | E146: =E239*G239 -> 155005 | G146: value | I146: Reset Rate> | J146: =GM_INFO!B107 | K146: =GM_INFO!B154 -> 2 | M146: /$'000 | Q146: =K146/1000*E146 -> 310.01
C147: Water | E147: =$E$197 -> 600 | G147: DSE's | I147: Reset Rate> | J147: =GM_INFO!k79 | K147: =GM_INFO!K126 -> 1.5 | M147: /DSE's | Q147: =K147*E147 -> 900
C148: Veh Fuel, R&M | E148: =$E$197 -> 600 | G148: DSE's | I148: Reset Rate> | J148: =GM_INFO!k80 | K148: =GM_INFO!K127 -> 1 | M148: /DSE's | Q148: =K148*E148 -> 600
C149: Other | E149: =$E$197 -> 600 | G149: DSE's | I149: Reset Rate> | J149: =GM_INFO!k81 | K149: =GM_INFO!K128 -> 0.5 | M149: /DSE's | Q149: =K149*E149 -> 300
C170: TOTAL VARIABLE COSTS | Q170: =SUM(Q48:Q166) -> 166553.6686
C172: GROSS MARGIN TOTAL | Q172: =Q37-Q170 -> 17430.1314
C174: GROSS MARGIN/DSE | Q174: =Q172/E197 -> 29.05021899
C194: PRODUCTION DATA
C196: Stocking rate (DSE/Ha) | E196: 12 | AA196: SHEEP GROSS MARGIN
C197: Total DSE's | E197: ='Lamb Trading Input'!I59 -> 600
C198: SHEEP GRAZING AREA | E198: =E197/E196 -> 50
C199: Number of Lambs | E199: ='Lamb Trading Input'!E7 -> 1000
C200: Flock death rate | E200: ='Lamb Trading Input'!E13 -> 0.02
C201: Age Lambs bought | E201: ='Lamb Trading Input'!E10 -> 0.5
C202: Age Lambs sold | E202: ='Lamb Trading Input'!E9 -> 0.8 | AA202: No of Lambs | AC202: ='Lamb Trading Input'!E7 -> 1000
B203: =VLOOKUP(r[0]c3&"No Ops",CHOOSE({1,2},tbl_ops[Name]&tbl_ops[Category],INDIRECT("tbl_ops["&var_crop&"]")),2,0) | AA203: Age Lambs purchased | AC203: =E201 -> 0.5
B204: =VLOOKUP(r[0]c3&"No Ops",CHOOSE({1,2},tbl_ops[Name]&tbl_ops[Category],INDIRECT("tbl_ops["&var_crop&"]")),2,0) | AA204: Age Lambs sold | AC204: =E202 -> 0.8
B205: =VLOOKUP(r[0]c3&"No Ops",CHOOSE({1,2},tbl_ops[Name]&tbl_ops[Category],INDIRECT("tbl_ops["&var_crop&"]")),2,0) | AA205: Flock death rate | AC205: =E200 -> 0.02
B206: =VLOOKUP(r[0]c3&"No Ops",CHOOSE({1,2},tbl_ops[Name]&tbl_ops[Category],INDIRECT("tbl_ops["&var_crop&"]")),2,0) | AA206: dse/Lamb | AC206: ='Lamb Trading Input'!E14 -> 0.8
B208: =VLOOKUP(r[0]c3&var_rain,CHOOSE({1,2},tbl_ops[Name]&tbl_ops[Rainfall],INDIRECT("tbl_ops["&var_crop&"]")),2,0)
B209: =VLOOKUP(r[0]c3&var_rain,CHOOSE({1,2},tbl_ops[Name]&tbl_ops[Rainfall],INDIRECT("tbl_ops["&var_crop&"]")),2,0) | C209: SALES | E209: Number | G209: Price/hd | I209: Age | K209: Total
B210: =VLOOKUP(r[0]c3&var_rain,CHOOSE({1,2},tbl_ops[Name]&tbl_ops[Rainfall],INDIRECT("tbl_ops["&var_crop&"]")),2,0) | C210: Prime Lambs | E210: =E199-(E199*E200) -> 980 | G210: =E9*0.43*K9/100 -> 175.01 | I210: =E202 -> 0.8 | K210: =E210*G210 -> 171509.8
B211: =VLOOKUP(r[0]c3&var_rain,CHOOSE({1,2},tbl_ops[Name]&tbl_ops[Rainfall],INDIRECT("tbl_ops["&var_crop&"]")),2,0) | C211: TOTAL | E211: =E210 -> 980 | K211: =K210 -> 171509.8 | AA211: LambS | AB211: OPENING | AC211: NATURAL | AD211: PURCHASES | AE211: DEATHS | AF211: % sold | AG211: SALES | AH211: CLOSING
C212: PURCHASES | E212: Number | G212: Price/hd | I212: Age | K212: Total | AA212: AGE | AB212: NUMBERS | AC212: INCREASE | AF212: culled | AH212: NUMBERS
C213: Store Lambs | E213: =E199 -> 1000 | G213: =(E8*K8)/100 -> 135 | I213: =E201 -> 0.5 | K213: =ROUND(E213,0)*G213 -> 135000
AA214: 0-0.5yr | AD214: =IF(AC203=0.5,AB215-AE214-AG214,0) -> 208.1615931 | AE214: =AB214*$AC$205 -> 0 | AF214: =IF(AC204=0.5,100%,0) -> 0 | AG214: =AC214*AF214 -> 0 | AH214: =AB214+AC214+AD214-AE214-AG214 -> 208.1615931
AA215: 0.5-1.5yr | AB215: =IF(AC203=0.5,AC202/(1+(1-AC205)*(1-AF215)*(1+(1-AC205)*(1-AF216)*(1+(1-AC205)*(1-AF217)*(1+(1-AC205)*(1-AF218))))),0) -> 208.1615931 | AD215: =IF(AC203=1.5,AB216-AE215-AG215,0) -> 0 | AE215: 4.163231862 | AF215: =IF(AC204=1.5,100%,0) -> 0 | AG215: =(AB215-AE215)*AF215 -> 0 | AH215: 203.9983612
AA216: 1.5-2.5yr | AB216: =IF(AC203=1.5,AC202/(1+(1-AC205)*(1-AF216)*(1+(1-AC205)*(1-AF217)*(1+(1-AC205)*(1-AF218)))),AH215) -> 203.9983612 | AE216: 4.079967224 | AF216: =IF(AC204=2.5,100%,0) -> 0 | AG216: =(AB216-AE216)*AF216 -> 0 | AH216: 199.918394
AA217: 2.5-3.5yr | AB217: =AH216 -> 199.918394 | AE217: 3.99836788 | AF217: =IF(AC204=3.5,100%,0) -> 0 | AG217: =(AB217-AE217)*AF217 -> 0 | AH217: 195.9200261
E218: Number of Times | AA218: 3.5-4.5yr | AB218: =AH217 -> 195.9200261 | AE218: 3.918400522 | AF218: =IF(AC204=4.5,100%,0) -> 0 | AG218: =(AB218-AE218)*AF218 -> 0 | AH218: 192.0016256
C219: STOCK HEALTH REQUIREMENTS | E219: Number | G219: Drench | I219: Vacc. | K219: Blowfly | AA219: 4.5-5.5yr | AB219: =AH218 -> 192.0016256 | AE219: 3.840032512 | AF219: =IF(AC204=5.5,100%,0) -> 0 | AG219: =(AB219-AE219)*AF219 -> 0 | AH219: 188.1615931
C220: Lambs | E220: =ROUND('Lamb Trading Input'!E7,0) -> 1000 | G220: ='Lamb Trading Input'!F58 -> 1 | I220: ='Lamb Trading Input'!G58 -> 1 | K220: ='Lamb Trading Input'!H58 -> 1 | AA220: Total | AB220: =SUM(AB215:AB219) -> 1000 | AD220: =SUM(AD214:AD219) -> 208.1615931 | AE220: =SUM(AE214:AE219) -> 20 | AG220: =SUM(AG214:AG219) -> 0 | AH220: =SUM(AH214:AH219) -> 1188.161593
AA221: d.s.e's | AB221: =AB220*AC206 -> 800
C228: TOTAL | E228: =SUM(E220:E227) -> 1000 | G228: =SUMPRODUCT($E$220:$E$227,G220:G227) -> 1000 | I228: =SUMPRODUCT($E$220:$E$227,I220:I227) -> 1000 | K228: =SUMPRODUCT($E$220:$E$227,K220:K227) -> 1000
G231: Wool Cut kg/hd | I231: Total | K231: Yield | M231: Total
C232: SHEARING | E232: Number | I232: Greasy kg | K232: % | M232: clean kg
C233: Lambs | E233: ='Lamb Trading Input'!E52 -> 1000 | G233: ='Lamb Trading Input'!F52/1000 -> 1.5 | I233: =G233*E233 -> 1500 | K233: ='Lamb Trading Input'!G44 -> 0.7 | M233: =E233*G233*K233 -> 1050
C234: TOTAL | E234: =E233 -> 1000 | I234: =I233 -> 1500
C237: STOCK VALUE | G237: Value | I237: Av Live | K237: DSE
E238: Number | G238: $/head | I238: weight (kgs) | K238: rating
C239: Lambs | E239: =E199 -> 1000 | G239: =(G210+G213)/2 -> 155.005 | I239: ='Lamb Trading Input'!E61 -> 45 | K239: ='Lamb Trading Input'!E62 -> 0.8
C240: TOTAL | E240: =E239 -> 1000
E244: Supplementry | G244: Feed Lot | M244: Supplementry | O244: Feed Lot
C245: FEEDING | E245: kg fed | G245: kg fed | I245: /animal | K245: $/tonne | M245: Total | O245: Total
C246: ='Lamb Trading Input'!C70 -> Oats/barley | E246: ='Lamb Trading Input'!E70 -> 0 | G246: ='Lamb Trading Input'!F70 -> 55 | I246: ='Lamb Trading Input'!G70 -> kg/lamb | K246: ='Lamb Trading Input'!H70 -> 0 | M246: ='Lamb Trading Input'!I70 -> 0 | O246: ='Lamb Trading Input'!J70 -> 0
C247: ='Lamb Trading Input'!C71 -> Hay | E247: ='Lamb Trading Input'!E71 -> 15 | G247: ='Lamb Trading Input'!F71 -> 10 | I247: ='Lamb Trading Input'!G71 -> kg/lamb | K247: ='Lamb Trading Input'!H71 -> 0 | M247: ='Lamb Trading Input'!I71 -> 0 | O247: ='Lamb Trading Input'!J71 -> 0
C248: ='Lamb Trading Input'!C72 -> Lupins | E248: ='Lamb Trading Input'!E72 -> 0 | G248: ='Lamb Trading Input'!F72 -> 9 | I248: ='Lamb Trading Input'!G72 -> kg/lamb | K248: ='Lamb Trading Input'!H72 -> 0 | M248: ='Lamb Trading Input'!I72 -> 0 | O248: ='Lamb Trading Input'!J72 -> 0
C249: ='Lamb Trading Input'!C73 -> Supplements | E249: ='Lamb Trading Input'!E73 -> 0 | G249: ='Lamb Trading Input'!F73 -> 1 | I249: ='Lamb Trading Input'!G73 -> kg/lamb | K249: ='Lamb Trading Input'!H73 -> 2000 | M249: ='Lamb Trading Input'!I73 -> 0 | O249: ='Lamb Trading Input'!J73 -> 2
M250: ='Lamb Trading Input'!I74 -> 0 | O250: ='Lamb Trading Input'!J74 -> 2
C259: GM SENSITIVITY
C260: Gross Margin/DSE | E260: Average Greasy Wool Price (c/Kg)
G261: 650 | I261: 700 | K261: 832 | M261: 800 | O261: 850 | Q261: 900
E262: 140 | G262: =(G$261*$E$34*(1-$K$131)/100+$E262*$E$35*(1-$K$124)-($Q$170-$Q$124-$Q$131))/$E$197 -> -29.17370101 | I262: =(I$261*$E$34*(1-$K$131)/100+$E262*$E$35*(1-$K$124)-($Q$170-$Q$124-$Q$131))/$E$197 -> -27.94245101 | K262: =(K$261*$E$34*(1-$K$131)/100+$E262*$E$35*(1-$K$124)-($Q$170-$Q$124-$Q$131))/$E$197 -> -24.69195101 | M262: =(M$261*$E$34*(1-$K$131)/100+$E262*$E$35*(1-$K$124)-($Q$170-$Q$124-$Q$131))/$E$197 -> -25.47995101 | O262: =(O$261*$E$34*(1-$K$131)/100+$E262*$E$35*(1-$K$124)-($Q$170-$Q$124-$Q$131))/$E$197 -> -24.24870101 | Q262: =(Q$261*$E$34*(1-$K$131)/100+$E262*$E$35*(1-$K$124)-($Q$170-$Q$124-$Q$131))/$E$197 -> -23.01745101
E263: 145 | G263: -21.49703434 | I263: -20.26578434 | K263: -17.01528434 | M263: -17.80328434 | O263: -16.57203434 | Q263: -15.34078434
C264: Average Sheep Sale Price($/hd) | E264: 150 | G264: -13.82036767 | I264: -12.58911767 | K264: -9.338617673 | M264: -10.12661767 | O264: -8.895367673 | Q264: -7.664117673
E265: 170 | G265: 16.88629899 | I265: 18.11754899 | K265: 21.36804899 | M265: 20.58004899 | O265: 21.81129899 | Q265: 23.04254899
E266: 175 | G266: 24.56296566 | I266: 25.79421566 | K266: 29.04471566 | M266: 28.25671566 | O266: 29.48796566 | Q266: 30.71921566
E267: 178 | G267: 29.16896566 | I267: 30.40021566 | K267: 33.65071566 | M267: 32.86271566 | O267: 34.09396566 | Q267: 35.32521566
E268: 180 | G268: 32.23963233 | I268: 33.47088233 | K268: 36.72138233 | M268: 35.93338233 | O268: 37.16463233 | Q268: 38.39588233
E269: 185 | G269: 39.91629899 | I269: 41.14754899 | K269: 44.39804899 | M269: 43.61004899 | O269: 44.84129899 | Q269: 46.07254899
E270: 190 | G270: 47.59296566 | I270: 48.82421566 | K270: 52.07471566 | M270: 51.28671566 | O270: 52.51796566 | Q270: 53.74921566
E271: 195 | G271: 55.26963233 | I271: 56.50088233 | K271: 59.75138233 | M271: 58.96338233 | O271: 60.19463233 | Q271: 61.42588233
E272: 200 | G272: 62.94629899 | I272: 64.17754899 | K272: 67.42804899 | M272: 66.64004899 | O272: 67.87129899 | Q272: 69.10254899

Sheet Merino SR Input (hidden)
C2: ="MERINO SR GROSS MARGIN - "&TEXT(m_year,"0000") -> MERINO SR GROSS MARGIN - 2021
C4: GENERAL INFORMATION
C5: This represents a self-replacing merino ewe flock, producing 21 micron wool. Adjust wool price if different micron wool is produced. Following are the various assumptions used in the calculation of the Gross Margin. Cells with yellow highlight can be changed. No allowance has been made for pasture expenses such as seed, fertiliser and chemicals. Refer to pasture gross margins in the “Cropping Gross Margin Plan” for annual and perennial pasture costs. Use the livestock gross margin per DSE as income for the pasture gross margin.
C7: Stocking rate (DSE/Ha) | E7: 6 | G7: Years Rams Kept | I7: 4
C8: Ewes mated | E8: 1000 | G8: Flock death Rate | I8: 0.03
C9: Total DSE's | E9: ='Merino SR'!M228 -> 2420 | G9: % Lambs carried over | I9: 0
C10: SHEEP GRAZING AREA | E10: 285
C11: Age ewes 1st mating | E11: 1.5
C12: Age ewes sold | E12: 6.5
C13: Av Weaning % | E13: 0.95
C14: Ram percentage | E14: 0.025
C17: LIVESTOCK SALES | E17: Price/Hd | F17: Number | G17: Total
C18: c.f.a Ewes | E18: 170 | F18: ='Merino SR'!AG220 -> 203.9596235 | G18: =E18*ROUND(F18,0) -> 34680
C19: c.f.a Merino Rams | E19: 140 | F19: ='Merino SR'!AG244 -> 5.788387001 | G19: 840
C20: ewe hoggets | E20: 250 | F20: ='Merino SR'!AG222 -> 226.7903765 | G20: 56750
C21: wether lambs | E21: 135 | F21: ='Merino SR'!AG230 -> 475 | G21: 64125
G22: 0
G23: 0
C25: TOTAL SALES | F25: =SUM(F18:F23) -> 911.538387 | G25: =SUM(G18:G23) -> 156395
C28: LIVESTOCK PURCHASES | E28: Price/Hd | F28: Number | G28: Total
C29: Ewes | E29: 250 | F29: =ROUND('Merino SR'!AD220,0) -> 0 | G29: =E29*F29 -> 0
C30: Rams | E30: 2000 | F30: =ROUND('Merino SR'!AD244,0) -> 7 | G30: =E30*F30 -> 14000
C32: TOTAL PURCHASES | F32: =SUM(F29:F30) -> 7 | G32: =SUM(G29:G30) -> 14000
C35: WOOL PRICE (cents/kg) | F35: =TEXT(m_year-3,"0000")&" Average (Clean)" -> 2018 Average (Clean) | G35: =TEXT(m_year-2,"0000")&" Average (Clean)" -> 2019 Average (Clean) | H35: =TEXT(m_year-1,"0000")&" Average (Clean)" -> 2020 Average (Clean) | I35: Budget Base (Clean) | J35: Budget Base (Greasy) | L35: Wool Type | M35: Estimated Clean Price
E36: Cereal Zone 21 mic 68% yield | F36: 1533 | G36: 2085 | H36: 1995 | I36: 1126.857143 | J36: =I36*I37 -> 788.8 | L36: 19 mic | M36: 1320
E37: Estimated wool yield | I37: 0.7 | L37: 21 mic | M37: 1160
C38: Allow 90% to account for lower value of bellies, skirtings etc. | J38: =J36*0.9 -> 709.92 | L38: 22 mic | M38: 1140
C42: WOOL SALES - SHEARING | F42: Wool Cut | G42: Wool Price
E43: Number | F43: kg/hd | G43: cents/kg
C44: Ewes | E44: =ROUND('Merino SR'!E233,0) -> 980 | F44: 6.5 | G44: =$J$38 -> 709.92
C45: Ewe hoggets | E45: =ROUND('Merino SR'!E234,0) -> 468 | F45: 5.5 | G45: =$J$38 -> 709.92
C46: Wether weaners | E46: =ROUND('Merino SR'!E235,0) -> 0 | F46: 5 | G46: =$J$38 -> 709.92
C47: Lambs | E47: =ROUND('Merino SR'!E236,0) -> 950 | F47: 2 | G47: =$J$38 -> 709.92
C48: Merino rams | E48: =ROUND('Merino SR'!E237,0) -> 25 | F48: 9.5 | G48: =$J$38 -> 709.92
C52: TOTAL | E52: =SUM(E44:E51) -> 2423 | F52: =SUMPRODUCT(E44:E50,F44:F50) -> 11081.5
C55: STOCK HEALTH REQUIREMENTS | E55: =HYPERLINK("http://paraboss.com.au","for more info on drench, lice and blowfly product selection refer to www.paraboss.com.au") -> for more info on drench, lice and blowfly product selection refer to www.paraboss.com.au
G56: Number of times
E57: Number | F57: Drench | G57: Vacc. | H57: Blowfly
C58: Ewes | E58: ='Merino SR'!E220 -> 1000 | F58: 1 | G58: 1 | H58: 1
C59: Ewe hoggets | E59: ='Merino SR'!E221 -> 475 | F59: 1 | G59: 1 | H59: 1
C60: Wether weaners | E60: ='Merino SR'!E222 -> 0 | F60: 1 | G60: 1 | H60: 1
C61: Merino lambs | E61: ='Merino SR'!E223 -> 950 | F61: 1 | G61: 2 | H61: 0
C62: Merino rams | E62: ='Merino SR'!E224 -> 25 | F62: 2 | G62: 1 | H62: 1
C64: TOTAL | E64: =SUM(E58:E62) -> 2450 | F64: =SUMPRODUCT($E$58:$E$62,F58:F62) -> 2475 | G64: =SUMPRODUCT($E$58:$E$62,G58:G62) -> 3400 | H64: =SUMPRODUCT($E$58:$E$62,H58:H62) -> 1500
C67: FEEDING
C68: HAY | F68: Hay | G68: Kgs Fed | H68: No Weeks | I68: Total
E69: Number | F69: Cost ($/T) | G69: per Week | H69: of Feeding | I69: Cost ($)
C70: Cereal Hay | E70: ='Merino SR'!E220 -> 1000 | F70: 230 | G70: 2 | H70: 10 | I70: =(H70*G70*E70)/1000*F70 -> 4600
C71: Legume Hay | I71: =(H71*G71*E71)/1000*F71 -> 0
I72: =(H72*G72*E72)/1000*F72 -> 0
I73: =(H73*G73*E73)/1000*F73 -> 0
I74: =(H74*G74*E74)/1000*F74 -> 0
C76: GRAIN | F76: Grain | G76: Kgs Fed | H76: No Weeks | I76: Total
E77: Number | F77: Cost ($/T) | G77: per Week | H77: of Feeding | I77: Cost ($)
C78: Lupins | E78: 475 | F78: 320 | G78: 1 | H78: 10 | I78: =(H78*G78*E78)/1000*F78 -> 1520
C79: Barley | E79: 1000 | F79: 220 | G79: 2.4 | H79: 10 | I79: =(H79*G79*E79)/1000*F79 -> 5280
C80: Oats | I80: =(H80*G80*E80)/1000*F80 -> 0
I81: =(H81*G81*E81)/1000*F81 -> 0
I82: =(H82*G82*E82)/1000*F82 -> 0
H84: Total Feed Cost | I84: =SUM(I70:I74,I78:I82) -> 11400

Sheet Merino SR (hidden)
C1: MERINO SR
C2: =UPPER(Var_Animal)&" GROSS MARGIN - "&TEXT(m_year,"0000") -> MERINO SR GROSS MARGIN - 2021
C4: ASSUMPTIONS
C6: Ave Breeding Ewe Fibre Diameter | E6: 21 | O6: Total DSE's | Q6: ='Merino SR Input'!E9 -> 2420
C7: No. of breeding ewes | E7: ='Merino SR Input'!$E$8 -> 1000 | O7: Stocking Rate (DSE/Ha) | Q7: ='Merino SR Input'!E7 -> 6
C32: INCOME | Q32: $
C34: Wool (kg greasy) | E34: =I241 -> 11079.88602 | G34: kg | I34: av price | K34: ='Merino SR Input'!J38 -> 709.92 | M34: c/kg | Q34: =M241 -> 78658.32685
C35: Sales | E35: =E214 -> 911.538387 | G35: animals | I35: av price | K35: =G214 -> 171.5725879 | M35: /head | Q35: =I214 -> 156395
C37: Gross Income | Q37: =SUM(Q34:Q35) -> 235053.3268
AA45: STOCK VALUE AND D.S.E REQUIREMENT
C46: VARIABLE COSTS
C47: Shearing | K47: Rate
C48: Shearing | E48: =E241-E237 -> 2398.280542 | G48: sheep | I48: Reset Rate> | J48: =GM_INFO!C30 | K48: =GM_INFO!C77 -> 324.31 | M48: /100 | Q48: =K48/100*ROUND(E48,0) -> 7776.9538
C49: (Federal awards) | E49: =E224 -> 25 | G49: rams | I49: Reset Rate> | J49: =GM_INFO!C31 | K49: =GM_INFO!C78 -> 648.62 | M49: /100 | Q49: =K49/100*ROUND(E49,0) -> 162.155
C50: Shed labour | E50: 8 | G50: days | I50: Reset Rate> | J50: =GM_INFO!C32 | K50: =GM_INFO!C79 -> 245.56 | M50: /day | Q50: =K50*ROUND(E50,0) -> 1964.48
C51: Woolclasser | E51: 4 | G51: days | I51: Reset Rate> | J51: =GM_INFO!C33 | K51: =GM_INFO!C80 -> 312.11 | M51: /day | Q51: =K51*E51 -> 1248.44
C52: Superannuation (on ord wages only) | I52: Reset Rate> | J52: =GM_INFO!C34 | K52: =GM_INFO!C81 -> 0.095 | M52: wages | Q52: =(Q48+Q49+Q50+Q51)*K52 -> 1059.442736
C53: W/Cover (incl. super + otime etc) | I53: Reset Rate> | J53: =GM_INFO!C35 | K53: =GM_INFO!C82 -> 0.04 | M53: total | Q53: =(Q48+Q49+Q50+Q51+Q52)*K53 -> 488.4588614
C54: Wool packs | E54: =E122 -> 65.17580013 | G54: packs | I54: Reset Rate> | J54: =GM_INFO!C28 | K54: =GM_INFO!C75 -> 12 | M54: /pack | Q54: =K54*ROUND(E54,0) -> 780
C55: Shed sundries | E55: =E48+E49 -> 2423.280542 | G55: sheep | I55: Reset Rate> | J55: =GM_INFO!C36 | K55: =GM_INFO!C83 -> 0.2 | M55: /head | Q55: =K55*ROUND(E55,0) -> 484.6
C56: Lice control | E56: =E48+E49 -> 2423.280542 | G56: sheep | I56: Reset Rate> | J56: =GM_INFO!C19 | K56: =GM_INFO!C66 -> 1.2912 | M56: /head | Q56: =K56*ROUND(E56,0) -> 3128.5776
C57: Crutch & Wig | E57: =SUM(E233:E235) -> 1448.280542 | G57: ewes | I57: Reset Rate> | J57: =GM_INFO!C38 | K57: =GM_INFO!C85 -> 94.05 | M57: /100 | Q57: =K57/100*ROUND(E57,0) -> 1361.844
E58: =E49 -> 25 | G58: rams | I58: Reset Rate> | J58: =GM_INFO!C39 | K58: =GM_INFO!C86 -> 188.1 | M58: /100 | Q58: =K58/100*ROUND(E58,0) -> 47.025
C75: Marking
C76: Lamb marking | E76: =E199*E205 -> 950 | G76: lambs | I76: Reset Rate> | J76: =GM_INFO!C41 | K76: =GM_INFO!C88 -> 1.4 | M76: /head | Q76: =K76*ROUND(E76,0) -> 1330
C77: Ear tags | E77: =E76 -> 950 | G77: lambs | I77: Reset Rate> | J77: =GM_INFO!C43 | K77: =GM_INFO!C90 -> 0.37 | M77: /head | Q77: =K77*ROUND(E77,0) -> 351.5
C78: Pain relief | E78: 900 | G78: lambs | I78: Reset Rate> | J78: =GM_INFO!C44 | K78: =GM_INFO!C91 -> 0.45 | M78: /head | Q78: =K78*ROUND(E78,0) -> 405
AS79: RAMS | AT79: OPENING | AU79: NATURAL | AV79: PURCHASES | AW79: DEATHS | AX79: % sold | AY79: SALES | AZ79: CLOSING
AS80: AGE | AT80: NUMBERS | AU80: INCREASE | AX80: culled | AZ80: NUMBERS
AS82: 0.5-1.5yr | AV82: =AT83/(1-AX82) -> 0 | AW82: =AT82*$R$81 -> 0 | AZ82: =AT82+AU82+AV82-AW82-AY82 -> 0
AS83: 1.5-2.5yr | AT83: =IF(AY53=3,(AU51*AY51)/(1+(1-AY55)*(1-AX83)*(1+(1-AY55)*(1-AX84)*(1+(1-AY55)*(1-AX85)))),IF(AY53=4,(AU51*AY51)/(1+(1-AY55)*(1-AX83)*(1+(1-AY55)*(1-AX84)*(1+(1-AY55)*(1-AX85)*(1+(1-AY55)*(1-AX86))))),0)) -> 0 | AW83: =AT83*$R$81 -> 0 | AZ83: =AT83+AU83+AV83-AW83-AY83 -> 0
AS84: 2.5-3.5yr | AT84: =AZ83 -> 0 | AW84: =AT84*$R$81 -> 0 | AZ84: =AT84+AU84+AV84-AW84-AY84 -> 0
AS85: 3.5-4.5yr | AT85: =AZ84 -> 0 | AW85: =AT85*$R$81 -> 0 | AX85: =IF(AY53=3,100%,0) -> 0 | AY85: =(AT85-AW85)*AX85 -> 0 | AZ85: =AT85+AU85+AV85-AW85-AY85 -> 0
AS86: 4.5-5.5yr | AT86: =AZ85 -> 0 | AW86: =AT86*$R$81 -> 0 | AX86: =IF(AY53=4,100%,0) -> 0 | AY86: =AT86-AW86 -> 0 | AZ86: =AT86+AU86+AV86-AW86-AY86 -> 0
AT87: =AT82+AT83+AT84+AT85+AT86 -> 0 | AV87: =AV82+AV83+AV84+AV85+AV86 -> 0 | AW87: =AW82+AW83+AW84+AW85+AW86 -> 0 | AY87: =AY82+AY83+AY84+AY85+AY86 -> 0 | AZ87: =AZ82+AZ83+AZ84+AZ85+AZ86 -> 0
AS88: d.s.e's | AT88: =AT87*AE49 -> 0
C89: Animal Health
C90: Drench | E90: =G228 -> 2475 | G90: sheep | I90: Reset Rate> | J90: =GM_INFO!C21 | K90: =GM_INFO!C68 -> 0.417 | M90: /head | Q90: =K90*ROUND(E90,0) -> 1032.075
C91: Vaccinate | E91: =I228 -> 3400 | G91: sheep | I91: Reset Rate> | J91: =GM_INFO!C23 | K91: =GM_INFO!C70 -> 0.2176 | M91: /head | Q91: =K91*ROUND(E91,0) -> 739.84
C92: Blowfly control | E92: =K228 -> 1500 | G92: sheep | I92: Reset Rate> | J92: =GM_INFO!C27 | K92: =GM_INFO!C74 -> 1.24656 | M92: /head | Q92: =K92*ROUND(E92,0) -> 1869.84
C104: Stock purchases
C105: Purchases | E105: =ROUND(AD244,0) -> 7 | G105: rams | I105: Reset Rate> | J105: ='Merino SR Input'!E30 | K105: ='Merino SR Input'!E30 -> 2000 | M105: /head | Q105: =K105*E105 -> 14000
C117: Sale Costs
C118: Freight
C119: Livestock | E119: =E214 -> 911.538387 | G119: sheep | I119: Reset Rate> | J119: =GM_INFO!B111 | K119: =GM_INFO!B158 -> 4 | M119: /head | Q119: =K119*ROUND(E119,0) -> 3648
I120: Reset Rate> | M120: /head
I121: Reset Rate> | M121: /head
C122: Wool | E122: =I241/170 -> 65.17580013 | G122: bales | I122: Reset Rate> | J122: =GM_INFO!B114 | K122: =GM_INFO!B161 -> 15 | M122: /bale | Q122: =K122*ROUND(E122,0) -> 975
C123: Stock selling charges
C124: Commission/insurance | I124: Reset Rate> | J124: =GM_INFO!C48 | K124: =GM_INFO!C95 -> 0.06 | M124: gross $ | Q124: =K124*Q35 -> 9383.7
C125: Yard fees | E125: =E214 -> 911.538387 | G125: sheep | I125: Reset Rate> | J125: =GM_INFO!C49 | K125: =GM_INFO!C96 -> 0.85 | M125: /head | Q125: =K125*ROUND(E125,0) -> 775.2
C126: Levy trans-sheep | E126: =SUM(E210:E212) -> 436.538387 | G126: sheep | I126: Reset Rate> | J126: =GM_INFO!C50 | K126: =GM_INFO!C97 -> 0.2 | M126: /head | Q126: =K126*ROUND(E126,0) -> 87.4
C127: Levy trans-lambs | E127: =E213 -> 475 | G127: sheep | I127: Reset Rate> | J127: =GM_INFO!C51 | K127: =GM_INFO!C98 -> 1.5 | M127: /head | Q127: =K127*ROUND(E127,0) -> 712.5
C128: SA sheep industry levy | E128: =E214 -> 911.538387 | G128: sheep | I128: Reset Rate> | J128: =GM_INFO!C52 | K128: =GM_INFO!C99 -> 0.67 | M128: /head | Q128: =K128*ROUND(E128,0) -> 611.04
C129: Wool selling charges
C130: Brokerage/testing/insurance | I130: Reset Rate> | J130: =GM_INFO!C53 | K130: =GM_INFO!C100 -> 0.27 | M130: /kg | Q130: =K130*E34 -> 2991.569226
C131: Wool levy | I131: Reset Rate> | J131: =GM_INFO!C54 | K131: =GM_INFO!C101 -> 0.015 | M131: gross | Q131: =K131*Q34 -> 1179.874903
C143: Feed and Other Costs
C144: Hand Feeding | Q144: ='Merino SR Input'!I84 -> 11400
C146: Insurance | E146: =E229 -> 420352.8403 | G146: value | I146: Reset Rate> | J146: =GM_INFO!B107 | K146: =GM_INFO!B154 -> 2 | M146: /$'000 | Q146: =K146/1000*E146 -> 840.7056806
C147: Water | E147: ='Merino SR Input'!$E$9 -> 2420 | G147: DSE's | I147: Reset Rate> | J147: =GM_INFO!D79 | K147: =GM_INFO!E126 -> 2.5 | M147: /DSE's | Q147: =K147*E147 -> 6050
C148: Veh Fuel, R&M | E148: ='Merino SR Input'!$E$9 -> 2420 | G148: DSE's | I148: Reset Rate> | J148: =GM_INFO!D80 | K148: =GM_INFO!E127 -> 1.2 | M148: /DSE's | Q148: =K148*E148 -> 2904
C149: Other | E149: ='Merino SR Input'!$E$9 -> 2420 | G149: DSE's | I149: Reset Rate> | J149: =GM_INFO!D81 | K149: =GM_INFO!E128 -> 0.5 | M149: /DSE's | Q149: =K149*E149 -> 1210
C170: TOTAL VARIABLE COSTS | Q170: =SUM(Q48:Q166) -> 80999.22181
C172: GROSS MARGIN TOTAL | Q172: =Q37-Q170 -> 154054.105
C174: GROSS MARGIN/DSE | Q174: =Q172/Q6 -> 63.65872109
C194: PRODUCTION DATA
AA196: SHEEP GROSS MARGIN
AA197: PRIME LAMB -
C199: Number of ewes mated | E199: ='Merino SR Input'!E8 -> 1000 | K199: Culling Rate (% from each group)
C200: Ram percentage | E200: ='Merino SR Input'!E14 -> 0.025 | K200: Age Group | M200: Ewes | O200: Wethers
C201: Age ewes 1st mating | E201: ='Merino SR Input'!E11 -> 1.5 | K201: 0.5 | M201: =AF213 -> 0
C202: Age ewes culled | E202: ='Merino SR Input'!E12 -> 6.5 | K202: 1.5 | M202: 0.492220025 | AA202: Ewes mated | AC202: ='Merino SR Input'!E8 -> 1000 | AF202: Ram % | AG202: =E200 -> 0.025
B203: =VLOOKUP(r[0]c3&"No Ops",CHOOSE({1,2},tbl_ops[Name]&tbl_ops[Category],INDIRECT("tbl_ops["&var_crop&"]")),2,0) | C203: Years rams kept | E203: ='Merino SR Input'!I7 -> 4 | K203: 2.5 | M203: 0.05 | AA203: Age at 1st mating | AC203: =E201 -> 1.5 | AF203: Price of rams | AG203: ='Merino SR Input'!E30 -> 2000
B204: =VLOOKUP(r[0]c3&"No Ops",CHOOSE({1,2},tbl_ops[Name]&tbl_ops[Category],INDIRECT("tbl_ops["&var_crop&"]")),2,0) | C204: Flock death rate | E204: ='Merino SR Input'!I8 -> 0.03 | K204: 3.5 | M204: 0.05 | AA204: Age ewes sold | AC204: =E202 -> 6.5 | AF204: Years rams kept | AG204: =E203 -> 4
B205: =VLOOKUP(r[0]c3&"No Ops",CHOOSE({1,2},tbl_ops[Name]&tbl_ops[Category],INDIRECT("tbl_ops["&var_crop&"]")),2,0) | C205: Average weaning rate | E205: =AC205 -> 0.95 | K205: 4.5 | M205: 0.05 | AA205: Av Weaning % | AC205: ='Merino SR Input'!E13 -> 0.95 | AF205: Age wethers sold | AG205: 0.5
B206: =VLOOKUP(r[0]c3&"No Ops",CHOOSE({1,2},tbl_ops[Name]&tbl_ops[Category],INDIRECT("tbl_ops["&var_crop&"]")),2,0) | C206: % Lambs carried over | E206: 0 | K206: 5.5 | M206: 0.05 | AA206: dse/ewe | AC206: 1.6 | AF206: Flock death rate | AG206: =E204 -> 0.03
C207: Age wethers sold | E207: =AG205 -> 0.5 | K207: 6.5 | M207: 1
B208: =VLOOKUP(r[0]c3&var_rain,CHOOSE({1,2},tbl_ops[Name]&tbl_ops[Rainfall],INDIRECT("tbl_ops["&var_crop&"]")),2,0)
B209: =VLOOKUP(r[0]c3&var_rain,CHOOSE({1,2},tbl_ops[Name]&tbl_ops[Rainfall],INDIRECT("tbl_ops["&var_crop&"]")),2,0) | C209: SALES | E209: Number | G209: Price/hd | I209: Total
B210: =VLOOKUP(r[0]c3&var_rain,CHOOSE({1,2},tbl_ops[Name]&tbl_ops[Rainfall],INDIRECT("tbl_ops["&var_crop&"]")),2,0) | C210: c.f.a ewes | E210: =AG220 -> 203.9596235 | G210: ='Merino SR Input'!E18 -> 170 | I210: =ROUND(E210,0)*G210 -> 34680
B211: =VLOOKUP(r[0]c3&var_rain,CHOOSE({1,2},tbl_ops[Name]&tbl_ops[Rainfall],INDIRECT("tbl_ops["&var_crop&"]")),2,0) | C211: c.f.a merino rams | E211: =AG244 -> 5.788387001 | G211: ='Merino SR Input'!E19 -> 140 | I211: =ROUND(E211,0)*G211 -> 840 | AA211: EWES | AB211: OPENING | AC211: NATURAL | AD211: PURCHASES | AE211: DEATHS | AF211: % sold | AG211: SALES | AH211: CLOSING
C212: Ewe hoggets | E212: =AG222 -> 226.7903765 | G212: ='Merino SR Input'!E20 -> 250 | I212: =ROUND(E212,0)*G212 -> 56750 | AA212: AGE | AB212: NUMBERS | AC212: INCREASE | AF212: culled | AH212: NUMBERS
C213: Wether lambs | E213: =AG230 -> 475 | G213: ='Merino SR Input'!E21 -> 135 | I213: =ROUND(E213,0)*G213 -> 64125 | AA213: 0-0.5yr | AC213: =AC202*AC205/2 -> 475 | AE213: =AB213*$AG$206 -> 0 | AF213: 0 | AG213: =AC213*AF213 -> 0 | AH213: =AB213+AC213+AD213-AE213-AG213 -> 475
C214: TOTAL | E214: =SUM(E210:E213) -> 911.538387 | G214: =I214/E214 -> 171.5725879 | I214: =SUM(I210:I213) -> 156395 | AA214: 0.5-1.5yr | AB214: =AH213 -> 475 | AE214: 14.25 | AF214: =(AB214*(1-AG206)-AB215)/(AB214-AE214) -> 0.492220025 | AG214: =AB214-AE214-AB215 -> 226.7903765 | AH214: 233.9596235
AA215: 1.5-2.5yr | AB215: =AC202/(1+(1-AG206)*(1-AF215)*(1+(1-AG206)*(1-AF216)*(1+(1-AG206)*(1-AF217)*(1+(1-AG206)*(1-AF218))))) -> 233.9596235 | AE215: 7.018788705 | AF215: 0.05 | AG215: =(AB215-AE215)*AF215 -> 11.34704174 | AH215: 215.5937931
AA216: 2.5-3.5yr | AB216: =AH215 -> 215.5937931 | AE216: 6.467813792 | AF216: 0.05 | AG216: =(AB216-AE216)*AF216 -> 10.45629896 | AH216: 198.6696803
AA217: 3.5-4.5yr | AB217: =AH216 -> 198.6696803 | AE217: 5.960090409 | AF217: 0.05 | AG217: =(AB217-AE217)*AF217 -> 9.635479495 | AH217: 183.0741104
E218: Number of Times | AA218: 4.5-5.5yr | AB218: =AH217 -> 183.0741104 | AE218: 5.492223312 | AF218: =IF(AC204=5.5,1,5%) -> 0.05 | AG218: =(AB218-AE218)*AF218 -> 8.879094354 | AH218: =AB218+AC218+AD218-AE218-AG218 -> 168.7027927
C219: STOCK HEALTH REQUIREMENTS | E219: Number | G219: Drench | I219: Vacc. | K219: Blowfly | M219: DSE | AA219: 5.5-6.5yr | AB219: =AH218 -> 168.7027927 | AE219: 5.061083782 | AF219: =IF(AC204=6.5,100%,0) -> 1 | AG219: =(AB219-AE219)*AF219 -> 163.641709 | AH219: 0
C220: Ewes | E220: ='Merino SR Input'!E8 -> 1000 | G220: ='Merino SR Input'!F58 -> 1 | I220: ='Merino SR Input'!G58 -> 1 | K220: ='Merino SR Input'!H58 -> 1 | M220: 1.8 | AA220: Ewes | AB220: =SUM(AB215:AB219) -> 1000 | AC220: =SUM(AC213:AC217) -> 475 | AD220: =SUM(AD213:AD219) -> 0 | AE220: =SUM(AE213:AE218) -> 39.18891622 | AG220: =SUM(AG215:AG219) -> 203.9596235 | AH220: =SUM(AH214:AH218) -> 1000
C221: Ewe hoggets | E221: =AB222 -> 475 | G221: ='Merino SR Input'!F59 -> 1 | I221: ='Merino SR Input'!G59 -> 1 | K221: ='Merino SR Input'!H59 -> 1 | M221: 1.2 | AA221: d.s.e's | AB221: =AB214+AC206*(AB215+AB216+AB217+AB218) -> 1805.075532
C222: Wether weaners | E222: =AB228 -> 0 | G222: ='Merino SR Input'!F60 -> 1 | I222: ='Merino SR Input'!G60 -> 1 | K222: ='Merino SR Input'!H60 -> 1 | M222: 0.8 | AA222: Ewe Hoggets | AB222: =AB214 -> 475 | AG222: =AG214 -> 226.7903765 | AH222: =AH213 -> 475
C223: Merino lambs | E223: =AC213+AC227 -> 950 | G223: ='Merino SR Input'!F61 -> 1 | I223: ='Merino SR Input'!G61 -> 2 | K223: ='Merino SR Input'!H61 -> 0 | M223: 0
C224: Merino rams | E224: =AB244 -> 25 | G224: ='Merino SR Input'!F62 -> 2 | I224: ='Merino SR Input'!G62 -> 1 | K224: ='Merino SR Input'!H62 -> 1 | M224: 2 | AA224: WETHERS | AB224: OPENING | AC224: NATURAL | AD224: PURCHASES | AE224: DEATHS | AF224: % sold | AG224: SALES | AH224: CLOSING
AA225: AGE | AB225: NUMBERS | AC225: INCREASE | AF225: culled | AH225: NUMBERS
AA227: 0-0.5yr | AC227: =AC205*AC202/2 -> 475 | AE227: =AB227*$AG$206 -> 0 | AF227: =IF(AG205=0.5,100%,0) -> 1 | AG227: =AC227*AF227 -> 475 | AH227: =AB227+AC227+AD227-AE227-AG227 -> 0
C228: TOTAL | E228: =SUM(E220:E227) -> 2450 | G228: =SUMPRODUCT($E$220:$E$227,G220:G227) -> 2475 | I228: =SUMPRODUCT($E$220:$E$227,I220:I227) -> 3400 | K228: =SUMPRODUCT($E$220:$E$227,K220:K227) -> 1500 | M228: =SUMPRODUCT($E$220:$E$227,M220:M227) -> 2420 | AA228: 0.5-1.5yr | AB228: =AH227 -> 0 | AE228: =AB228*$AG$206 -> 0 | AF228: =IF(AG205=1.5,100%,0) -> 0 | AG228: =(AB228-AE228)*AF228 -> 0 | AH228: =AB228+AC228+AD228-AE228-AG228 -> 0
C229: TOTAL VALUE | E229: =E228*G214 -> 420352.8403 | AA229: 1.5-2.5 | AB229: =AH228 -> 0 | AE229: =AB229*$AG$206 -> 0 | AF229: =IF(AG205=2.5,100%,0) -> 0 | AG229: =(AB229-AE229)*AF229 -> 0
AA230: Wth lambs | AB230: =AB227 -> 0 | AC230: =AC227 -> 475 | AD230: 0 | AE230: =AE227 -> 0 | AG230: =AG227 -> 475 | AH230: 0
G231: Wool Cut kg/hd | I231: Total | K231: Wool Price | M231: Total | AA231: Wth hgts | AB231: =AB228 -> 0 | AC231: 0 | AD231: 0 | AE231: =AE228 -> 0 | AG231: 0 | AH231: 0
C232: SHEARING | E232: Number | I232: Greasy kg | K232: cents/kg | AA232: Wethers | AB232: =AB229 -> 0 | AC232: 0 | AD232: 0 | AE232: =AE229 -> 0 | AG232: 0 | AH232: 0
C233: Ewes | E233: =AB220-0.5*AE220 -> 980.4055419 | G233: ='Merino SR Input'!F44 -> 6.5 | I233: =G233*E233 -> 6372.636022 | K233: ='Merino SR Input'!G44 -> 709.92 | M233: =K233*G233*E233/100 -> 45240.61765 | AA233: d.s.e's | AB233: =AB231+AB232 -> 0
C234: Ewe hoggets | E234: =AB214-0.5*AE214 -> 467.875 | G234: ='Merino SR Input'!F45 -> 5.5 | I234: =G234*E234 -> 2573.3125 | K234: ='Merino SR Input'!G45 -> 709.92 | M234: =K234*G234*E234/100 -> 18268.4601
C235: Wether weaners | E235: =AB228-0.5*AE228 -> 0 | G235: ='Merino SR Input'!F46 -> 5 | I235: =G235*E235 -> 0 | K235: ='Merino SR Input'!G46 -> 709.92 | M235: =K235*G235*E235/100 -> 0
C236: Lambs | E236: =AC213+AC227 -> 950 | G236: ='Merino SR Input'!F47 -> 2 | I236: =G236*E236 -> 1900 | K236: ='Merino SR Input'!G47 -> 709.92 | M236: =K236*G236*E236/100 -> 13488.48 | AA236: RAMS | AB236: OPENING | AC236: NATURAL | AD236: PURCHASES | AE236: DEATHS | AF236: % sold | AG236: SALES | AH236: CLOSING
C237: Merino rams | E237: =AB244-0.5*AE244 -> 24.625 | G237: ='Merino SR Input'!F48 -> 9.5 | I237: =G237*E237 -> 233.9375 | K237: ='Merino SR Input'!G48 -> 709.92 | M237: =K237*G237*E237/100 -> 1660.7691 | AA237: AGE | AB237: NUMBERS | AC237: INCREASE | AF237: culled | AH237: NUMBERS
AA239: 0.5-1.5yr | AD239: =AB240/(1-AF239) -> 6.538387001 | AH239: =AB239+AC239+AD239-AE239-AG239 -> 6.538387001
AA240: 1.5-2.5yr | AB240: =IF(AG204=3,(AC202*AG202)/(1+(1-AG206)*(1-AF240)*(1+(1-AG206)*(1-AF241)*(1+(1-AG206)*(1-AF242)))),IF(AG204=4,(AC202*AG202)/(1+(1-AG206)*(1-AF240)*(1+(1-AG206)*(1-AF241)*(1+(1-AG206)*(1-AF242)*(1+(1-AG206)*(1-AF243))))),0)) -> 6.538387001 | AE240: =AB240*$AG$206 -> 0.19615161 | AF240: 0 | AG240: =(SUM(AB240:AD240)-AE240)*AF240 -> 0 | AH240: =AB240+AC240+AD240-AE240-AG240 -> 6.342235391
C241: TOTAL | E241: =SUM(E233:E239) -> 2422.905542 | G241: =SUMPRODUCT(E233:E234,G233:G234) -> 8945.948522 | I241: =SUM(I233:I239) -> 11079.88602 | M241: =SUM(M233:M239) -> 78658.32685 | AA241: 2.5-3.5yr | AB241: =AH240 -> 6.342235391 | AE241: =AB241*$AG$206 -> 0.1902670617 | AF241: 0 | AG241: =(SUM(AB241:AD241)-AE241)*AF241 -> 0 | AH241: =AB241+AC241+AD241-AE241-AG241 -> 6.151968329
AA242: 3.5-4.5yr | AB242: =AH241 -> 6.151968329 | AE242: =AB242*$AG$206 -> 0.1845590499 | AF242: =IF(AG204=3,100%,0) -> 0 | AG242: =(SUM(AB242:AD242)-AE242)*AF242 -> 0 | AH242: =AB242+AC242+AD242-AE242-AG242 -> 5.967409279
AA243: 4.5-5.5yr | AB243: =AH242 -> 5.967409279 | AE243: =AB243*$AG$206 -> 0.1790222784 | AF243: =IF(AG204=4,100%,0) -> 1 | AG243: =AB243-AE243 -> 5.788387001 | AH243: =AB243+AC243+AD243-AE243-AG243 -> 0
G244: Hay Cost ($/T) | I244: Kg Fed per Week | K244: No of Weeks Feeding | M244: Total Cost ($) | AB244: =AB239+AB240+AB241+AB242+AB243 -> 25 | AD244: =AD239+AD240+AD241+AD242+AD243 -> 6.538387001 | AE244: =AE239+AE240+AE241+AE242+AE243 -> 0.75 | AG244: =AG239+AG240+AG241+AG242+AG243 -> 5.788387001 | AH244: =AH239+AH240+AH241+AH242+AH243 -> 25
C245: FEEDING | E245: Number | AA245: d.s.e's | AB245: =AB244*2 -> 50
C246: Ewes | E246: ='Merino SR Input'!E70 -> 1000 | G246: ='Merino SR Input'!F70 -> 230 | I246: ='Merino SR Input'!G70 -> 2 | K246: ='Merino SR Input'!H70 -> 10 | M246: =(E246*G246*I246*K246)/1000 -> 4600
C247: Weaner | E247: ='Merino SR Input'!E71 -> 0 | G247: ='Merino SR Input'!F71 -> 0 | I247: ='Merino SR Input'!G71 -> 0 | K247: ='Merino SR Input'!H71 -> 0 | M247: =(E247*G247*I247*K247)/1000 -> 0
C248: Ewe hoggets | E248: ='Merino SR Input'!E72 -> 0 | G248: ='Merino SR Input'!F72 -> 0 | I248: ='Merino SR Input'!G72 -> 0 | K248: ='Merino SR Input'!H72 -> 0 | M248: =(E248*G248*I248*K248)/1000 -> 0
C249: Merino lambs | E249: ='Merino SR Input'!E73 -> 0 | G249: ='Merino SR Input'!F73 -> 0 | I249: ='Merino SR Input'!G73 -> 0 | K249: ='Merino SR Input'!H73 -> 0 | M249: =(E249*G249*I249*K249)/1000 -> 0
C250: Merino rams | E250: ='Merino SR Input'!E74 -> 0 | G250: ='Merino SR Input'!F74 -> 0 | I250: ='Merino SR Input'!G74 -> 0 | K250: ='Merino SR Input'!H74 -> 0 | M250: =(E250*G250*I250*K250)/1000 -> 0
G251: Grain Cost ($/T) | I251: Kg Fed per Week | K251: No of Weeks Feeding | M251: Total Cost ($)
E252: Number
C253: Weaner | E253: ='Merino SR Input'!E78 -> 475 | G253: ='Merino SR Input'!F78 -> 320 | I253: ='Merino SR Input'!G78 -> 1 | K253: ='Merino SR Input'!H78 -> 10 | M253: =(E253*G253*I253*K253)/1000 -> 1520
C254: Ewes | E254: ='Merino SR Input'!E79 -> 1000 | G254: ='Merino SR Input'!F79 -> 220 | I254: ='Merino SR Input'!G79 -> 2.4 | K254: ='Merino SR Input'!H79 -> 10 | M254: =(E254*G254*I254*K254)/1000 -> 5280
C255: Ewe hoggets | E255: ='Merino SR Input'!E80 -> 0 | G255: ='Merino SR Input'!F80 -> 0 | I255: ='Merino SR Input'!G80 -> 0 | K255: ='Merino SR Input'!H80 -> 0 | M255: =(E255*G255*I255*K255)/1000 -> 0
C256: Merino lambs | E256: ='Merino SR Input'!E81 -> 0 | G256: ='Merino SR Input'!F81 -> 0 | I256: ='Merino SR Input'!G81 -> 0 | K256: ='Merino SR Input'!H81 -> 0 | M256: =(E256*G256*I256*K256)/1000 -> 0
C257: Merino rams | E257: ='Merino SR Input'!E82 -> 0 | G257: ='Merino SR Input'!F82 -> 0 | I257: ='Merino SR Input'!G82 -> 0 | K257: ='Merino SR Input'!H82 -> 0 | M257: =(E257*G257*I257*K257)/1000 -> 0
C258: TOTAL FEED COST | M258: =SUM(M246:M250,M253:M257) -> 11400
C263: GM SENSITIVITY
C264: Gross Margin/DSE | E264: Average Greasy Wool Price (c/Kg)
G265: 550 | I265: 600 | K265: 700 | M265: 710 | O265: 750 | Q265: 800
E266: 105 | G266: =(G$265*$E$34*(1-$K$131)/100+$E266*$E$35*(1-$K$124)-($Q$170-$Q$124-$Q$131))/$Q$6 -> 32.87540265 | I266: =(I$265*$E$34*(1-$K$131)/100+$E266*$E$35*(1-$K$124)-($Q$170-$Q$124-$Q$131))/$Q$6 -> 35.13029681 | K266: =(K$265*$E$34*(1-$K$131)/100+$E266*$E$35*(1-$K$124)-($Q$170-$Q$124-$Q$131))/$Q$6 -> 39.64008513 | M266: =(M$265*$E$34*(1-$K$131)/100+$E266*$E$35*(1-$K$124)-($Q$170-$Q$124-$Q$131))/$Q$6 -> 40.09106396 | O266: =(O$265*$E$34*(1-$K$131)/100+$E266*$E$35*(1-$K$124)-($Q$170-$Q$124-$Q$131))/$Q$6 -> 41.89497929 | Q266: =(Q$265*$E$34*(1-$K$131)/100+$E266*$E$35*(1-$K$124)-($Q$170-$Q$124-$Q$131))/$Q$6 -> 44.14987345
E267: 110 | G267: 34.6457458 | I267: 36.90063996 | K267: 41.41042828 | M267: 41.86140711 | O267: 43.66532244 | Q267: 45.9202166
C268: Average Sheep Sale Price($/hd) | E268: 115 | G268: 36.41608895 | I268: 38.67098311 | K268: 43.18077143 | M268: 43.63175026 | O268: 45.43566559 | Q268: 47.69055975
E269: 120 | G269: 38.1864321 | I269: 40.44132626 | K269: 44.95111458 | M269: 45.40209341 | O269: 47.20600874 | Q269: 49.46090289
E270: 125 | G270: 39.95677525 | I270: 42.21166941 | K270: 46.72145772 | M270: 47.17243656 | O270: 48.97635188 | Q270: 51.23124604
E271: 130 | G271: 41.72711839 | I271: 43.98201255 | K271: 48.49180087 | M271: 48.9427797 | O271: 50.74669503 | Q271: 53.00158919
E272: 171.5725879 | G272: 56.44666761 | I272: 58.70156177 | K272: 63.21135009 | M272: 63.66232892 | O272: 65.46624425 | Q272: 67.72113841
E273: 140 | G273: 45.26780469 | I273: 47.52269885 | K273: 52.03248717 | M273: 52.483466 | O273: 54.28738133 | Q273: 56.54227549
E274: 145 | G274: 47.03814784 | I274: 49.293042 | K274: 53.80283032 | M274: 54.25380915 | O274: 56.05772448 | Q274: 58.31261864
E275: 150 | G275: 48.80849099 | I275: 51.06338515 | K275: 55.57317347 | M275: 56.0241523 | O275: 57.82806763 | Q275: 60.08296178
E276: 155 | G276: 50.57883414 | I276: 52.83372829 | K276: 57.34351661 | M276: 57.79449545 | O276: 59.59841077 | Q276: 61.85330493
C279: FLOCK STRUCTURE | E279: This table shows the number of merino sheep in each age group at mating
E280: Age Group
C281: Class of Sheep | E281: 0.5 y.o. | G281: 1.5 y.o. | I281: 2.5 y.o. | K281: 3.5 y.o. | M281: 4.5 y.o. | O281: 5.5 y.o. | Q281: 6.5 y.o.
C282: Ewes | E282: =$AB214 -> 475 | G282: =$AB215 -> 233.9596235 | I282: =$AB216 -> 215.5937931 | K282: =$AB217 -> 198.6696803 | M282: =$AB218 -> 183.0741104 | O282: =$AB219 -> 168.7027927 | Q282: 0
C283: Wethers | E283: =$AB228 -> 0 | G283: =$AB229 -> 0 | I283: 0 | K283: 0 | M283: 0 | O283: 0 | Q283: 0
C284: Rams | G284: =$AB240 -> 6.538387001 | I284: =$AB241 -> 6.342235391 | K284: =$AB242 -> 6.151968329 | M284: =$AB243 -> 5.967409279 | O284: 0 | Q284: 0

Sheet Wethers Input (hidden)
C2: ="WETHERS GROSS MARGIN - "&TEXT(m_year,"0000") -> WETHERS GROSS MARGIN - 2021
C4: GENERAL INFORMATION
C5: This represents a merino wether flock, producing 21 micron wool. Adjust wool price if different micron wool is produced. Following are the various assumptions used in the calculation of the Gross Margin. Cells with yellow highlight can be changed. No allowance has been made for pasture expenses such as seed, fertiliser and chemicals. Refer to pasture gross margins in the “Cropping Gross Margin Plan” for annual and perennial pasture costs. Use the livestock gross margin per DSE as income for the pasture gross margin.
C7: No of Wethers | E7: 1000
C9: Age Wethers sold | E9: 5.5
C10: Age Wethers bought | E10: 0.5
C13: Flock death Rate | E13: 0.03
C14: DSE rating/wether | E14: 1.2
C17: LIVESTOCK SALES | E17: Price/Hd | F17: Number | G17: Total
C18: Wethers | E18: 170 | F18: =ROUND(Wethers!AG220,0) -> 182 | G18: =E18*F18 -> 30940
C25: TOTAL SALES | F25: =SUM(F18:F23) -> 182 | G25: =SUM(G18:G23) -> 30940
C28: LIVESTOCK PURCHASES | E28: Price/Hd | F28: Number | G28: Total
C29: Wethers | E29: 135 | F29: =ROUND(Wethers!AD220,0) -> 212 | G29: =E29*F29 -> 28620
C32: TOTAL PURCHASES | F32: =SUM(F29:F30) -> 212 | G32: =SUM(G29:G30) -> 28620
C35: WOOL PRICE (cents/kg) | F35: =TEXT(m_year-3,"0000")&" Average (Clean)" -> 2018 Average (Clean) | G35: =TEXT(m_year-2,"0000")&" Average (Clean)" -> 2019 Average (Clean) | H35: =TEXT(m_year-1,"0000")&" Average (Clean)" -> 2020 Average (Clean) | I35: Budget Base (Clean) | J35: Budget Base (Greasy) | L35: Wool Type | M35: Budget Clean Price
E36: Cereal Zone 21 mic 68% yield | F36: 1160 | G36: 1274 | H36: 1397 | I36: 1160 | J36: =I36*I37 -> 788.8 | L36: 19 mic | M36: 1820
E37: Estimated wool yield | I37: 0.68 | L37: 21 mic | M37: 1780
C38: Allow 90% to account for lower value of bellies, skirtings etc. | J38: =J36*0.9 -> 709.92 | L38: 22 mic | M38: 1765
C42: WOOL SALES - SHEARING | F42: Wool Cut | G42: Wool Price
E43: Number | F43: kg/hd | G43: cents/kg
C44: Wethers | E44: =Wethers!E233 -> 970 | F44: 7.5 | G44: =J38 -> 709.92
C52: TOTAL | E52: =SUM(E44:E51) -> 970 | F52: =SUMPRODUCT(E44:E50,F44:F50) -> 7275
C55: STOCK HEALTH REQUIREMENTS | E55: =HYPERLINK("http://paraboss.com.au","for more info on drench, lice and blowfly product selection refer to www.paraboss.com.au") -> for more info on drench, lice and blowfly product selection refer to www.paraboss.com.au
G56: Number of times
E57: Number | F57: Drench | G57: Vacc. | H57: Blowfly
C58: Wethers | E58: =Wethers!E220 -> 1000 | F58: 1 | G58: 1 | H58: 1
C64: TOTAL | E64: =SUM(E58:E62) -> 1000 | F64: =SUMPRODUCT($E$58:$E$62,F58:F62) -> 1000 | G64: =SUMPRODUCT($E$58:$E$62,G58:G62) -> 1000 | H64: =SUMPRODUCT($E$58:$E$62,H58:H62) -> 1000
C67: FEEDING
C68: HAY | F68: Hay | G68: Kgs Fed | H68: No Weeks | I68: Total
E69: Number | F69: Cost ($/T) | G69: per Week | H69: of Feeding | I69: Cost ($)
C70: Cereal Hay | E70: =Wethers!E220 -> 1000 | F70: 230 | G70: 1.5 | H70: 10 | I70: =(H70*G70*E70)/1000*F70 -> 3450
C71: Legume Hay | I71: =(H71*G71*E71)/1000*F71 -> 0
I72: =(H72*G72*E72)/1000*F72 -> 0
C74: GRAIN | F74: Grain | G74: Kgs Fed | H74: No Weeks | I74: Total
E75: Number | F75: Cost ($/T) | G75: per Week | H75: of Feeding | I75: Cost ($)
C76: Lupins | E76: =Wethers!E220 -> 1000 | F76: 320 | I76: =(H76*G76*E76)/1000*F76 -> 0
C77: Barley | I77: =(H77*G77*E77)/1000*F77 -> 0
C78: Oats | I78: =(H78*G78*E78)/1000*F78 -> 0
H80: Total Feed Cost | I80: =SUM(I70:I72,I76:I78) -> 3450

Sheet Wethers (hidden)
C1: WHETHERS
C2: ="WETHERS GROSS MARGIN - "&TEXT(m_year,"0000") -> WETHERS GROSS MARGIN - 2021
C4: ASSUMPTIONS
C6: Ave Wether Fibre Diameter | E6: 21 | O6: Gross Margin per Ha | Q6: =Q172/E198 -> 140.7033462
C7: Number of Wethers | E7: ='Wethers Input'!$E$7 -> 1000 | O7: Gross Margin per DSE | Q7: =Q174 -> 23.45055771
C8: Stocking Rate (DSE/Ha) | E8: =E196 -> 6 | O8: Gross Margin/Wether | Q8: =Q172/E199 -> 28.14066925
C32: INCOME | Q32: $
C34: Wool (kg greasy) | E34: =I234 -> 7275 | G34: kg | I34: av price | K34: ='Wethers Input'!J38 -> 709.92 | M34: c/kg | Q34: =E34*K34/100 -> 51646.68
C35: Sales | E35: =E211 -> 182.3653636 | G35: animals | I35: av price | K35: =G210 -> 170 | M35: /head | Q35: =K35*E35 -> 31002.11182
C37: Gross Income | Q37: =SUM(Q34:Q35) -> 82648.79182
AA45: STOCK VALUE AND D.S.E REQUIREMENT
C46: VARIABLE COSTS
C47: Shearing | K47: Rate
C48: Shearing | E48: =E234 -> 970 | G48: sheep | I48: Reset Rate> | J48: =GM_INFO!C30 | K48: =GM_INFO!C77 -> 324.31 | M48: /100 | Q48: =K48/100*ROUND(E48,0) -> 3145.807
C50: Shed labour | E50: 4 | G50: days | I50: Reset Rate> | J50: =GM_INFO!C32 | K50: =GM_INFO!C79 -> 245.56 | M50: /day | Q50: =K50*ROUND(E50,0) -> 982.24
C51: Woolclasser | E51: 2 | G51: days | I51: Reset Rate> | J51: =GM_INFO!C33 | K51: =GM_INFO!C80 -> 312.11 | M51: /day | Q51: =K51*E51 -> 624.22
C52: Superannuation (on ord wages only) | I52: Reset Rate> | J52: =GM_INFO!C34 | K52: =GM_INFO!C81 -> 0.095 | M52: wages | Q52: =(Q48+Q50+Q51)*K52 -> 451.465365
C53: W/Cover (incl. super + otime etc) | I53: Reset Rate> | J53: =GM_INFO!C35 | K53: =GM_INFO!C82 -> 0.04 | M53: total | Q53: =(Q48+Q49+Q50+Q51+Q52)*K53 -> 208.1492946
C54: Wool packs | E54: =E122 -> 42.79411765 | G54: packs | I54: Reset Rate> | J54: =GM_INFO!C28 | K54: =GM_INFO!C75 -> 12 | M54: /pack | Q54: =K54*ROUND(E54,0) -> 516
C55: Shed sundries | E55: =E48 -> 970 | G55: sheep | I55: Reset Rate> | J55: =GM_INFO!C36 | K55: =GM_INFO!C83 -> 0.2 | M55: /head | Q55: =K55*ROUND(E55,0) -> 194
C56: Lice control | E56: =E48 -> 970 | G56: sheep | I56: Reset Rate> | J56: =GM_INFO!C19 | K56: =GM_INFO!C66 -> 1.2912 | M56: /head | Q56: =K56*ROUND(E56,0) -> 1252.464
C57: Crutching | E57: =E228 -> 1000 | G57: sheep | I57: Reset Rate> | J57: =GM_INFO!C38 | K57: =GM_INFO!C85 -> 94.05 | M57: /100 | Q57: =K57/100*ROUND(E57,0) -> 940.5
AS79: RAMS | AT79: OPENING | AU79: NATURAL | AV79: PURCHASES | AW79: DEATHS | AX79: % sold | AY79: SALES | AZ79: CLOSING
AS80: AGE | AT80: NUMBERS | AU80: INCREASE | AX80: culled | AZ80: NUMBERS
AS82: 0.5-1.5yr | AV82: =AT83/(1-AX82) -> 0 | AW82: =AT82*$R$81 -> 0 | AZ82: =AT82+AU82+AV82-AW82-AY82 -> 0
AS83: 1.5-2.5yr | AT83: =IF(AY53=3,(AU51*AY51)/(1+(1-AY55)*(1-AX83)*(1+(1-AY55)*(1-AX84)*(1+(1-AY55)*(1-AX85)))),IF(AY53=4,(AU51*AY51)/(1+(1-AY55)*(1-AX83)*(1+(1-AY55)*(1-AX84)*(1+(1-AY55)*(1-AX85)*(1+(1-AY55)*(1-AX86))))),0)) -> 0 | AW83: =AT83*$R$81 -> 0 | AZ83: =AT83+AU83+AV83-AW83-AY83 -> 0
AS84: 2.5-3.5yr | AT84: =AZ83 -> 0 | AW84: =AT84*$R$81 -> 0 | AZ84: =AT84+AU84+AV84-AW84-AY84 -> 0
AS85: 3.5-4.5yr | AT85: =AZ84 -> 0 | AW85: =AT85*$R$81 -> 0 | AX85: =IF(AY53=3,100%,0) -> 0 | AY85: =(AT85-AW85)*AX85 -> 0 | AZ85: =AT85+AU85+AV85-AW85-AY85 -> 0
AS86: 4.5-5.5yr | AT86: =AZ85 -> 0 | AW86: =AT86*$R$81 -> 0 | AX86: =IF(AY53=4,100%,0) -> 0 | AY86: =AT86-AW86 -> 0 | AZ86: =AT86+AU86+AV86-AW86-AY86 -> 0
AT87: =AT82+AT83+AT84+AT85+AT86 -> 0 | AV87: =AV82+AV83+AV84+AV85+AV86 -> 0 | AW87: =AW82+AW83+AW84+AW85+AW86 -> 0 | AY87: =AY82+AY83+AY84+AY85+AY86 -> 0 | AZ87: =AZ82+AZ83+AZ84+AZ85+AZ86 -> 0
AS88: d.s.e's | AT88: =AT87*AE49 -> 0
C89: Animal Health
C90: Drench | E90: =G228 -> 1000 | G90: sheep | I90: Reset Rate> | J90: =GM_INFO!C21 | K90: =GM_INFO!C68 -> 0.417 | M90: /head | Q90: =K90*ROUND(E90,0) -> 417
C91: Vaccinate | E91: =I228 -> 1000 | G91: sheep | I91: Reset Rate> | J91: =GM_INFO!C23 | K91: =GM_INFO!C70 -> 0.2176 | M91: /head | Q91: =K91*ROUND(E91,0) -> 217.6
C92: Blowfly control | E92: =K228 -> 1000 | G92: sheep | I92: Reset Rate> | J92: =GM_INFO!C27 | K92: =GM_INFO!C74 -> 1.24656 | M92: /head | Q92: =K92*ROUND(E92,0) -> 1246.56
C93: Other expenses | G93: sheep | I93: Reset Rate> | M93: /head | Q93: =K93*ROUND(E93,0) -> 0
C104: Stock purchases
C105: Purchases | E105: =ROUND(E213,0) -> 212 | G105: wethers | I105: Reset Rate> | J105: ='WETHERS INPUT'!E29 | K105: ='Wethers Input'!E29 -> 135 | M105: /head | Q105: =K105*E105 -> 28620
C117: Sale Costs
C118: Freight
C119: Livestock | E119: =E211+E213 -> 394.7307272 | G119: sheep | I119: Reset Rate> | J119: =GM_INFO!B111 | K119: =GM_INFO!B158 -> 4 | M119: /head | Q119: =K119*ROUND(E119,0) -> 1580
I120: Reset Rate> | M120: /head
I121: Reset Rate> | M121: /head
C122: Wool | E122: =I234/170 -> 42.79411765 | G122: bales | I122: Reset Rate> | J122: =GM_INFO!B114 | K122: =GM_INFO!B161 -> 15 | M122: /bale | Q122: =K122*ROUND(E122,0) -> 645
C123: Stock selling charges
C124: Commission/insurance | I124: Reset Rate> | J124: =GM_INFO!C48 | K124: =GM_INFO!C95 -> 0.06 | M124: gross $ | Q124: =K124*Q35 -> 1860.126709
C125: Yard fees | E125: =E211 -> 182.3653636 | G125: sheep | I125: Reset Rate> | J125: =GM_INFO!C49 | K125: =GM_INFO!C96 -> 0.85 | M125: /head | Q125: =K125*ROUND(E125,0) -> 154.7
C126: Levy trans-sheep | E126: =E211 -> 182.3653636 | G126: sheep | I126: Reset Rate> | J126: =GM_INFO!C50 | K126: =GM_INFO!C97 -> 0.2 | M126: /head | Q126: =K126*ROUND(E126,0) -> 36.4
C128: SA sheep industry levy | E128: =E211 -> 182.3653636 | G128: sheep | I128: Reset Rate> | J128: =GM_INFO!C52 | K128: =GM_INFO!C99 -> 0.67 | M128: /head | Q128: =K128*ROUND(E128,0) -> 121.94
C129: Wool selling charges
C130: Brokerage/testing/insurance | I130: Reset Rate> | J130: =GM_INFO!C53 | K130: =GM_INFO!C100 -> 0.27 | M130: /kg | Q130: =K130*E34 -> 1964.25
C131: Wool levy | I131: Reset Rate> | J131: =GM_INFO!C54 | K131: =GM_INFO!C101 -> 0.015 | M131: gross | Q131: =K131*Q34 -> 774.7002
C143: Feed and Other Costs
C144: Hand Feeding | Q144: ='Wethers Input'!I80 -> 3450
C146: Insurance | E146: =E239*G239 -> 152500 | G146: value | I146: Reset Rate> | J146: =GM_INFO!B107 | K146: =GM_INFO!B154 -> 2 | M146: /$'000 | Q146: =K146/1000*E146 -> 305
C147: Water | E147: =$E$197 -> 1200 | G147: DSE's | I147: Reset Rate> | J147: =GM_INFO!G79 | K147: =GM_INFO!G126 -> 2.5 | M147: /DSE's | Q147: =K147*E147 -> 3000
C148: Veh Fuel, R&M | E148: =$E$197 -> 1200 | G148: DSE's | I148: Reset Rate> | J148: =GM_INFO!G80 | K148: =GM_INFO!G127 -> 1 | M148: /DSE's | Q148: =K148*E148 -> 1200
C149: Other | E149: =$E$197 -> 1200 | G149: DSE's | I149: Reset Rate> | J149: =GM_INFO!G81 | K149: =GM_INFO!G128 -> 0.5 | M149: /DSE's | Q149: =K149*E149 -> 600
C170: TOTAL VARIABLE COSTS | Q170: =SUM(Q48:Q166) -> 54508.12257
C172: GROSS MARGIN TOTAL | Q172: =Q37-Q170 -> 28140.66925
C174: GROSS MARGIN/DSE | Q174: =Q172/E197 -> 23.45055771
C194: PRODUCTION DATA
C196: Stocking rate (DSE/Ha) | E196: 6 | K196: Culling Rate (% from each group) | Q196: Stock | AA196: SHEEP GROSS MARGIN
C197: Total DSE's | E197: ='Wethers Input'!E7*'Wethers Input'!E14 -> 1200 | K197: Age Group | M197: Ewes | O197: Wethers | Q197: No's
C198: SHEEP GRAZING AREA | E198: =E197/E196 -> 200 | K198: 0.5 | O198: =AF214 -> 0 | Q198: =AH214 -> 212.3653636
C199: Number of wethers | E199: ='Wethers Input'!E7 -> 1000 | K199: 1.5 | O199: 0 | Q199: 205.9944027
C200: Flock death rate | E200: ='Wethers Input'!E13 -> 0.03 | K200: 2.5 | O200: 0 | Q200: 199.8145706
C201: Age wethers bought | E201: ='Wethers Input'!E10 -> 0.5 | K201: 3.5 | O201: 0 | Q201: 193.8201335
C202: Age wethers culled | E202: ='Wethers Input'!E9 -> 5.5 | K202: 4.5 | O202: 0 | Q202: 188.0055295 | AA202: No of wethers | AC202: ='Wethers Input'!E7 -> 1000
B203: =VLOOKUP(r[0]c3&"No Ops",CHOOSE({1,2},tbl_ops[Name]&tbl_ops[Category],INDIRECT("tbl_ops["&var_crop&"]")),2,0) | K203: 5.5 | O203: 1 | Q203: 0 | AA203: Age wethers purchased | AC203: =E201 -> 0.5
B204: =VLOOKUP(r[0]c3&"No Ops",CHOOSE({1,2},tbl_ops[Name]&tbl_ops[Category],INDIRECT("tbl_ops["&var_crop&"]")),2,0) | AA204: Age wethers sold | AC204: =E202 -> 5.5
B205: =VLOOKUP(r[0]c3&"No Ops",CHOOSE({1,2},tbl_ops[Name]&tbl_ops[Category],INDIRECT("tbl_ops["&var_crop&"]")),2,0) | AA205: Flock death rate | AC205: =E200 -> 0.03
B206: =VLOOKUP(r[0]c3&"No Ops",CHOOSE({1,2},tbl_ops[Name]&tbl_ops[Category],INDIRECT("tbl_ops["&var_crop&"]")),2,0) | AA206: dse/wether | AC206: ='Wethers Input'!E14 -> 1.2
B208: =VLOOKUP(r[0]c3&var_rain,CHOOSE({1,2},tbl_ops[Name]&tbl_ops[Rainfall],INDIRECT("tbl_ops["&var_crop&"]")),2,0)
B209: =VLOOKUP(r[0]c3&var_rain,CHOOSE({1,2},tbl_ops[Name]&tbl_ops[Rainfall],INDIRECT("tbl_ops["&var_crop&"]")),2,0) | C209: SALES | E209: Number | G209: Price/hd | I209: Age | K209: Total
B210: =VLOOKUP(r[0]c3&var_rain,CHOOSE({1,2},tbl_ops[Name]&tbl_ops[Rainfall],INDIRECT("tbl_ops["&var_crop&"]")),2,0) | C210: c.f.a wethers | E210: =AG220 -> 182.3653636 | G210: ='Wethers Input'!E18 -> 170 | I210: =E202 -> 5.5 | K210: =ROUND(E210,0)*G210 -> 30940
B211: =VLOOKUP(r[0]c3&var_rain,CHOOSE({1,2},tbl_ops[Name]&tbl_ops[Rainfall],INDIRECT("tbl_ops["&var_crop&"]")),2,0) | C211: TOTAL | E211: =E210 -> 182.3653636 | K211: =K210 -> 30940 | AA211: WETHERS | AB211: OPENING | AC211: NATURAL | AD211: PURCHASES | AE211: DEATHS | AF211: % sold | AG211: SALES | AH211: CLOSING
C212: PURCHASES | E212: Number | G212: Price/hd | I212: Age | K212: Total | AA212: AGE | AB212: NUMBERS | AC212: INCREASE | AF212: culled | AH212: NUMBERS
C213: Wethers | E213: =AD220 -> 212.3653636 | G213: ='Wethers Input'!E29 -> 135 | I213: =E201 -> 0.5 | K213: =ROUND(E213,0)*G213 -> 28620
AA214: 0-0.5yr | AD214: =IF(AC203=0.5,AB215-AE214-AG214,0) -> 212.3653636 | AE214: =AB214*$AC$205 -> 0 | AF214: =IF(AC204=0.5,100%,0) -> 0 | AG214: =AC214*AF214 -> 0 | AH214: =AB214+AC214+AD214-AE214-AG214 -> 212.3653636
AA215: 0.5-1.5yr | AB215: =IF(AC203=0.5,AC202/(1+(1-AC205)*(1-AF215)*(1+(1-AC205)*(1-AF216)*(1+(1-AC205)*(1-AF217)*(1+(1-AC205)*(1-AF218))))),0) -> 212.3653636 | AD215: =IF(AC203=1.5,AB216-AE215-AG215,0) -> 0 | AE215: 6.370960909 | AF215: =IF(AC204=1.5,100%,0) -> 0 | AG215: =(AB215-AE215)*AF215 -> 0 | AH215: 205.9944027
AA216: 1.5-2.5yr | AB216: =IF(AC203=1.5,AC202/(1+(1-AC205)*(1-AF216)*(1+(1-AC205)*(1-AF217)*(1+(1-AC205)*(1-AF218)))),AH215) -> 205.9944027 | AE216: 6.179832081 | AF216: =IF(AC204=2.5,100%,0) -> 0 | AG216: =(AB216-AE216)*AF216 -> 0 | AH216: 199.8145706
AA217: 2.5-3.5yr | AB217: =AH216 -> 199.8145706 | AE217: 5.994437119 | AF217: =IF(AC204=3.5,100%,0) -> 0 | AG217: =(AB217-AE217)*AF217 -> 0 | AH217: 193.8201335
E218: Number of Times | AA218: 3.5-4.5yr | AB218: =AH217 -> 193.8201335 | AE218: 5.814604005 | AF218: =IF(AC204=4.5,100%,0) -> 0 | AG218: =(AB218-AE218)*AF218 -> 0 | AH218: 188.0055295
C219: STOCK HEALTH REQUIREMENTS | E219: Number | G219: Drench | I219: Vacc. | K219: Blowfly | AA219: 4.5-5.5yr | AB219: =AH218 -> 188.0055295 | AE219: 5.640165885 | AF219: =IF(AC204=5.5,100%,0) -> 1 | AG219: =(AB219-AE219)*AF219 -> 182.3653636 | AH219: 0
C220: Wethers | E220: =ROUND('Wethers Input'!E7,0) -> 1000 | G220: ='Wethers Input'!F58 -> 1 | I220: ='Wethers Input'!G58 -> 1 | K220: ='Wethers Input'!H58 -> 1 | AA220: Total | AB220: =SUM(AB215:AB219) -> 1000 | AD220: =SUM(AD214:AD219) -> 212.3653636 | AE220: =SUM(AE214:AE219) -> 30 | AG220: =SUM(AG214:AG219) -> 182.3653636 | AH220: =SUM(AH214:AH219) -> 1000
AA221: d.s.e's | AB221: =AB220*AC206 -> 1200
C228: TOTAL | E228: =SUM(E220:E227) -> 1000 | G228: =SUMPRODUCT($E$220:$E$227,G220:G227) -> 1000 | I228: =SUMPRODUCT($E$220:$E$227,I220:I227) -> 1000 | K228: =SUMPRODUCT($E$220:$E$227,K220:K227) -> 1000
G231: Wool Cut kg/hd | I231: Total | K231: Wool Price
C232: SHEARING | E232: Number | I232: Greasy kg | K232: cents/kg
C233: Wethers | E233: =AB220-AE220 -> 970 | G233: ='Wethers Input'!F44 -> 7.5 | I233: =G233*E233 -> 7275 | K233: ='Wethers Input'!G44 -> 709.92
C234: TOTAL | E234: =E233 -> 970 | I234: =I233 -> 7275
C237: STOCK VALUE | G237: Value
E238: Number | G238: $/head
C239: Wethers | E239: =E199 -> 1000 | G239: =(G213+G210)/2 -> 152.5
C240: TOTAL | E240: =E239 -> 1000
G244: Hay Cost ($/T) | I244: Kg Fed per Week | K244: No of Weeks Feeding | M244: Total Cost ($)
C245: FEEDING | E245: Number
C246: Wethers | E246: ='Wethers Input'!E70 -> 1000 | G246: ='Wethers Input'!F70 -> 230 | I246: ='Wethers Input'!G70 -> 1.5 | K246: ='Wethers Input'!H70 -> 10 | M246: =(E246*G246*I246*K246)/1000 -> 3450
E247: ='Wethers Input'!E71 -> 0 | G247: ='Wethers Input'!F71 -> 0 | I247: ='Wethers Input'!G71 -> 0 | K247: ='Wethers Input'!H71 -> 0 | M247: =(E247*G247*I247*K247)/1000 -> 0
E248: ='Wethers Input'!E72 -> 0 | G248: ='Wethers Input'!F72 -> 0 | I248: ='Wethers Input'!G72 -> 0 | K248: ='Wethers Input'!H72 -> 0 | M248: =(E248*G248*I248*K248)/1000 -> 0
G249: Grain Cost ($/T) | I249: Kg Fed per Week | K249: No of Weeks Feeding | M249: Total Cost ($)
E250: Number
C251: Wethers | E251: ='Wethers Input'!E76 -> 1000 | G251: ='Wethers Input'!F76 -> 320 | I251: ='Wethers Input'!G76 -> 0 | K251: ='Wethers Input'!H76 -> 0 | M251: =(E251*G251*I251*K251)/1000 -> 0
E252: ='Wethers Input'!E77 -> 0 | G252: ='Wethers Input'!F77 -> 0 | I252: ='Wethers Input'!G77 -> 0 | K252: ='Wethers Input'!H77 -> 0 | M252: =(E252*G252*I252*K252)/1000 -> 0
E253: ='Wethers Input'!E78 -> 0 | G253: ='Wethers Input'!F78 -> 0 | I253: ='Wethers Input'!G78 -> 0 | K253: ='Wethers Input'!H78 -> 0 | M253: =(E253*G253*I253*K253)/1000 -> 0
C254: TOTAL FEED COST | M254: =SUM(M246:M248,M251:M253) -> 3450
C259: GM SENSITIVITY
C260: Gross Margin/DSE | E260: Average Greasy Wool Price (c/Kg)
G261: 550 | I261: 600 | K261: 700 | M261: 710 | O261: 750 | Q261: 800
E262: 145 | G262: =(G$261*$E$34*(1-$K$131)/100+$E262*$E$35*(1-$K$124)-($Q$170-$Q$124-$Q$131))/$E$197 -> 10.32951325 | I262: =(I$261*$E$34*(1-$K$131)/100+$E262*$E$35*(1-$K$124)-($Q$170-$Q$124-$Q$131))/$E$197 -> 13.3152945 | K262: =(K$261*$E$34*(1-$K$131)/100+$E262*$E$35*(1-$K$124)-($Q$170-$Q$124-$Q$131))/$E$197 -> 19.286857 | M262: =(M$261*$E$34*(1-$K$131)/100+$E262*$E$35*(1-$K$124)-($Q$170-$Q$124-$Q$131))/$E$197 -> 19.88401325 | O262: =(O$261*$E$34*(1-$K$131)/100+$E262*$E$35*(1-$K$124)-($Q$170-$Q$124-$Q$131))/$E$197 -> 22.27263825 | Q262: =(Q$261*$E$34*(1-$K$131)/100+$E262*$E$35*(1-$K$124)-($Q$170-$Q$124-$Q$131))/$E$197 -> 25.2584195
E263: 150 | G263: 11.04377759 | I263: 14.02955884 | K263: 20.00112134 | M263: 20.59827759 | O263: 22.98690259 | Q263: 25.97268384
C264: Average Sheep Sale Price($/hd) | E264: 155 | G264: 11.75804193 | I264: 14.74382318 | K264: 20.71538568 | M264: 21.31254193 | O264: 23.70116693 | Q264: 26.68694818
E265: 160 | G265: 12.47230627 | I265: 15.45808752 | K265: 21.42965002 | M265: 22.02680627 | O265: 24.41543127 | Q265: 27.40121252
E266: 165 | G266: 13.18657062 | I266: 16.17235187 | K266: 22.14391437 | M266: 22.74107062 | O266: 25.12969562 | Q266: 28.11547687
E267: 170 | G267: 13.90083496 | I267: 16.88661621 | K267: 22.85817871 | M267: 23.45533496 | O267: 25.84395996 | Q267: 28.82974121
E268: 175 | G268: 14.6150993 | I268: 17.60088055 | K268: 23.57244305 | M268: 24.1695993 | O268: 26.5582243 | Q268: 29.54400555
E269: 180 | G269: 15.32936364 | I269: 18.31514489 | K269: 24.28670739 | M269: 24.88386364 | O269: 27.27248864 | Q269: 30.25826989
E270: 185 | G270: 16.04362798 | I270: 19.02940923 | K270: 25.00097173 | M270: 25.59812798 | O270: 27.98675298 | Q270: 30.97253423
E271: 190 | G271: 16.75789232 | I271: 19.74367357 | K271: 25.71523607 | M271: 26.31239232 | O271: 28.70101732 | Q271: 31.68679857
E272: 195 | G272: 17.47215666 | I272: 20.45793791 | K272: 26.42950041 | M272: 27.02665666 | O272: 29.41528166 | Q272: 32.40106291

Sheet Cleanskin Sheep Input (hidden)
C2: ="CLEANSKIN SHEEP GROSS MARGIN - "&TEXT(m_year,"0000") -> CLEANSKIN SHEEP GROSS MARGIN - 2021
C4: GENERAL INFORMATION
C5: This represents a fully wool shedding self-replacing flock, with no shearing, crutching or lice control. Assumes only one lambing each year. Following are the various assumptions used in the calculation of the Gross Margin. Cells with yellow highlight can be changed. No allowance has been made for pasture expenses such as seed, fertiliser and chemicals. Refer to pasture gross margins in the “Cropping Gross Margin Plan” for annual and perennial pasture costs. Use the livestock gross margin per DSE as income for the pasture gross margin.
C7: Ewes mated | E7: 1000
C8: Age ewes 1st mating | E8: 1
C9: Age ewes sold | E9: 6.5
C10: Av Weaning % | E10: 1.5
C11: Ram percentage | E11: 0.025
C12: Years Rams Kept | E12: 4
C13: Flock death Rate | E13: 0.03
C17: LIVESTOCK SALES | E17: Price/Hd | F17: Number | G17: Total
C18: c.f.a Ewes | E18: 170 | F18: ='Cleanskin Sheep'!AG220 -> 203.9596235 | G18: =E18*ROUND(F18,0) -> 34680
C19: c.f.a Rams | E19: 130 | F19: ='Cleanskin Sheep'!AG244 -> 5.788387001 | G19: =E19*ROUND(F19,0) -> 780
C20: ewe hoggets | E20: 220 | F20: ='Cleanskin Sheep'!AG222 -> 493.5403765 | G20: =E20*ROUND(F20,0) -> 108680
C21: wether lambs | E21: 180 | F21: ='Cleanskin Sheep'!AG230 -> 750 | G21: =E21*ROUND(F21,0) -> 135000
C25: TOTAL SALES | F25: =SUM(F18:F23) -> 1453.288387 | G25: =SUM(G18:G23) -> 279140
C28: LIVESTOCK PURCHASES | E28: Price/Hd | F28: Number | G28: Total
C30: Rams | E30: 1850 | F30: =ROUND('Cleanskin Sheep'!AD244,0) -> 7 | G30: =E30*F30 -> 12950
C32: TOTAL PURCHASES | F32: =SUM(F29:F30) -> 7 | G32: =SUM(G29:G30) -> 12950
C54: STOCK HEALTH REQUIREMENTS | E54: =HYPERLINK("http://paraboss.com.au","for more info on drench, lice and blowfly product selection refer to www.paraboss.com.au") -> for more info on drench, lice and blowfly product selection refer to www.paraboss.com.au
G55: Number of times
E56: Number | F56: Drench | G56: Vacc. | H56: Blowfly | I56: Lice
C57: Ewes | E57: ='Cleanskin Sheep'!E220 -> 1000 | F57: 1 | G57: 1
C58: Ewe hoggets | E58: ='Cleanskin Sheep'!E221 -> 750 | F58: 1 | G58: 1
C59: Wether weaners | E59: ='Cleanskin Sheep'!E222 -> 0 | F59: 1 | G59: 1
C60: Lambs | E60: ='Cleanskin Sheep'!E223 -> 1500 | F60: 1 | G60: 2
C61: Rams | E61: ='Cleanskin Sheep'!E224 -> 25 | F61: 2 | G61: 1
C63: TOTAL | E63: =SUM(E57:E61) -> 3275 | F63: =SUMPRODUCT($E$57:$E$61,F57:F61) -> 3300 | G63: =SUMPRODUCT($E$57:$E$61,G57:G61) -> 4775 | H63: =SUMPRODUCT($E$57:$E$61,H57:H61) -> 0 | I63: =SUMPRODUCT($E$57:$E$61,I57:I61) -> 0
C66: FEEDING
C67: HAY | F67: Hay | G67: Kgs Fed | H67: No Weeks | I67: Total
E68: Number | F68: Cost ($/T) | G68: per Week | H68: of Feeding | I68: Cost ($)
C69: Hay | E69: ='Cleanskin Sheep'!E220 -> 1000 | F69: 230 | G69: 2 | H69: 10 | I69: =(H69*G69*E69)/1000*F69 -> 4600
I70: 0
I71: 0
I72: 0
I73: 0
I74: 0
C76: GRAIN | F76: Grain | G76: Kgs Fed | H76: No Weeks | I76: Total
E77: Number | F77: Cost ($/T) | G77: per Week | H77: of Feeding | I77: Cost ($)
C78: Oats/barley | E78: ='Cleanskin Sheep'!E220 -> 1000 | F78: 220 | G78: 2.4 | H78: 10 | I78: =(H78*G78*E78)/1000*F78 -> 5280
C79: Lupins | E79: ='Cleanskin Sheep'!E221 -> 750 | F79: 320 | G79: 1 | H79: 10 | I79: =(H79*G79*E79)/1000*F79 -> 2400
I80: =(H80*G80*E80)/1000*F80 -> 0
I81: =(H81*G81*E81)/1000*F81 -> 0
I82: =(H82*G82*E82)/1000*F82 -> 0
H84: Total Feed Cost | I84: =SUM(I69:I74,I78:I82) -> 12280

Sheet Cleanskin Sheep (hidden)
C1: CLEANSKIN SHEEP
C2: =UPPER(Var_Animal)&" GROSS MARGIN - "&TEXT(m_year,"0000") -> CLEANSKIN SHEEP GROSS MARGIN - 2021
C4: ASSUMPTIONS
O6: Total DSE's | Q6: =E197 -> 2950
C7: No. of breeding ewes | E7: ='Cleanskin Sheep Input'!$E$7 -> 1000 | O7: Stocking Rate (DSE/Ha) | Q7: =E196 -> 6
C32: INCOME | Q32: $
C35: Sales | E35: =ROUND(E214,0) -> 1453 | G35: animals | I35: av price | K35: =G214 -> 192.0747475 | M35: /head | Q35: =I214 -> 279140
C37: Gross Income | Q37: =SUM(Q34:Q35) -> 279140
AA45: STOCK VALUE AND D.S.E REQUIREMENT
C46: VARIABLE COSTS
C75: Marking | K75: Rate
C76: Lamb marking | E76: =E199*E203 -> 1500 | G76: lambs | I76: Reset Rate> | J76: =GM_INFO!C42 | K76: =GM_INFO!C89 -> 1.15 | M76: /head | Q76: =K76*ROUND(E76,0) -> 1725
C77: Ear tags | E77: =E76 -> 1500 | G77: lambs | I77: Reset Rate> | J77: =GM_INFO!C43 | K77: =GM_INFO!C90 -> 0.37 | M77: /head | Q77: =K77*ROUND(E77,0) -> 555
AS79: RAMS | AT79: OPENING | AU79: NATURAL | AV79: PURCHASES | AW79: DEATHS | AX79: % sold | AY79: SALES | AZ79: CLOSING
AS80: AGE | AT80: NUMBERS | AU80: INCREASE | AX80: culled | AZ80: NUMBERS
AS82: 0.5-1.5yr | AV82: =AT83/(1-AX82) -> 0 | AW82: =AT82*$R$81 -> 0 | AZ82: =AT82+AU82+AV82-AW82-AY82 -> 0
AS83: 1.5-2.5yr | AT83: =IF(AY53=3,(AU51*AY51)/(1+(1-AY55)*(1-AX83)*(1+(1-AY55)*(1-AX84)*(1+(1-AY55)*(1-AX85)))),IF(AY53=4,(AU51*AY51)/(1+(1-AY55)*(1-AX83)*(1+(1-AY55)*(1-AX84)*(1+(1-AY55)*(1-AX85)*(1+(1-AY55)*(1-AX86))))),0)) -> 0 | AW83: =AT83*$R$81 -> 0 | AZ83: =AT83+AU83+AV83-AW83-AY83 -> 0
AS84: 2.5-3.5yr | AT84: =AZ83 -> 0 | AW84: =AT84*$R$81 -> 0 | AZ84: =AT84+AU84+AV84-AW84-AY84 -> 0
AS85: 3.5-4.5yr | AT85: =AZ84 -> 0 | AW85: =AT85*$R$81 -> 0 | AX85: =IF(AY53=3,100%,0) -> 0 | AY85: =(AT85-AW85)*AX85 -> 0 | AZ85: =AT85+AU85+AV85-AW85-AY85 -> 0
AS86: 4.5-5.5yr | AT86: =AZ85 -> 0 | AW86: =AT86*$R$81 -> 0 | AX86: =IF(AY53=4,100%,0) -> 0 | AY86: =AT86-AW86 -> 0 | AZ86: =AT86+AU86+AV86-AW86-AY86 -> 0
AT87: =AT82+AT83+AT84+AT85+AT86 -> 0 | AV87: =AV82+AV83+AV84+AV85+AV86 -> 0 | AW87: =AW82+AW83+AW84+AW85+AW86 -> 0 | AY87: =AY82+AY83+AY84+AY85+AY86 -> 0 | AZ87: =AZ82+AZ83+AZ84+AZ85+AZ86 -> 0
AS88: d.s.e's | AT88: =AT87*AE49 -> 0
C89: Animal Health
C90: Drench | E90: =G228 -> 3300 | G90: sheep | I90: Reset Rate> | J90: =GM_INFO!C21 | K90: =GM_INFO!C68 -> 0.417 | M90: /head | Q90: =K90*ROUND(E90,0) -> 1376.1
C91: Vaccinate | E91: =I228 -> 4775 | G91: sheep | I91: Reset Rate> | J91: =GM_INFO!C23 | K91: =GM_INFO!C70 -> 0.2176 | M91: /head | Q91: =K91*ROUND(E91,0) -> 1039.04
C92: Blowfly control | E92: =K228 -> 0 | G92: sheep | I92: Reset Rate> | J92: =GM_INFO!C27 | K92: =GM_INFO!C74 -> 1.24656 | M92: /head | Q92: =K92*ROUND(E92,0) -> 0
C93: Lice control | E93: =M228 -> 0 | G93: sheep | I93: Reset Rate> | J93: =GM_INFO!C19 | K93: =GM_INFO!C66 -> 1.2912 | M93: /head | Q93: =K93*ROUND(E93,0) -> 0
C104: Stock purchases
C105: Purchases | E105: =ROUND(AD244,0) -> 7 | G105: rams | I105: Reset Rate> | J105: ='Cleanskin sheep input'!E30 | K105: ='Cleanskin Sheep Input'!E30 -> 1850 | M105: /head | Q105: =K105*E105 -> 12950
C117: Sale Costs
C118: Freight
C119: ewes | E119: =E210 -> 203.9596235 | G119: sheep | I119: Reset Rate> | J119: =GM_INFO!B111 | K119: =GM_INFO!B158 -> 4 | M119: /head | Q119: =K119*ROUND(E119,0) -> 816
C120: rams | E120: =E211 -> 5.788387001 | G120: sheep | I120: Reset Rate> | J120: =GM_INFO!B115 | K120: =GM_INFO!B162 -> 4 | M120: /head | Q120: =K120*ROUND(E120,0) -> 24
C121: hoggets | E121: =E212 -> 493.5403765 | G121: sheep | I121: Reset Rate> | J121: =GM_INFO!B116 | K121: =GM_INFO!B163 -> 4 | M121: /head | Q121: =K121*ROUND(E121,0) -> 1976
C122: lambs | E122: =E213 -> 750 | G122: sheep | I122: Reset Rate> | J122: =GM_INFO!B113 | K122: =GM_INFO!B160 -> 4 | M122: /head | Q122: =K122*ROUND(E122,0) -> 3000
C123: Stock selling charges
C124: Commission/insurance | I124: Reset Rate> | J124: =GM_INFO!C48 | K124: =GM_INFO!C95 -> 0.06 | M124: gross $ | Q124: =K124*Q35 -> 16748.4
C125: Yard fees | E125: =E214 -> 1453.288387 | G125: sheep | I125: Reset Rate> | J125: =GM_INFO!C49 | K125: =GM_INFO!C96 -> 0.85 | M125: /head | Q125: =K125*ROUND(E125,0) -> 1235.05
C126: Levy trans-sheep | E126: =SUM(E210:E212) -> 703.288387 | G126: sheep | I126: Reset Rate> | J126: =GM_INFO!C50 | K126: =GM_INFO!C97 -> 0.2 | M126: /head | Q126: =K126*ROUND(E126,0) -> 140.6
C127: Levy trans-lambs | E127: =E213 -> 750 | G127: sheep | I127: Reset Rate> | J127: =GM_INFO!C51 | K127: =GM_INFO!C98 -> 1.5 | M127: /head | Q127: =K127*ROUND(E127,0) -> 1125
C128: SA sheep industry levy | E128: =E214 -> 1453.288387 | G128: sheep | I128: Reset Rate> | J128: =GM_INFO!C52 | K128: =GM_INFO!C99 -> 0.67 | M128: /head | Q128: =K128*ROUND(E128,0) -> 973.51
C143: Feed and Other Costs
C144: Hand Feeding | Q144: ='Cleanskin Sheep Input'!I84 -> 12280
C146: Insurance | E146: =E229 -> 629044.7981 | G146: value | I146: Reset Rate> | J146: =GM_INFO!B107 | K146: =GM_INFO!B154 -> 2 | M146: /$'000 | Q146: =K146/1000*E146 -> 1258.089596
C147: Water | E147: =$E$197 -> 2950 | G147: DSE's | I147: Reset Rate> | J147: =GM_INFO!h79 | K147: =GM_INFO!H126 -> 2.5 | M147: /DSE's | Q147: =K147*E147 -> 7375
C148: Veh Fuel, R&M | E148: =$E$197 -> 2950 | G148: DSE's | I148: Reset Rate> | J148: =GM_INFO!h80 | K148: =GM_INFO!H127 -> 0.8 | M148: /DSE's | Q148: =K148*E148 -> 2360
C149: Other | E149: =$E$197 -> 2950 | G149: DSE's | I149: Reset Rate> | J149: =GM_INFO!h81 | K149: =GM_INFO!H128 -> 0.5 | M149: /DSE's | Q149: =K149*E149 -> 1475
C170: TOTAL VARIABLE COSTS | Q170: =SUM(Q48:Q166) -> 68431.7896
C172: GROSS MARGIN TOTAL | Q172: =Q37-Q170 -> 210708.2104
C174: GROSS MARGIN/DSE | Q174: =Q172/Q6 -> 71.426512
C194: PRODUCTION DATA
C196: Stocking rate (DSE/Ha) | E196: 6 | K196: Culling Rate (% from each group) | AA196: SHEEP GROSS MARGIN
C197: Total DSE's | E197: =O228 -> 2950 | K197: Age Group | M197: Ewes | O197: Wethers | AA197: PRIME LAMB -
C198: SHEEP GRAZING AREA | E198: =E197/E196 -> 491.6666667 | K198: 0.5 | M198: =AF213 -> 0 | O198: =AF227 -> 1
C199: Number of ewes mated | E199: ='Cleanskin Sheep Input'!E7 -> 1000 | K199: 1.5 | M199: 0.6784060158 | O199: 0
C200: Ram percentage | E200: ='Cleanskin Sheep Input'!E11 -> 0.025 | K200: 2.5 | M200: 0.05 | O200: 0
C201: Years rams kept | E201: ='Cleanskin Sheep Input'!E12 -> 4 | K201: 3.5 | M201: 0.05 | O201: 0
C202: Flock death rate | E202: ='Cleanskin Sheep Input'!E13 -> 0.03 | K202: 4.5 | M202: 0.05 | O202: 0 | AA202: Ewes mated | AC202: ='Cleanskin Sheep Input'!E7 -> 1000 | AF202: Ram % | AG202: =E200 -> 0.025
B203: =VLOOKUP(r[0]c3&"No Ops",CHOOSE({1,2},tbl_ops[Name]&tbl_ops[Category],INDIRECT("tbl_ops["&var_crop&"]")),2,0) | C203: Average weaning rate | E203: =AC205 -> 1.5 | K203: 5.5 | M203: 0.05 | O203: 0 | AA203: Age at 1st mating | AC203: ='Cleanskin Sheep Input'!E8 -> 1 | AF203: Price of rams | AG203: ='Cleanskin Sheep Input'!E30 -> 1850
B204: =VLOOKUP(r[0]c3&"No Ops",CHOOSE({1,2},tbl_ops[Name]&tbl_ops[Category],INDIRECT("tbl_ops["&var_crop&"]")),2,0) | C204: Age wethers sold | E204: =AG205 -> 0.5 | K204: 6.5 | M204: 1 | O204: 0 | AA204: Age ewes sold | AC204: ='Cleanskin Sheep Input'!E9 -> 6.5 | AF204: Years rams kept | AG204: =E201 -> 4
B205: =VLOOKUP(r[0]c3&"No Ops",CHOOSE({1,2},tbl_ops[Name]&tbl_ops[Category],INDIRECT("tbl_ops["&var_crop&"]")),2,0) | AA205: Av Weaning % | AC205: ='Cleanskin Sheep Input'!E10 -> 1.5 | AF205: Age wethers sold | AG205: 0.5
B206: =VLOOKUP(r[0]c3&"No Ops",CHOOSE({1,2},tbl_ops[Name]&tbl_ops[Category],INDIRECT("tbl_ops["&var_crop&"]")),2,0) | AA206: dse/ewe | AC206: 1.6 | AF206: Flock death rate | AG206: =E202 -> 0.03
B208: =VLOOKUP(r[0]c3&var_rain,CHOOSE({1,2},tbl_ops[Name]&tbl_ops[Rainfall],INDIRECT("tbl_ops["&var_crop&"]")),2,0)
B209: =VLOOKUP(r[0]c3&var_rain,CHOOSE({1,2},tbl_ops[Name]&tbl_ops[Rainfall],INDIRECT("tbl_ops["&var_crop&"]")),2,0) | C209: SALES | E209: Number | G209: Price/hd | I209: Total
B210: =VLOOKUP(r[0]c3&var_rain,CHOOSE({1,2},tbl_ops[Name]&tbl_ops[Rainfall],INDIRECT("tbl_ops["&var_crop&"]")),2,0) | C210: c.f.a ewes | E210: =AG220 -> 203.9596235 | G210: ='Cleanskin Sheep Input'!E18 -> 170 | I210: =ROUND(E210,0)*G210 -> 34680
B211: =VLOOKUP(r[0]c3&var_rain,CHOOSE({1,2},tbl_ops[Name]&tbl_ops[Rainfall],INDIRECT("tbl_ops["&var_crop&"]")),2,0) | C211: c.f.a rams | E211: =AG244 -> 5.788387001 | G211: ='Cleanskin Sheep Input'!E19 -> 130 | I211: =ROUND(E211,0)*G211 -> 780 | AA211: EWES | AB211: OPENING | AC211: NATURAL | AD211: PURCHASES | AE211: DEATHS | AF211: % sold | AG211: SALES | AH211: CLOSING
C212: Ewe hoggets | E212: =AG222 -> 493.5403765 | G212: ='Cleanskin Sheep Input'!E20 -> 220 | I212: =ROUND(E212,0)*G212 -> 108680 | AA212: AGE | AB212: NUMBERS | AC212: INCREASE | AF212: culled | AH212: NUMBERS
C213: Wether lambs | E213: =AG230 -> 750 | G213: ='Cleanskin Sheep Input'!E21 -> 180 | I213: =ROUND(E213,0)*G213 -> 135000 | AA213: 0-0.5yr | AC213: =AC202*AC205/2 -> 750 | AE213: =AB213*$AG$206 -> 0 | AF213: 0 | AG213: =AC213*AF213 -> 0 | AH213: =AB213+AC213+AD213-AE213-AG213 -> 750
C214: TOTAL | E214: =SUM(E210:E213) -> 1453.288387 | G214: =I214/E214 -> 192.0747475 | I214: =SUM(I210:I213) -> 279140 | AA214: 0.5-1.5yr | AB214: =AH213 -> 750 | AE214: 22.5 | AF214: =(AB214*(1-AG206)-AB215)/(AB214-AE214) -> 0.6784060158 | AG214: =AB214-AE214-AB215 -> 493.5403765 | AH214: 233.9596235
AA215: 1.5-2.5yr | AB215: =AC202/(1+(1-AG206)*(1-AF215)*(1+(1-AG206)*(1-AF216)*(1+(1-AG206)*(1-AF217)*(1+(1-AG206)*(1-AF218))))) -> 233.9596235 | AE215: 7.018788705 | AF215: 0.05 | AG215: =(AB215-AE215)*AF215 -> 11.34704174 | AH215: 215.5937931
AA216: 2.5-3.5yr | AB216: =AH215 -> 215.5937931 | AE216: 6.467813792 | AF216: 0.05 | AG216: =(AB216-AE216)*AF216 -> 10.45629896 | AH216: 198.6696803
AA217: 3.5-4.5yr | AB217: =AH216 -> 198.6696803 | AE217: 5.960090409 | AF217: 0.05 | AG217: =(AB217-AE217)*AF217 -> 9.635479495 | AH217: 183.0741104
E218: Number of Times | AA218: 4.5-5.5yr | AB218: =AH217 -> 183.0741104 | AE218: 5.492223312 | AF218: =IF(AC204=5.5,1,5%) -> 0.05 | AG218: =(AB218-AE218)*AF218 -> 8.879094354 | AH218: =AB218+AC218+AD218-AE218-AG218 -> 168.7027927
C219: STOCK HEALTH REQUIREMENTS | E219: Number | G219: Drench | I219: Vacc. | K219: Blowfly | M219: Lice | O219: DSE | AA219: 5.5-6.5yr | AB219: =AH218 -> 168.7027927 | AE219: 5.061083782 | AF219: =IF(AC204=6.5,100%,0) -> 1 | AG219: =(AB219-AE219)*AF219 -> 163.641709 | AH219: 0
C220: Ewes | E220: =ROUND('Cleanskin Sheep Input'!E7,0) -> 1000 | G220: ='Cleanskin Sheep Input'!F57 -> 1 | I220: ='Cleanskin Sheep Input'!G57 -> 1 | K220: ='Cleanskin Sheep Input'!H57 -> 0 | M220: ='Cleanskin Sheep Input'!I57 -> 0 | O220: 2 | AA220: Ewes | AB220: =SUM(AB215:AB219) -> 1000 | AC220: =SUM(AC213:AC217) -> 750 | AD220: =SUM(AD213:AD219) -> 0 | AE220: =SUM(AE213:AE218) -> 47.43891622 | AG220: =SUM(AG215:AG219) -> 203.9596235 | AH220: =SUM(AH214:AH218) -> 1000
C221: Ewe hoggets | E221: =ROUND(AB222,0) -> 750 | G221: ='Cleanskin Sheep Input'!F58 -> 1 | I221: ='Cleanskin Sheep Input'!G58 -> 1 | K221: ='Cleanskin Sheep Input'!H58 -> 0 | M221: ='Cleanskin Sheep Input'!I58 -> 0 | O221: 1.2 | AA221: d.s.e's | AB221: =AB214+AC206*(AB215+AB216+AB217+AB218) -> 2080.075532
C222: Wether weaners | E222: =ROUND(AB228,0) -> 0 | G222: ='Cleanskin Sheep Input'!F59 -> 1 | I222: ='Cleanskin Sheep Input'!G59 -> 1 | K222: ='Cleanskin Sheep Input'!H59 -> 0 | M222: ='Cleanskin Sheep Input'!I59 -> 0 | O222: 1 | AA222: Ewe Hoggets | AB222: =AB214 -> 750 | AG222: =AG214 -> 493.5403765 | AH222: =AH213 -> 750
C223: Lambs | E223: =ROUND(AC213+AC227,0) -> 1500 | G223: ='Cleanskin Sheep Input'!F60 -> 1 | I223: ='Cleanskin Sheep Input'!G60 -> 2 | K223: ='Cleanskin Sheep Input'!H60 -> 0 | M223: ='Cleanskin Sheep Input'!I60 -> 0 | O223: 0 | AA223: Ewe lambs | AG223: =AG213 -> 0
C224: Rams | E224: =ROUND(AB244,0) -> 25 | G224: ='Cleanskin Sheep Input'!F61 -> 2 | I224: ='Cleanskin Sheep Input'!G61 -> 1 | K224: ='Cleanskin Sheep Input'!H61 -> 0 | M224: ='Cleanskin Sheep Input'!I61 -> 0 | O224: 2 | AA224: WETHERS | AB224: OPENING | AC224: NATURAL | AD224: PURCHASES | AE224: DEATHS | AF224: % sold | AG224: SALES | AH224: CLOSING
AA225: AGE | AB225: NUMBERS | AC225: INCREASE | AF225: culled | AH225: NUMBERS
AA227: 0-0.5yr | AC227: =AC202*AC205/2 -> 750 | AE227: =AB227*$AG$206 -> 0 | AF227: =IF(AG205=0.5,100%,0) -> 1 | AG227: =AC227*AF227 -> 750 | AH227: =AB227+AC227+AD227-AE227-AG227 -> 0
C228: TOTAL | E228: =SUM(E220:E227) -> 3275 | G228: =SUMPRODUCT($E$220:$E$227,G220:G227) -> 3300 | I228: =SUMPRODUCT($E$220:$E$227,I220:I227) -> 4775 | K228: =SUMPRODUCT($E$220:$E$227,K220:K227) -> 0 | M228: =SUMPRODUCT($E$220:$E$227,M220:M227) -> 0 | O228: =SUMPRODUCT($E$220:$E$227,O220:O227) -> 2950 | AA228: 0.5-1.5yr | AB228: =AH227 -> 0 | AE228: =AB228*$AG$206 -> 0 | AF228: =IF(AG205=1.5,100%,0) -> 0 | AG228: =(AB228-AE228)*AF228 -> 0 | AH228: =AB228+AC228+AD228-AE228-AG228 -> 0
C229: TOTAL VALUE | E229: =E228*G214 -> 629044.7981 | AA229: 1.5-2.5 | AB229: =AH228 -> 0 | AE229: =AB229*$AG$206 -> 0 | AF229: =IF(AG205=2.5,100%,0) -> 0 | AG229: =(AB229-AE229)*AF229 -> 0
AA230: Wth lambs | AB230: =AB227 -> 0 | AC230: =AC227 -> 750 | AD230: =AD227 -> 0 | AE230: 0 | AG230: =AG227 -> 750 | AH230: 0
AA231: Wth hgts | AB231: 0 | AC231: 0 | AD231: 0 | AE231: 0 | AG231: 0 | AH231: 0
AA232: Wethers | AB232: 0 | AC232: 0 | AD232: 0 | AE232: 0 | AG232: 0 | AH232: 0
AA233: d.s.e's | AB233: =AB231+AB232 -> 0
AA236: RAMS | AB236: OPENING | AC236: NATURAL | AD236: PURCHASES | AE236: DEATHS | AF236: % sold | AG236: SALES | AH236: CLOSING
AA237: AGE | AB237: NUMBERS | AC237: INCREASE | AF237: culled | AH237: NUMBERS
AA239: 0.5-1.5yr | AD239: =AB240/(1-AF239) -> 6.538387001 | AH239: =AB239+AC239+AD239-AE239-AG239 -> 6.538387001
AA240: 1.5-2.5yr | AB240: =IF(AG204=3,(AC202*AG202)/(1+(1-AG206)*(1-AF240)*(1+(1-AG206)*(1-AF241)*(1+(1-AG206)*(1-AF242)))),IF(AG204=4,(AC202*AG202)/(1+(1-AG206)*(1-AF240)*(1+(1-AG206)*(1-AF241)*(1+(1-AG206)*(1-AF242)*(1+(1-AG206)*(1-AF243))))),0)) -> 6.538387001 | AE240: =AB240*$AG$206 -> 0.19615161 | AF240: 0 | AG240: =(SUM(AB240:AD240)-AE240)*AF240 -> 0 | AH240: =AB240+AC240+AD240-AE240-AG240 -> 6.342235391
AA241: 2.5-3.5yr | AB241: =AH240 -> 6.342235391 | AE241: =AB241*$AG$206 -> 0.1902670617 | AF241: 0 | AG241: =(SUM(AB241:AD241)-AE241)*AF241 -> 0 | AH241: =AB241+AC241+AD241-AE241-AG241 -> 6.151968329
AA242: 3.5-4.5yr | AB242: =AH241 -> 6.151968329 | AE242: =AB242*$AG$206 -> 0.1845590499 | AF242: =IF(AG204=3,100%,0) -> 0 | AG242: =(SUM(AB242:AD242)-AE242)*AF242 -> 0 | AH242: =AB242+AC242+AD242-AE242-AG242 -> 5.967409279
AA243: 4.5-5.5yr | AB243: =AH242 -> 5.967409279 | AE243: =AB243*$AG$206 -> 0.1790222784 | AF243: =IF(AG204=4,100%,0) -> 1 | AG243: =AB243-AE243 -> 5.788387001 | AH243: =AB243+AC243+AD243-AE243-AG243 -> 0
G244: Hay Cost ($/T) | I244: Kg Fed per Week | K244: No of Weeks Feeding | M244: Total Cost ($) | AB244: =AB239+AB240+AB241+AB242+AB243 -> 25 | AD244: =AD239+AD240+AD241+AD242+AD243 -> 6.538387001 | AE244: =AE239+AE240+AE241+AE242+AE243 -> 0.75 | AG244: =AG239+AG240+AG241+AG242+AG243 -> 5.788387001 | AH244: =AH239+AH240+AH241+AH242+AH243 -> 25
C245: FEEDING | E245: Number | AA245: d.s.e's | AB245: =AB244*2 -> 50
C246: Ewes | E246: ='Cleanskin Sheep Input'!E69 -> 1000 | G246: ='Cleanskin Sheep Input'!F69 -> 230 | I246: ='Cleanskin Sheep Input'!G69 -> 2 | K246: ='Cleanskin Sheep Input'!H69 -> 10 | M246: =(E246*G246*I246*K246)/1000 -> 4600
C247: Weaner | E247: ='Cleanskin Sheep Input'!E70 -> 0 | G247: ='Cleanskin Sheep Input'!F70 -> 0 | I247: ='Cleanskin Sheep Input'!G70 -> 0 | K247: ='Cleanskin Sheep Input'!H70 -> 0 | M247: =(E247*G247*I247*K247)/1000 -> 0
C248: Ewe hoggets | E248: ='Cleanskin Sheep Input'!E71 -> 0 | G248: ='Cleanskin Sheep Input'!F71 -> 0 | I248: ='Cleanskin Sheep Input'!G71 -> 0 | K248: ='Cleanskin Sheep Input'!H71 -> 0 | M248: =(E248*G248*I248*K248)/1000 -> 0
C249: Lambs | E249: ='Cleanskin Sheep Input'!E72 -> 0 | G249: ='Cleanskin Sheep Input'!F72 -> 0 | I249: ='Cleanskin Sheep Input'!G72 -> 0 | K249: ='Cleanskin Sheep Input'!H72 -> 0 | M249: =(E249*G249*I249*K249)/1000 -> 0
C250: Rams | E250: ='Cleanskin Sheep Input'!E73 -> 0 | G250: ='Cleanskin Sheep Input'!F73 -> 0 | I250: ='Cleanskin Sheep Input'!G73 -> 0 | K250: ='Cleanskin Sheep Input'!H73 -> 0 | M250: =(E250*G250*I250*K250)/1000 -> 0
G251: Grain Cost ($/T) | I251: Kg Fed per Week | K251: No of Weeks Feeding | M251: Total Cost ($)
E252: Number
C253: Ewes | E253: ='Cleanskin Sheep Input'!E78 -> 1000 | G253: ='Cleanskin Sheep Input'!F78 -> 220 | I253: ='Cleanskin Sheep Input'!G78 -> 2.4 | K253: ='Cleanskin Sheep Input'!H78 -> 10 | M253: =(E253*G253*I253*K253)/1000 -> 5280
C254: Weaner | E254: ='Cleanskin Sheep Input'!E79 -> 750 | G254: ='Cleanskin Sheep Input'!F79 -> 320 | I254: ='Cleanskin Sheep Input'!G79 -> 1 | K254: ='Cleanskin Sheep Input'!H79 -> 10 | M254: =(E254*G254*I254*K254)/1000 -> 2400
C255: Ewe hoggets | E255: ='Cleanskin Sheep Input'!E80 -> 0 | G255: ='Cleanskin Sheep Input'!F80 -> 0 | I255: ='Cleanskin Sheep Input'!G80 -> 0 | K255: ='Cleanskin Sheep Input'!H80 -> 0 | M255: =(E255*G255*I255*K255)/1000 -> 0
C256: Lambs | E256: ='Cleanskin Sheep Input'!E81 -> 0 | G256: ='Cleanskin Sheep Input'!F81 -> 0 | I256: ='Cleanskin Sheep Input'!G81 -> 0 | K256: ='Cleanskin Sheep Input'!H81 -> 0 | M256: =(E256*G256*I256*K256)/1000 -> 0
C257: Rams | E257: ='Cleanskin Sheep Input'!E82 -> 0 | G257: ='Cleanskin Sheep Input'!F82 -> 0 | I257: ='Cleanskin Sheep Input'!G82 -> 0 | K257: ='Cleanskin Sheep Input'!H82 -> 0 | M257: =(E257*G257*I257*K257)/1000 -> 0
C258: TOTAL FEED COST | M258: =SUM(M246:M250,M253:M257) -> 12280
C263: GM SENSITIVITY | AB263: Water,Fuel,Other | AE263: =SUM(Q146:Q149) -> 12468.0896 | AF263: Lamb Costs | AG263: No: | AH263: per head
C264: Gross Margin/DSE | E264: Average Weaning % | AB264: Animal health | AE264: =((E220*G220+E224*G224+AB215*G221)*K90+(E220*I220+E224*I224+AB215*I221)*K91+(E220*K220+E224*K224+AB215*K221)*K93) -> 809.3607771
G265: 1.2 | I265: 1.35 | K265: 1.5 | M265: 1.65 | O265: 1.8 | Q265: 1.95 | AB265: Stock Purchase | AE265: =Q105 -> 12950 | AF265: Marking | AG265: =E199*G265 -> 1200 | AH265: =SUM(K76:K77) -> 1.52
E266: 172.0747475 | G266: =(($E$199*(G$265*100)*$E266/200+($E$199*(G$265*100)/200-$AB$215-$AE$214)*$G$212)*(1-$K$124)+SUM($I$210:$I$211)-$AE$273-($E$199*(G$265*100)*$AH$270/100)-($E$199*(G$265*100)/200-$AB$215-$AE$214)*$AC$285)/$E$197 -> 47.56609791 | I266: 56.21553679 | K266: 64.86497567 | M266: 73.51441455 | O266: 82.16385343 | Q266: 90.81329231 | AB266: Freight | AC266: sheep | AE266: =SUM(Q119:Q121) -> 2816 | AF266: Animal health | AH266: =G223*K90+I223*K91+K223*K93 -> 0.8522
E267: 177.0747475 | G267: 48.52203011 | I267: 57.29096052 | K267: 66.05989093 | M267: 74.82882133 | O267: 83.59775174 | Q267: 92.36668215 | AC267: Wool | AF267: Freight | AH267: =K122 -> 4
C268: Average Sheep Sale Price($/hd) | E268: 182.0747475 | G268: 49.47796232 | I268: 58.36638425 | K268: 67.25480618 | M268: 76.14322811 | O268: 85.03165004 | Q268: 93.92007198 | AB268: Commission on livestock sales | AE268: =SUM(I210:I212)*K124 -> 8648.4 | AF268: Yard Fees | AH268: =K125 -> 0.85
E269: 187.0747475 | G269: 50.43389452 | I269: 59.44180798 | K269: 68.44972143 | M269: 77.45763489 | O269: 86.46554835 | Q269: 95.47346181 | AB269: Yard fees | AE269: =SUM(E210:E211)*K125 -> 178.2858089 | AF269: Levies | AH269: =SUM(K127:K128) -> 2.17
E270: 192.0747475 | G270: 51.38982672 | I270: 60.51723171 | K270: 69.64463669 | M270: 78.77204167 | O270: 87.89944665 | Q270: 97.02685164 | AB270: Levies | AE270: =SUM(E210:E211)*K126 -> 41.9496021 | AF270: TOTAL | AH270: =SUM(AH265:AH269) -> 9.3922
E271: 197.0747475 | G271: 52.34575893 | I271: 61.59265543 | K271: 70.83955194 | M271: 80.08644845 | O271: 89.33334496 | Q271: 98.58024147 | AB271: SASheep Industry | AE271: =SUM(E210:E211)*K128 -> 140.531167
E272: 202.0747475 | G272: 53.30169113 | I272: 62.66807916 | K272: 72.0344672 | M272: 81.40085523 | O272: 90.76724326 | Q272: 100.1336313 | AB272: Feed & other costs | AE272: =M253+M246+AB215*G254*I254*K254/1000 -> 10628.6708
E273: 207.0747475 | G273: 54.25762333 | I273: 63.74350289 | K273: 73.22938245 | M273: 82.71526201 | O273: 92.20114157 | Q273: 101.6870211 | AE273: =SUM(AE263:AE272) -> 48681.28775
E274: 212.0747475 | G274: 55.21355554 | I274: 64.81892662 | K274: 74.42429771 | M274: 84.02966879 | O274: 93.63503987 | Q274: 103.240411
E275: 217.0747475 | G275: 56.16948774 | I275: 65.89435035 | K275: 75.61921296 | M275: 85.34407557 | O275: 95.06893818 | Q275: 104.7938008
E276: 222.0747475 | G276: 57.12541994 | I276: 66.96977408 | K276: 76.81412821 | M276: 86.65848235 | O276: 96.50283648 | Q276: 106.3471906
AC277: Sale Ewe Hog Cost
C279: FLOCK STRUCTURE | E279: This table shows the number of merino sheep in each age group at mating | AB279: Feed | AC279: =G254*K254/1000 -> 3.2
E280: Age Group | AC280: =G221*K90+I221*K91+K221*K92+M221*K93 -> 0.6346
C281: Class of Sheep | E281: 0.5 y.o. | G281: 1.5 y.o. | I281: 2.5 y.o. | K281: 3.5 y.o. | M281: 4.5 y.o. | O281: 5.5 y.o. | Q281: 6.5 y.o. | AC281: =K121 -> 4
C282: Ewes | E282: =$AB214 -> 750 | G282: =$AB215 -> 233.9596235 | I282: =$AB216 -> 215.5937931 | K282: =$AB217 -> 198.6696803 | M282: =$AB218 -> 183.0741104 | O282: =$AB219 -> 168.7027927 | Q282: 0 | AC282: =K125 -> 0.85
C283: Wethers | E283: =$AB228 -> 0 | G283: =$AB229 -> 0 | I283: 0 | K283: 0 | M283: 0 | O283: 0 | Q283: 0 | AC283: =K126 -> 0.2
C284: Rams | G284: =$AB240 -> 6.538387001 | I284: =$AB241 -> 6.342235391 | K284: =$AB242 -> 6.151968329 | M284: =$AB243 -> 5.967409279 | O284: 0 | Q284: 0 | AC284: =K128 -> 0.67
AB285: Total | AC285: =SUM(AC279:AC284) -> 9.5546

Sheet Beef Input (hidden)
C2: ="BEEF GROSS MARGIN - "&TEXT(m_year,"0000") -> BEEF GROSS MARGIN - 2021
C4: GENERAL INFORMATION
C5: Cells with yellow highlight can be changed. No allowance has been made for pasture expenses such as seed, fertiliser and chemicals. Refer to pasture gross margins in the “Cropping Gross Margin Plan” for annual and perennial pasture costs. Use the livestock gross margin per DSE as income for the pasture gross margin.
C7: Breeding Cow | E7: 14.5 | F7: DSE
C8: Calf Weaning | E8: 0.9
C9: Herd Deaths | E9: 0.03
C10: Cows c.f.a | E10: 10 | F10: years old
C11: Carry over calf | E11: 8 | F11: DSE
C12: Weaned @ | E12: 8 | F12: months
C13: Heifers mated @ | E13: 15 | F13: months
C14: Stocking rate | E14: 5 | F14: DSE/ha
C15: Cow breeding herd | E15: 100
C16: Bull Percentage | E16: 0.03
C17: Vealers bought for | E17: 1134
C18: sold for | E18: 2000
C19: after | E19: 3 | F19: years
C20: carryover to heavier weights | E20: 0.5 | F20: including heifer replacements
C21: months extra carry over | E21: 6
C22: Drench cows | E22: 2 | F22: x
C23: Drench calves | E23: 1 | F23: x
C24: Bulls bought for | E24: 6000
C25: Supplementary Feed
C26: Hay | E26: 68 | F26: tonne
C27: Grain | E27: 0 | F27: tonne

Sheet Beef (hidden)
C1: BEEF
C2: =UPPER(Var_Animal)&" GROSS MARGIN - "&TEXT(m_year,"0000") -> BEEF GROSS MARGIN - 2021
C4: ASSUMPTIONS | E4: (Breeding young cattle for local trade, grass fattened)
C7: Breeding Cow | E7: ='Beef Input'!$E$7 -> 14.5 | G7: DSE | O7: Cow breeding herd | Q7: ='Beef Input'!E15 -> 100
C8: Calf Weaning | E8: ='Beef Input'!E8 -> 0.9 | O8: Cows replaced per year | Q8: =(Q7/E10)+(Q7*E9) -> 13
C9: Herd Deaths | E9: ='Beef Input'!E9 -> 0.03 | O9: Bull Percentage | Q9: ='Beef Input'!E16 -> 0.03
C10: Cows c.f.a | E10: ='Beef Input'!E10 -> 10 | G10: years old | O10: Bulls bought for | Q10: ='Beef Input'!E17 -> 1134
C11: Uses | E11: =Q8 -> 13 | G11: heifers as replacements | O11: sold for | Q11: ='Beef Input'!E18 -> 2000
C12: Carry over calf | E12: ='Beef Input'!E11 -> 8 | G12: DSE | O12: after | Q12: ='Beef Input'!E19 -> 3 | R12: years
C13: Weaned @ | E13: ='Beef Input'!E12 -> 8 | G13: months | O13: carryover to heavier weights | Q13: ='Beef Input'!E20 -> 0.5
C14: Heifers mated @ | E14: ='Beef Input'!E13 -> 15 | G14: months | O14: months extra carry over | Q14: ='Beef Input'!E21 -> 6
C15: Stocking rate | E15: ='Beef Input'!E14 -> 5 | G15: DSE/ha | O15: Herd DSE | Q15: =(Q7*E7)+(Q7*Q9*20)+(E11*E12*((E14-E13)/12))+(E11*E7*(24-E14)/12)+(E36*E12) -> 1960.041667
C16: Area required | E16: =Q15/E15 -> 392.0083333 | G16: hectares | O16: Drench cows | Q16: ='Beef Input'!E22 -> 2
O17: Drench calves | Q17: ='Beef Input'!E23 -> 1
C32: INCOME | Q32: $
I34: kg liveweight | M34: /kg L/W
B35: Stock Sales | D35: vealers | E35: =(1-Q13)*(Q7*E8) -> 45 | G35: Reset Rate> | H35: =GM_INFO!B120 | I35: =GM_INFO!B167 -> 280 | K35: Reset Rate> | L35: =GM_INFO!D120 | M35: =GM_INFO!D167 -> 4.2 | Q35: =M35*I35*E35 -> 52920
D36: yearlings | E36: =ROUND(((Q7*E8)-E35-E11)*(1-E9),0) -> 31 | G36: Reset Rate> | H36: =GM_INFO!B121 | I36: =GM_INFO!B168 -> 400 | K36: Reset Rate> | L36: =GM_INFO!D121 | M36: =GM_INFO!D168 -> 3.9 | Q36: =M36*I36*E36 -> 48360
B37: Culls | D37: cows | E37: =Q8*(1-E9)^E10 -> 9.58651365 | G37: Reset Rate> | H37: =GM_INFO!B122 | I37: =GM_INFO!B169 -> 550 | K37: Reset Rate> | L37: =GM_INFO!D122 | M37: =GM_INFO!D169 -> 2.85 | Q37: =M37*I37*E37 -> 15026.86015
D38: bull | E38: =Q7*Q9/Q12 -> 1 | Q38: ='Beef Input'!E18*E38 -> 2000
C41: Gross Income | Q41: =SUM(Q35:Q38) -> 118306.8601
C46: VARIABLE COSTS
C75: Bull Purchases | K75: Rate
C76: No. of Bulls | E76: =E38 -> 1 | G76: bulls | I76: Reset Rate> | J76: ='Beef Input'!E24 | K76: ='Beef Input'!E24 -> 6000 | M76: total | Q76: =K76*ROUND(E76,0) -> 6000
C89: Veterinary & Medicines
C90: Drench - cows 2x calves 1x | E90: =(Q7*Q16)+Q17*(Q7*E8) -> 290 | G90: head | I90: Reset Rate> | J90: =GM_INFO!d62 | K90: =GM_INFO!D109 -> 4.181 | M90: /head | Q90: =K90*ROUND(E90,0) -> 1212.49
C91: Ear Tags | E91: =Q7*E8 -> 90 | G91: head | I91: Reset Rate> | J91: =GM_INFO!d73 | K91: =GM_INFO!D120 -> 4.75 | M91: /tag | Q91: =K91*ROUND(E91,0) -> 427.5
C92: Lice Treatments | E92: =Q7 -> 100 | G92: head | I92: Reset Rate> | J92: =GM_INFO!d62 | K92: =GM_INFO!D109 -> 4.181 | M92: /dose | Q92: =K92*ROUND(E92,0) -> 418.1
C93: Vaccine (5 in 1) | E93: =Q7*E8*2 -> 180 | G93: head | I93: Reset Rate> | J93: =GM_INFO!d64 | K93: =GM_INFO!D111 -> 0.80368 | M93: /dose | Q93: =K93*ROUND(E93,0) -> 144.6624
C117: Sale Costs and other
C119: Insurance | E119: =(Q7*800)+(3*2500)+(Q7*E8*350) -> 119000 | I119: Reset Rate> | J119: =GM_INFO!B107 | K119: =GM_INFO!B154 -> 2 | M119: /$1000 | Q119: =K119*ROUND(E119,0)/1000 -> 238
C120: Water | E120: =Q15 -> 1960.041667 | G120: dse's | I120: Reset Rate> | J120: =GM_INFO!i79 | K120: =GM_INFO!I126 -> 2.5 | Q120: =K120*ROUND(E120,0) -> 4900
C121: Veh Fuel, R&M | E121: =Q15 -> 1960.041667 | G121: dse's | I121: Reset Rate> | J121: =GM_INFO!i80 | K121: =GM_INFO!I127 -> 1 | Q121: =K121*ROUND(E121,0) -> 1960
C122: Other | E122: =Q15 -> 1960.041667 | G122: dse's | I122: Reset Rate> | J122: =GM_INFO!i81 | K122: =GM_INFO!I128 -> 0.5 | Q122: =K122*ROUND(E122,0) -> 980
C123: Transport: | E123: =SUM(E35:E38) -> 86.58651365 | G123: head | I123: Reset Rate> | J123: =GM_INFO!d76 | K123: =GM_INFO!D123 -> 30 | M123: /head | Q123: =K123*E123 -> 2597.595409
C125: Commission | I125: Reset Rate> | J125: =GM_INFO!C48 | K125: =GM_INFO!C95 -> 0.06 | Q125: =Q41*K125 -> 7098.411609
C126: Levies | I126: Reset Rate> | J126: =GM_INFO!d77 | K126: =GM_INFO!D124 -> 5 | M126: /head | Q126: =K126*SUM(E35:E38) -> 432.9325682
C143: Supplementary Feed
C145: Grain
C146: Hay | E146: ='Beef Input'!E26 -> 68 | G146: tonne | I146: Reset Rate> | J146: =GM_INFO!d82 | K146: =GM_INFO!D129 -> 230 | M146: /tonne | Q146: =K146*E146 -> 15640
C147: Grain | E147: ='Beef Input'!E27 -> 0 | G147: tonne | I147: Reset Rate> | J147: =GM_INFO!d83 | K147: =GM_INFO!D130 -> 220 | M147: /tonne | Q147: =K147*E147 -> 0
C148: Blocks/ Mineral Mix | E148: =Q7 -> 100 | G148: @ | I148: Reset Rate> | J148: =GM_INFO!d85 | K148: =GM_INFO!D132 -> 5 | M148: /head | Q148: =K148*E148 -> 500
C170: TOTAL VARIABLE COSTS | Q170: =SUM(Q48:Q166) -> 42549.69199
C172: GROSS MARGIN TOTAL | Q172: =Q41-Q170 -> 75757.16816
C174: GROSS MARGIN/DSE | Q174: =$Q$172/Q15 -> 38.65079475
C176: GROSS MARGIN/COW | Q176: =$Q$172/Q7 -> 757.5716816
C178: GROSS MARGIN/HA | Q178: =$Q$172/E16 -> 193.2539737
B203: =VLOOKUP(r[0]c3&"No Ops",CHOOSE({1,2},tbl_ops[Name]&tbl_ops[Category],INDIRECT("tbl_ops["&var_crop&"]")),2,0)
B204: =VLOOKUP(r[0]c3&"No Ops",CHOOSE({1,2},tbl_ops[Name]&tbl_ops[Category],INDIRECT("tbl_ops["&var_crop&"]")),2,0)
B205: =VLOOKUP(r[0]c3&"No Ops",CHOOSE({1,2},tbl_ops[Name]&tbl_ops[Category],INDIRECT("tbl_ops["&var_crop&"]")),2,0)
B206: =VLOOKUP(r[0]c3&"No Ops",CHOOSE({1,2},tbl_ops[Name]&tbl_ops[Category],INDIRECT("tbl_ops["&var_crop&"]")),2,0)
B208: =VLOOKUP(r[0]c3&var_rain,CHOOSE({1,2},tbl_ops[Name]&tbl_ops[Rainfall],INDIRECT("tbl_ops["&var_crop&"]")),2,0)
B209: =VLOOKUP(r[0]c3&var_rain,CHOOSE({1,2},tbl_ops[Name]&tbl_ops[Rainfall],INDIRECT("tbl_ops["&var_crop&"]")),2,0)
B210: =VLOOKUP(r[0]c3&var_rain,CHOOSE({1,2},tbl_ops[Name]&tbl_ops[Rainfall],INDIRECT("tbl_ops["&var_crop&"]")),2,0)
B211: =VLOOKUP(r[0]c3&var_rain,CHOOSE({1,2},tbl_ops[Name]&tbl_ops[Rainfall],INDIRECT("tbl_ops["&var_crop&"]")),2,0)
C259: GM SENSITIVITY
C260: Gross Margin per Cow | E260: ($/kg Liveweight(yearlings/steers))
G261: 3.7 | I261: 3.9 | K261: 4.1 | M261: 4.3 | O261: 4.5
E262: 0.6 | G262: =(((($Q$7*$E262*$Q$13-$E$11-1)*G$261*$I$36)+(($Q$7*$E262)*(1-$Q$13)*G$261*$I$35)+($E$37*$I$37*$M$37)+$Q$38)-$Q$170)/$Q$7 -> 292.3716816 | I262: =(((($Q$7*$E262*$Q$13-$E$11-1)*I$261*$I$36)+(($Q$7*$E262)*(1-$Q$13)*I$261*$I$35)+($E$37*$I$37*$M$37)+$Q$38)-$Q$170)/$Q$7 -> 321.9716816 | K262: =(((($Q$7*$E262*$Q$13-$E$11-1)*K$261*$I$36)+(($Q$7*$E262)*(1-$Q$13)*K$261*$I$35)+($E$37*$I$37*$M$37)+$Q$38)-$Q$170)/$Q$7 -> 351.5716816 | M262: =(((($Q$7*$E262*$Q$13-$E$11-1)*M$261*$I$36)+(($Q$7*$E262)*(1-$Q$13)*M$261*$I$35)+($E$37*$I$37*$M$37)+$Q$38)-$Q$170)/$Q$7 -> 381.1716816 | O262: =(((($Q$7*$E262*$Q$13-$E$11-1)*O$261*$I$36)+(($Q$7*$E262)*(1-$Q$13)*O$261*$I$35)+($E$37*$I$37*$M$37)+$Q$38)-$Q$170)/$Q$7 -> 410.7716816
E263: 0.65 | G263: =(((($Q$7*$E263*$Q$13-$E$11-1)*G$261*$I$36)+(($Q$7*$E263)*(1-$Q$13)*G$261*$I$35)+($E$37*$I$37*$M$37)+$Q$38)-$Q$170)/$Q$7 -> 355.2716816 | I263: =(((($Q$7*$E263*$Q$13-$E$11-1)*I$261*$I$36)+(($Q$7*$E263)*(1-$Q$13)*I$261*$I$35)+($E$37*$I$37*$M$37)+$Q$38)-$Q$170)/$Q$7 -> 388.2716816 | K263: =(((($Q$7*$E263*$Q$13-$E$11-1)*K$261*$I$36)+(($Q$7*$E263)*(1-$Q$13)*K$261*$I$35)+($E$37*$I$37*$M$37)+$Q$38)-$Q$170)/$Q$7 -> 421.2716816 | M263: =(((($Q$7*$E263*$Q$13-$E$11-1)*M$261*$I$36)+(($Q$7*$E263)*(1-$Q$13)*M$261*$I$35)+($E$37*$I$37*$M$37)+$Q$38)-$Q$170)/$Q$7 -> 454.2716816 | O263: =(((($Q$7*$E263*$Q$13-$E$11-1)*O$261*$I$36)+(($Q$7*$E263)*(1-$Q$13)*O$261*$I$35)+($E$37*$I$37*$M$37)+$Q$38)-$Q$170)/$Q$7 -> 487.2716816
C264: Weaning % | E264: 0.7 | G264: 418.1716816 | I264: 454.5716816 | K264: 490.9716816 | M264: 527.3716816 | O264: 563.7716816
E265: 0.75 | G265: 481.0716816 | I265: 520.8716816 | K265: 560.6716816 | M265: 600.4716816 | O265: 640.2716816
E266: 0.8 | G266: 543.9716816 | I266: 587.1716816 | K266: 630.3716816 | M266: 673.5716816 | O266: 716.7716816
E267: 0.85 | G267: 606.8716816 | I267: 653.4716816 | K267: 700.0716816 | M267: 746.6716816 | O267: 793.2716816
E268: 0.9 | G268: 669.7716816 | I268: 719.7716816 | K268: 769.7716816 | M268: 819.7716816 | O268: 869.7716816
E269: 0.95 | G269: 732.6716816 | I269: 786.0716816 | K269: 839.4716816 | M269: 892.8716816 | O269: 946.2716816
E270: 1 | G270: 795.5716816 | I270: 852.3716816 | K270: 909.1716816 | M270: 965.9716816 | O270: 1022.771682
C275: GM SENSITIVITY
C276: Gross Margin per DSE | E276: ($/kg Liveweight(yearlings/steers))
G277: 3.7 | I277: 3.9 | K277: 4.1 | M277: 4.3 | O277: 4.5
E278: 0.6 | G278: =(((($Q$7*$E278*$Q$13-$E$11-1)*G$277*$I$36)+(($Q$7*$E278)*(1-$Q$13)*G$277*$I$35)+($E$37*$I$37*$M$37)+$Q$38)-$Q$170)/$Q$15 -> 14.91660543 | I278: =(((($Q$7*$E278*$Q$13-$E$11-1)*I$277*$I$36)+(($Q$7*$E278)*(1-$Q$13)*I$277*$I$35)+($E$37*$I$37*$M$37)+$Q$38)-$Q$170)/$Q$15 -> 16.4267774 | K278: =(((($Q$7*$E278*$Q$13-$E$11-1)*K$277*$I$36)+(($Q$7*$E278)*(1-$Q$13)*K$277*$I$35)+($E$37*$I$37*$M$37)+$Q$38)-$Q$170)/$Q$15 -> 17.93694938 | M278: =(((($Q$7*$E278*$Q$13-$E$11-1)*M$277*$I$36)+(($Q$7*$E278)*(1-$Q$13)*M$277*$I$35)+($E$37*$I$37*$M$37)+$Q$38)-$Q$170)/$Q$15 -> 19.44712136 | O278: =(((($Q$7*$E278*$Q$13-$E$11-1)*O$277*$I$36)+(($Q$7*$E278)*(1-$Q$13)*O$277*$I$35)+($E$37*$I$37*$M$37)+$Q$38)-$Q$170)/$Q$15 -> 20.95729334
E279: 0.65 | G279: =(((($Q$7*$E279*$Q$13-$E$11-1)*G$277*$I$36)+(($Q$7*$E279)*(1-$Q$13)*G$277*$I$35)+($E$37*$I$37*$M$37)+$Q$38)-$Q$170)/$Q$15 -> 18.12572088 | I279: =(((($Q$7*$E279*$Q$13-$E$11-1)*I$277*$I$36)+(($Q$7*$E279)*(1-$Q$13)*I$277*$I$35)+($E$37*$I$37*$M$37)+$Q$38)-$Q$170)/$Q$15 -> 19.80935856 | K279: =(((($Q$7*$E279*$Q$13-$E$11-1)*K$277*$I$36)+(($Q$7*$E279)*(1-$Q$13)*K$277*$I$35)+($E$37*$I$37*$M$37)+$Q$38)-$Q$170)/$Q$15 -> 21.49299623 | M279: =(((($Q$7*$E279*$Q$13-$E$11-1)*M$277*$I$36)+(($Q$7*$E279)*(1-$Q$13)*M$277*$I$35)+($E$37*$I$37*$M$37)+$Q$38)-$Q$170)/$Q$15 -> 23.17663391 | O279: =(((($Q$7*$E279*$Q$13-$E$11-1)*O$277*$I$36)+(($Q$7*$E279)*(1-$Q$13)*O$277*$I$35)+($E$37*$I$37*$M$37)+$Q$38)-$Q$170)/$Q$15 -> 24.86027159
C280: Weaning % | E280: 0.7 | G280: 21.33483633 | I280: 23.19193971 | K280: 25.04904309 | M280: 26.90614646 | O280: 28.76324984
E281: 0.75 | G281: 24.54395178 | I281: 26.57452086 | K281: 28.60508994 | M281: 30.63565902 | O281: 32.6662281
E282: 0.8 | G282: 27.75306724 | I282: 29.95710201 | K282: 32.16113679 | M282: 34.36517157 | O282: 36.56920635
E283: 0.85 | G283: 30.96218269 | I283: 33.33968317 | K283: 35.71718364 | M283: 38.09468412 | O283: 40.4721846
E284: 0.9 | G284: 34.17129814 | I284: 36.72226432 | K284: 39.2732305 | M284: 41.82419668 | O284: 44.37516285
E285: 0.95 | G285: 37.38041359 | I285: 40.10484547 | K285: 42.82927735 | M285: 45.55370923 | O285: 48.27814111
E286: 1 | G286: 40.58952905 | I286: 43.48742662 | K286: 46.3853242 | M286: 49.28322178 | O286: 52.18111936

Sheet Beef Trading Input (hidden)
C2: ="BEEF TRADING GROSS MARGIN - "&TEXT(m_year,"0000") -> BEEF TRADING GROSS MARGIN - 2021
C4: GENERAL INFORMATION
C5: Cells with yellow highlight can be changed. No allowance has been made for pasture expenses such as seed, fertiliser and chemicals. Refer to pasture gross margins in the “Cropping Gross Margin Plan” for annual and perennial pasture costs. Use the livestock gross margin per DSE as income for the pasture gross margin.
C7: Vealers | E7: 8 | F7: DSE
C8: Yearlings | E8: 12 | F8: DSE
C9: Herd Deaths | E9: 0.02
C10: Purchases-Vealers | E10: 200
C14: Stocking rate | E14: 10 | F14: DSE/ha
C18: Stock Sales-vealers | E18: 0
C20: Feeds | E20: 35 | F20: kg/DSE hay equivalent supplement
C22: Drench vealers | E22: 1 | F22: x
C25: Supplementary Feed
C27: Grain | E27: 0 | F27: tonne

Sheet Beef Trading (hidden)
C1: BEEF TRADING
C2: =UPPER(Var_Animal)&" GROSS MARGIN - "&TEXT(m_year,"0000") -> BEEF TRADING GROSS MARGIN - 2021
C4: ASSUMPTIONS | E4: (Finishing young cattle for local trade, grass fattened)
C9: Herd Deaths | E9: ='Beef Trading Input'!E9 -> 0.02
C10: Vealers | E10: ='Beef Trading Input'!E7 -> 8 | G10: DSE
C11: Yearlings | E11: ='Beef Trading Input'!E8 -> 12 | G11: DSE
C13: Herd DSE | E13: =AVERAGE(E10:E11)*E36 -> 1960
C14: Drench vealers | E14: ='Beef Trading Input'!E22 -> 1
C15: Stocking rate | E15: ='Beef Trading Input'!E14 -> 10 | G15: DSE/ha
C16: Area required | E16: =E13/E15 -> 196 | G16: hectares
C17: Feeds | E17: ='Beef Trading Input'!E20 -> 35 | G17: kg/DSE hay equivalent supplement
C32: INCOME | Q32: $
I34: kg liveweight | M34: /kg L/W
B35: Stock Sales | D35: vealers | E35: ='Beef Trading Input'!E18 -> 0 | G35: Reset Rate> | H35: =GM_INFO!B125 | I35: =GM_INFO!B172 -> 280 | K35: Reset Rate> | L35: =GM_INFO!D120 | M35: =GM_INFO!D167 -> 4.2 | Q35: =M35*I35*E35 -> 0
D36: yearlings | E36: =ROUND(E76-(E76*E9),3)-E35 -> 196 | G36: Reset Rate> | H36: =GM_INFO!B126 | I36: =GM_INFO!B173 -> 420 | K36: Reset Rate> | L36: =GM_INFO!D121 | M36: =GM_INFO!D168 -> 3.9 | Q36: =M36*I36*E36 -> 321048
G37: Reset Rate> | H37: =GM_INFO!B122 | K37: Reset Rate> | L37: =GM_INFO!D122 | Q37: =M37*I37*E37 -> 0
Q38: ='Beef Trading Input'!E18*E38 -> 0
C41: Gross Income | Q41: =SUM(Q35:Q38) -> 321048
C46: VARIABLE COSTS
C75: Purchases | K75: Rate
C76: Vealers | E76: ='Beef Trading Input'!E10 -> 200 | I76: Reset Rate> | J76: ='Beef Input'!E17 | K76: ='Beef Input'!E17 -> 1134 | M76: head | Q76: =K76*ROUND(E76,0) -> 226800
C77: Transport | E77: ='Beef Trading Input'!E10 -> 200 | I77: Reset Rate> | J77: =GM_INFO!B117 | K77: =GM_INFO!B164 -> 30 | M77: head | Q77: =K77*ROUND(E77,0) -> 6000
C89: Veterinary & Medicines
C90: Drench - vealers 1x | E90: =E76 -> 200 | G90: head | I90: Reset Rate> | J90: =GM_INFO!d62 | K90: =GM_INFO!D109 -> 4.181 | M90: /head | Q90: =K90*ROUND(E90,0) -> 836.2
C91: Ear Tags NLIS | E91: 196 | G91: head | I91: Reset Rate> | J91: =GM_INFO!d73 | K91: =GM_INFO!D120 -> 4.75 | M91: /tag | Q91: =K91*ROUND(E91,0) -> 931
C92: Lice Treatments | E92: =E76 -> 200 | G92: head | I92: Reset Rate> | J92: =GM_INFO!d62 | K92: =GM_INFO!D109 -> 4.181 | M92: /dose | Q92: =K92*ROUND(E92,0) -> 836.2
C93: Vaccine (5 in 1) | E93: =E76 -> 200 | G93: head | I93: Reset Rate> | J93: =GM_INFO!d64 | K93: =GM_INFO!D111 -> 0.80368 | M93: /dose | Q93: =K93*ROUND(E93,0) -> 160.736
C117: Sale Costs and other
C119: Insurance | E119: =Q76 -> 226800 | I119: Reset Rate> | J119: =GM_INFO!B107 | K119: =GM_INFO!B154 -> 2 | M119: /$1000 | Q119: =K119*ROUND(E119,0)/1000 -> 453.6
C120: Water | E120: =E13 -> 1960 | G120: dse's | I120: Reset Rate> | J120: =GM_INFO!j79 | K120: =GM_INFO!J126 -> 1.5 | Q120: =K120*ROUND(E120,0) -> 2940
C121: Veh Fuel, R&M | E121: =E13 -> 1960 | G121: dse's | I121: Reset Rate> | J121: =GM_INFO!j80 | K121: =GM_INFO!J127 -> 1 | Q121: =K121*ROUND(E121,0) -> 1960
C122: Other | E122: =E13 -> 1960 | G122: dse's | I122: Reset Rate> | J122: =GM_INFO!j81 | K122: =GM_INFO!J128 -> 0.5 | Q122: =K122*ROUND(E122,0) -> 980
C123: Transport: | E123: =SUM(E35:E38) -> 196 | G123: head | I123: Reset Rate> | J123: =GM_INFO!d76 | K123: =GM_INFO!D123 -> 30 | M123: /head | Q123: =K123*E123 -> 5880
C125: Commission | I125: Reset Rate> | J125: =GM_INFO!C48 | K125: =GM_INFO!C95 -> 0.06 | Q125: =Q41*K125 -> 19262.88
C126: Levies | I126: Reset Rate> | J126: =GM_INFO!d77 | K126: =GM_INFO!D124 -> 5 | M126: /head | Q126: =K126*SUM(E35:E38) -> 980
C143: Supplementary Feed
C145: Grain
C146: Hay | E146: =(E17*E13)/1000 -> 68.6 | G146: tonne | I146: Reset Rate> | J146: =GM_INFO!d82 | K146: =GM_INFO!D129 -> 230 | M146: /tonne | Q146: =K146*E146 -> 15778
C147: Grain | E147: ='Beef Trading Input'!E27 -> 0 | G147: tonne | I147: Reset Rate> | J147: =GM_INFO!d83 | K147: =GM_INFO!D130 -> 220 | M147: /tonne | Q147: =K147*E147 -> 0
C148: Blocks/ Mineral Mix | E148: =Q7 -> 0 | G148: @ | I148: Reset Rate> | J148: =GM_INFO!d85 | K148: =GM_INFO!D132 -> 5 | M148: /head | Q148: =K148*E148 -> 0
C170: TOTAL VARIABLE COSTS | Q170: =SUM(Q48:Q166) -> 283798.616
C172: GROSS MARGIN TOTAL | Q172: =Q41-Q170 -> 37249.384
C174: GROSS MARGIN/DSE | Q174: =Q172/E13 -> 19.00478776
C178: GROSS MARGIN/HA | Q178: =Q172/E16 -> 190.0478776
B203: =VLOOKUP(r[0]c3&"No Ops",CHOOSE({1,2},tbl_ops[Name]&tbl_ops[Category],INDIRECT("tbl_ops["&var_crop&"]")),2,0)
B204: =VLOOKUP(r[0]c3&"No Ops",CHOOSE({1,2},tbl_ops[Name]&tbl_ops[Category],INDIRECT("tbl_ops["&var_crop&"]")),2,0)
B205: =VLOOKUP(r[0]c3&"No Ops",CHOOSE({1,2},tbl_ops[Name]&tbl_ops[Category],INDIRECT("tbl_ops["&var_crop&"]")),2,0)
B206: =VLOOKUP(r[0]c3&"No Ops",CHOOSE({1,2},tbl_ops[Name]&tbl_ops[Category],INDIRECT("tbl_ops["&var_crop&"]")),2,0)
B208: =VLOOKUP(r[0]c3&var_rain,CHOOSE({1,2},tbl_ops[Name]&tbl_ops[Rainfall],INDIRECT("tbl_ops["&var_crop&"]")),2,0)
B209: =VLOOKUP(r[0]c3&var_rain,CHOOSE({1,2},tbl_ops[Name]&tbl_ops[Rainfall],INDIRECT("tbl_ops["&var_crop&"]")),2,0)
B210: =VLOOKUP(r[0]c3&var_rain,CHOOSE({1,2},tbl_ops[Name]&tbl_ops[Rainfall],INDIRECT("tbl_ops["&var_crop&"]")),2,0)
B211: =VLOOKUP(r[0]c3&var_rain,CHOOSE({1,2},tbl_ops[Name]&tbl_ops[Rainfall],INDIRECT("tbl_ops["&var_crop&"]")),2,0)
C275: GM SENSITIVITY
C276: Gross Margin per DSE | E276: ($/kg Liveweight(yearlings/steers))
G277: 3.5 | I277: 3.7 | K277: 3.9 | M277: 4.1 | O277: 4.3
E278: 2.6 | G278: =(((((G$277*$I$36)*($E$36/$E$76)-($I$35*$E278))/10-(SUM($Q$77:$Q$166)/$E$13)))) -> 42.17907347 | I278: 50.41107347 | K278: 58.64307347 | M278: 66.87507347 | O278: 75.10707347
E279: 2.7 | G279: 39.37907347 | I279: 47.61107347 | K279: 55.84307347 | M279: 64.07507347 | O279: 72.30707347
C280: $/kg Liveweight Purchases (Vealers) | E280: 2.8 | G280: 36.57907347 | I280: 44.81107347 | K280: 53.04307347 | M280: 61.27507347 | O280: 69.50707347
E281: 2.9 | G281: 33.77907347 | I281: 42.01107347 | K281: 50.24307347 | M281: 58.47507347 | O281: 66.70707347
E282: 3 | G282: 30.97907347 | I282: 39.21107347 | K282: 47.44307347 | M282: 55.67507347 | O282: 63.90707347
E283: 3.1 | G283: 28.17907347 | I283: 36.41107347 | K283: 44.64307347 | M283: 52.87507347 | O283: 61.10707347
E284: 3.2 | G284: 25.37907347 | I284: 33.61107347 | K284: 41.84307347 | M284: 50.07507347 | O284: 58.30707347
E285: 3.3 | G285: 22.57907347 | I285: 30.81107347 | K285: 39.04307347 | M285: 47.27507347 | O285: 55.50707347
E286: 3.4 | G286: 19.77907347 | I286: 28.01107347 | K286: 36.24307347 | M286: 44.47507347 | O286: 52.70707347

Sheet Beef Feed Lot Input (hidden)
C2: ="BEEF FEED LOT GROSS MARGIN - "&TEXT(m_year,"0000") -> BEEF FEED LOT GROSS MARGIN - 2021
C4: GENERAL INFORMATION
C5: This sheet not used. Please enter all data in the Beef Feed Lot sheet

Sheet Beef Feed Lot (hidden)
C1: BEEF FEED LOT
C2: =UPPER(Var_Animal)&" GROSS MARGIN - "&TEXT(m_year,"0000") -> BEEF FEED LOT GROSS MARGIN - 2021
C4: ASSUMPTIONS | E4: ('Local supermarket, 210kg HSCW Carcase, AUSMEAT Fat Score 3-4)
C8: Steer Costs:
C9: Steer purchase | E9: =I9*M9 -> 960 | G9: for | I9: 240 | K9: kg@ | M9: 4 | O9: /kg liveweight
C10: Transport In | E10: 30 | G10: /head | M10: Average weight gain | O10: 1.8 | Q10: kg/hd/day
C11: Est. dressing % | E11: 0.55 | M11: Carcase weight specification | O11: =ROUND((E11*O12),0) -> 230 | Q11: kg HSCW
M12: Final liveweight in lot | O12: 418 | Q12: kg
M13: Avge liveweight in lot | O13: 329 | Q13: kg
M14: Est. time on feed | O14: 100 | Q14: days
C15: Feed Costs: | M15: Avge daily Feed intake | O15: =O13*0.035 -> 11.515 | Q15: kg
C16: Total feed consumed | G16: =ROUNDDOWN(O14*O15,0) -> 1151 | I16: kg | M16: (3.5% of Liveweight)
C17: Feed Wastage | E17: 0.05 | G17: =G16*E17 -> 57.55 | I17: kg | M17: Death Rate | O17: 0.01
C18: Feed cost per tonne | G18: 240 | I18: without premix / supplement
C32: INCOME | Q32: $
C35: Finished steers | E35: 0.97 | G35: % Steer @ | H35: =GM_INFO!B125 | I35: =O11 -> 230 | K35: kg carcass @ | L35: =GM_INFO!D120 | M35: 7.1 | O35: /kg HSCW | Q35: =M35*I35*E35 -> 1584.01
C36: Poor performers sold at 30 days | E36: =SUM(1,-E35,-E37) -> 0.02 | G36: % Steer @ | H36: =GM_INFO!B126 | I36: 240 | K36: kg liveweight | L36: =GM_INFO!D121 | M36: 4.2 | O36: /kg LVWT | Q36: =M36*I36*E36 -> 20.16
C37: Deaths | E37: =O17 -> 0.01 | G37: % Steer @ | H37: =GM_INFO!B122 | I37: 0 | L37: =GM_INFO!D122 | M37: 0 | Q37: 0
Q38: ='Beef Feed Lot Input'!E18*E38 -> 0
D39: TOTAL (must be 100%) | E39: =SUM(E35:E38) -> 1
C41: Gross Income | Q41: =SUM(Q35:Q38) -> 1604.17
C46: VARIABLE COSTS
C75: Purchases | K75: Rate
C76: Steer purchase | E76: 1 | G76: head | K76: 960 | M76: /head | Q76: =K76*ROUND(E76,0) -> 960
C77: Feeding Out & Feed
C78: Feed purchased | E78: =(E35*(G16+G17)+(E36*(G16+G17)*30/O14)) -> 1179.5448 | G78: kg | K78: =G18 -> 240 | M78: /tonne | Q78: =E78*K78/1000 -> 283.090752
C79: Premix cost per tonne mixed feed | E79: =E78 -> 1179.5448 | G79: kg | I79: Reset Rate> | J79: =GM_INFO!I68 | K79: =GM_INFO!I115 -> 50 | M79: /tonne | Q79: =E79*K79/1000 -> 58.97724
C80: Milling costs + Labour | E80: 1 | I80: Reset Rate> | J80: =GM_INFO!I69 | K80: =GM_INFO!I116 -> 28 | M80: /head | Q80: 28
C81: Water | E81: 1 | I81: Reset Rate> | J81: =GM_INFO!I70 | K81: =GM_INFO!I117 -> 20 | M81: /head | Q81: 20
C89: Veterinary & Medicines
C90: Drench, Dectomax | E90: 1 | G90: head | I90: Reset Rate> | J90: =GM_INFO!d62 | K90: =GM_INFO!I108 -> 4.88 | M90: /head | Q90: =K90*ROUND(E90,0) -> 4.88
C91: Ear Tags | E91: 1 | G91: head | I91: Reset Rate> | J91: =GM_INFO!d73 | K91: =GM_INFO!I109 -> 0.5 | M91: /tag | Q91: 0.5
C92: HGP implant , Synovex | E92: 0 | G92: head | I92: Reset Rate> | J92: =GM_INFO!d62 | K92: =GM_INFO!I110 -> 2.5 | M92: /dose | Q92: 0
C93: Lice Treatments | E93: 0 | G93: head | I93: Reset Rate> | J93: =GM_INFO!d64 | K93: =GM_INFO!I111 -> 0 | M93: /dose | Q93: 0
C94: Vaccine | E94: 1 | G94: head | I94: Reset Rate> | J94: =GM_INFO!d64 | K94: =GM_INFO!I112 -> 1 | M94: /dose | Q94: 1
C95: Veterinary | E95: 1 | G95: head | I95: Reset Rate> | J95: =GM_INFO!d64 | K95: =GM_INFO!I113 -> 1.25 | M95: /dose | Q95: 1.25
C96: Vitamin injection | E96: 0 | G96: head | I96: Reset Rate> | J96: =GM_INFO!d64 | K96: =GM_INFO!I114 -> 1.5 | M96: /dose | Q96: 0
C116: Losses | E116: 0.006 | G116: % | J116: =GM_INFO!d64 | K116: =(Q76+Q78)*E116 -> 7.458544512 | M116: /head | Q116: =K116 -> 7.458544512
C117: Sale Costs and other
C119: Insurance | E119: =Q76 -> 960 | I119: Reset Rate> | J119: =GM_INFO!I71 | K119: =GM_INFO!I118 -> 2 | M119: /$1000 | Q119: =K119*ROUND(E119,0)/1000 -> 1.92
C122: Transport In | E122: 1 | G122: dse's | I122: Reset Rate> | J122: =GM_INFO!I72 | K122: =GM_INFO!I119 -> 15 | Q122: =K122*ROUND(E122,0) -> 15
C123: Transport Out | E123: 1 | G123: head | I123: Reset Rate> | J123: =GM_INFO!I73 | K123: =GM_INFO!I120 -> 30 | M123: /head | Q123: =K123*E123 -> 30
C125: Commission | I125: Reset Rate> | J125: =GM_INFO!I74 | K125: =GM_INFO!I121 -> 0.06 | Q125: =Q41*K125 -> 96.2502
C126: Levies | I126: Reset Rate> | J126: =GM_INFO!I75 | K126: =GM_INFO!I122 -> 5 | M126: /head | Q126: =K126*SUM(E35:E36) -> 4.95
C143: Accreditation costs on a 600 hd/year throughput | Q143: 1
C170: TOTAL VARIABLE COSTS | Q170: =SUM(Q48:Q166) -> 1514.276737
C172: GROSS MARGIN PER HEAD | Q172: =Q41-Q170 -> 89.89326349
C174: Current interest rate | E174: 0.05
C175: Interest on cattle | K175: =K76*E174*O14/365 -> 13.15068493
C176: Interest on feed | K176: =Q78*E174*O14/365 -> 3.877955507
C178: GROSS MARGIN AFTER INTEREST | Q178: =SUM(Q172,-K175,-K176) -> 72.86462305
C180: Break even sale price :-- c/kg on purchase price, costs & interest | Q180: =((Q170+K175+K176-Q36)/(E35*I35))*100 -> 677.3399269
C182: Break even purchase price :-- c/kg on sale price & costs | Q182: =(-K176-K175+Q35-SUM(Q78:Q166))/I9*100 -> 421.9602596
B203: =VLOOKUP(r[0]c3&"No Ops",CHOOSE({1,2},tbl_ops[Name]&tbl_ops[Category],INDIRECT("tbl_ops["&var_crop&"]")),2,0)
B204: =VLOOKUP(r[0]c3&"No Ops",CHOOSE({1,2},tbl_ops[Name]&tbl_ops[Category],INDIRECT("tbl_ops["&var_crop&"]")),2,0)
B205: =VLOOKUP(r[0]c3&"No Ops",CHOOSE({1,2},tbl_ops[Name]&tbl_ops[Category],INDIRECT("tbl_ops["&var_crop&"]")),2,0)
B206: =VLOOKUP(r[0]c3&"No Ops",CHOOSE({1,2},tbl_ops[Name]&tbl_ops[Category],INDIRECT("tbl_ops["&var_crop&"]")),2,0)
B208: =VLOOKUP(r[0]c3&var_rain,CHOOSE({1,2},tbl_ops[Name]&tbl_ops[Rainfall],INDIRECT("tbl_ops["&var_crop&"]")),2,0)
B209: =VLOOKUP(r[0]c3&var_rain,CHOOSE({1,2},tbl_ops[Name]&tbl_ops[Rainfall],INDIRECT("tbl_ops["&var_crop&"]")),2,0)
B210: =VLOOKUP(r[0]c3&var_rain,CHOOSE({1,2},tbl_ops[Name]&tbl_ops[Rainfall],INDIRECT("tbl_ops["&var_crop&"]")),2,0)
B211: =VLOOKUP(r[0]c3&var_rain,CHOOSE({1,2},tbl_ops[Name]&tbl_ops[Rainfall],INDIRECT("tbl_ops["&var_crop&"]")),2,0)
C275: GM SENSITIVITY
C276: Gross Margin | E276: Per head ($/kg HSCW Carcase)
G277: 6.5 | H277: 5.5 | I277: 6.8 | J277: 6.5 | K277: 7.1 | M277: 7.4 | O277: 7.7
E278: 200 | G278: =($E$35*$I$35*G$277)+($E$36*$I$36*$M$36)-$Q$170+$Q$78-(($E$78*$E278)/1000) -> 3.215055488 | H278: -219.8849445 | I278: 70.14505549 | J278: 3.215055488 | K278: 137.0750555 | L278: -1446.934945 | M278: 204.0050555 | N278: -1446.934945 | O278: 270.9350555
E279: 210 | G279: -8.580392512 | H279: -231.6803925 | I279: 58.34960749 | J279: -8.580392512 | K279: 125.2796075 | L279: -1458.730393 | M279: 192.2096075 | N279: -1458.730393 | O279: 259.1396075
C280: Feed Cost/tonne | E280: 220 | G280: -20.37584051 | H280: -243.4758405 | I280: 46.55415949 | J280: -20.37584051 | K280: 113.4841595 | L280: -1470.525841 | M280: 180.4141595 | N280: -1470.525841 | O280: 247.3441595
E281: 230 | G281: -32.17128851 | H281: -255.2712885 | I281: 34.75871149 | J281: -32.17128851 | K281: 101.6887115 | L281: -1482.321289 | M281: 168.6187115 | N281: -1482.321289 | O281: 235.5487115
E282: 240 | G282: -43.96673651 | H282: -267.0667365 | I282: 22.96326349 | J282: -43.96673651 | K282: 89.89326349 | L282: -1494.116737 | M282: 156.8232635 | N282: -1494.116737 | O282: 223.7532635
E283: 250 | G283: -55.76218451 | H283: -278.8621845 | I283: 11.16781549 | J283: -55.76218451 | K283: 78.09781549 | L283: -1505.912185 | M283: 145.0278155 | N283: -1505.912185 | O283: 211.9578155
E284: 260 | G284: -67.55763251 | H284: -290.6576325 | I284: -0.627632512 | J284: -67.55763251 | K284: 66.30236749 | L284: -1517.707633 | M284: 133.2323675 | N284: -1517.707633 | O284: 200.1623675
E285: 270 | G285: -79.35308051 | H285: -302.4530805 | I285: -12.42308051 | J285: -79.35308051 | K285: 54.50691949 | L285: -1529.503081 | M285: 121.4369195 | N285: -1529.503081 | O285: 188.3669195
E286: 280 | G286: -91.14852851 | H286: -314.2485285 | I286: -24.21852851 | J286: -91.14852851 | K286: 42.71147149 | L286: -1541.298529 | M286: 109.6414715 | N286: -1541.298529 | O286: 176.5714715
